Workbook

Sheet Directions
A1: Directions
A2: 1 | B2: In the first month's worksheet, please make a complete entry (complete all applicable columns) for each resident that is taking an antipsychotic. If the resident is taking two antipsychotics, enter each antipsychotic on a separate line.
A3: 2 | B3: Enter your end of month census in cell D1. As you enter your residents on antipsychotics, the number of current residents on antipsychotics will automatically populate in cell G1 and your antipsychotic rate will automatically calculate in cell I1. Duplicate resident lines will be excluded from the count of current residents on antipsychotics in cell G1.
A4: 4 | B4: Use the "Populate Previous Month's Data" button to copy the previous months data into the current month and update data from there
A5: 3 | B5: If you need to delete an entry, please highlight the cells and hit the delete key. DO NOT DELETE THE ENTIRE ROW
A6: 5 | B6: Column D: Type of Stay - short term < 100 days, long term > 100 days
A7: 6 | B7: Column L: Diagnosis appropriate -Conditions other than dementia Huntington disease* Schizophrenia*, Tourette’s Disorder* ---------------------------------------------------------------------------------------------------------------------------------------------------------------------------------------------------------------------- Delusional disorder Hiccups (not induced by other medications) Medical illness with psychotic symptoms (neoplastic disease or delirium) and/or treatment related psychosis or mania (high dose steroids) Mood disorders (bipolar, severe depression) Nausea and vomiting associated with cancer or chemotherapy Psychosis in the absence of dementia Schizo-affective disorder, Schizophreniform disorder
A8: 7 | B8: Column N: BPSD = Behavioral or Psychological Symptoms of Dementia
B10: *Diagnoses labeled with an * are the only approved antipsychotic medication diagnosis for MDS 3.0 purposes.
B12: Acronym Index
B13: BPSD - Behavior or Psychological Symptoms of Dementia
B14: GDR - Gradual Dose Reduction
B22: This material was prepared by the Great Plains Quality Innovation Network, the Medicare Quality Improvement Organization for Kansas, Nebraska, North Dakota and South Dakota, under contract with the Centers for Medicare & Medicaid Services (CMS), an agency of the U.S. Department of Health and Human Services. The contents presented do not necessarily reflect CMS policy. 11S0W-GPQIN-NE-C2-193/1117

Sheet Example Data
A1: End of Month Census : | D1: 55 | E1: Current residents on antipsychotics: | G1: =SUMPRODUCT((A4:A111<>"")/COUNTIF(A4:A111,A4:A111&"")) -> 9 | H1: Percentage of residents on antipsychotic: | I1: =IFERROR((G1/D1)*100, "---") -> 16.36363636
A2: Resident Information | F2: Antipsychotic Medication Information
A3: Room # | B3: Last Name | C3: First Name | D3: Type of Stay | E3: Notes (New Admit, etc) | F3: Antipsychotic Drug Prescribed | G3: Prescriber | H3: Dose Schedule | I3: Date Started | J3: Where was medication started? | K3: Diagnosis associated with antipsychotic | L3: Is Dx Appropriate? (See directions) | M3: List BPSD | N3: Appropriate BPSD documented? | O3: List Non Drug Interventions tried | P3: Non Drug Intv documented? | Q3: Date of most recent GDR | R3: Outcome of GDR | S3: GDR Needed? | T3: Reasons for no GDR being attempted | U3: Has resident experienced adverse drug effects? | V3: If yes, describe adverse effects
A4: 209D | B4: Jones | C4: Jason | D4: long term | E4: New Admit | F4: Seroquel | G4: Dr. Stenger | H4: Scheduled | I4: 2009-07-23 | J4: hospital | K4: psychotic disorder | L4: No | M4: List all BPSD in this area | N4: yes | O4: List all non-drug interventions attempted | P4: Yes | Q4: 2013-10-01 | R4: Dose reduced | S4: no | T4: Resident on lowest possible dose | U4: No | BB4: =CONCATENATE(C4,B4) -> JasonJones
A5: 214W | B5: Smith | C5: Esther | D5: long term | E5: Readmit | F5: seroquel | G5: Dr. Stenger | H5: PRN | I5: 2014-02-28 | J5: SNF | K5: anxiety | L5: Yes | M5: List all BPSD in this area | N5: yes | O5: List all non-drug interventions attempted | P5: Yes | R5: Drug discontinued | S5: no | T5: Resident on lowest possible dose | U5: No | BB5: =CONCATENATE(C5,B5) -> EstherSmith
A6: 218W | B6: Jackson | C6: Goldie | D6: Long Term | E6: Transfer from Skilled | F6: zyprexa | G6: Dr. Capan | H6: Both | I6: 1905-06-30 | J6: Outpatient | K6: psychosis | L6: No | M6: List all BPSD in this area | N6: yes | O6: List all non-drug interventions attempted | P6: Yes | Q6: 2014-10-13 | R6: Return to previous dose | S6: no | T6: Contraindicated per prescriber | U6: No | BB6: GoldieJackson
A7: 208W | B7: Brown | C7: Frieda | D7: long term | E7: New Admit | F7: seroquel | G7: Dr. Capan | H7: Scheduled | I7: 1905-07-03 | J7: Outpatient | K7: anxiety | L7: No | M7: List all BPSD in this area | N7: yes | O7: List all non-drug interventions attempted | P7: No | Q7: 2014-12-13 | R7: Dose reduced | S7: no | T7: Other | U7: Yes | V7: Enter a description here | BB7: FriedaBrown
A8: 212W | B8: Green | C8: Helen | D8: long term | E8: Readmit | F8: zyprexa | G8: psych | H8: PRN | I8: 1905-06-29 | J8: Outpatient | K8: psychosis | L8: No | M8: List all BPSD in this area | N8: yes | O8: List all non-drug interventions attempted | P8: Yes | Q8: 2013-02-28 | R8: Dose reduced | S8: yes | T8: Resident on lowest possible dose | U8: No | BB8: HelenGreen
A9: 216E | B9: Yellow | C9: Marvin | D9: Short Term | E9: Transfer from Skilled | F9: Seroquel | G9: Dr. Capan | H9: Both | I9: 1905-07-01 | J9: SNF | K9: anxiety disorder | L9: Yes | M9: List all BPSD in this area | N9: yes | O9: List all non-drug interventions attempted | P9: N/A | Q9: 2014-01-14 | R9: Dose reduced | S9: no | T9: Resident on lowest possible dose | U9: No | BB9: MarvinYellow
A10: 219D | B10: James | C10: Mildred | D10: Short Term | E10: New Admit | F10: Seroquel | G10: Dr Capan | H10: Scheduled | I10: 1905-07-04 | J10: hospital | K10: anxiety | L10: No | M10: List all BPSD in this area | N10: yes | O10: List all non-drug interventions attempted | P10: N/A | Q10: 2014-01-01 | R10: Drug discontinued | S10: Yes | T10: Resident on lowest possible dose | U10: No | BB10: MildredJames
A11: 221D | B11: Sanchez | C11: Mary Ann | D11: long term | E11: Readmit | F11: Seroquel | G11: Dr. Capan | H11: Scheduled | I11: 1905-07-04 | J11: SNF | K11: anxiety | L11: Yes | M11: List all BPSD in this area | N11: yes | O11: List all non-drug interventions attempted | P11: No | Q11: 2013-10-01 | R11: Drug discontinued | S11: Yes | T11: Resident on lowest possible dose | U11: No | BB11: Mary AnnSanchez
A12: 205D | B12: Poe | C12: Sylvester | D12: long term | E12: Transfer from Skilled | F12: olanzapine | G12: Dr. Capan | H12: PRN | I12: 1905-07-05 | J12: Outpatient | K12: anxiety | L12: No | M12: List all BPSD in this area | N12: yes | O12: List all non-drug interventions attempted | P12: No | R12: Return to previous dose | S12: no | T12: Other | U12: Yes | V12: Enter a description here | BB12: SylvesterPoe
A13: 209D | B13: Rey | C13: Hildegarde | D13: Short Term | E13: New Admit | F13: Seroquel | G13: Dr. Stenger | H13: Scheduled | I13: 2009-07-23 | J13: hospital | K13: psychotic disorder | L13: No | M13: List all BPSD in this area | N13: yes | O13: List all non-drug interventions attempted | P13: Yes | Q13: 2013-10-01 | R13: Dose reduced | S13: no | T13: Resident on lowest possible dose | U13: No | BB13: =CONCATENATE(C13,B13) -> HildegardeRey
BB70: =CONCATENATE(C70,B70) -> 
C112: TOTALS | L112: =COUNTIF(L4:L111,"Yes") -> 3 | M112: =COUNTIF(M4:M111,"Yes") -> 0 | N112: =COUNTIF(N4:N111,"Yes") -> 10 | O112: =COUNTIF(P4:P111,"Yes") -> 5 | P112: =COUNTIF(Q4:Q111,"Yes") -> 0 | R112: =SUM(S4:S111) -> 0 | S112: =SUM(T4:T111) -> 0
A119: Type of Stay Breakdown
A120: Short Stay | B120: =COUNTIF(D4:D111,"Short Term") -> 3
A121: Long Stay | B121: =COUNTIF(D4:D111,"Long Term") -> 7
A122: Total | B122: =B120+B121 -> 10
A126: Dose Schedule | B126: Total | C126: Short Stay | D126: Long Stay
A127: Scheduled | B127: =COUNTIFS(H4:H111,"Scheduled") -> 5 | C127: =COUNTIFS(H4:H111,"Scheduled",D4:D111,"Short Term") -> 2 | D127: =COUNTIFS(H4:H111,"Scheduled",D4:D111,"Long Term") -> 3
A128: PRN | B128: =COUNTIFS(H4:H111,"PRN") -> 3 | C128: =COUNTIFS(H4:H111,"PRN",D4:D111,"Short Term") -> 0 | D128: =COUNTIFS(H4:H111,"PRN",D4:D111,"Long Term") -> 3
A129: Both | B129: =COUNTIFS(H4:H111,"Both") -> 2 | C129: =COUNTIFS(H4:H111,"Both",D4:D111,"Short Term") -> 1 | D129: =COUNTIFS(H4:H111,"Both",D4:D111,"Long Term") -> 1
A130: Total | B130: =SUM(B127:B129) -> 10 | C130: =SUM(C127:C129) -> 3 | D130: 7
A131: Scheduled + both | B131: =B127+B129 -> 7 | C131: =C127+C129 -> 3 | D131: 4
A132: PRN + both | B132: =B128+B129 -> 5 | C132: =C128+C129 -> 1 | D132: 4
A133: % on a scheduled dose (sched + both) | B133: =IFERROR(((B131/B130)*100), "---") -> 70 | C133: =IFERROR(((C131/C130)*100), "---") -> 100 | D133: =IFERROR(((D131/D130)*100), "---") -> 57.14285714
A134: % on a PRN dose (PRN + both) | B134: =IFERROR(((B132/B130)*100), "---") -> 50 | C134: =IFERROR(((C132/C130)*100), "---") -> 33.33333333 | D134: =IFERROR(((D132/D130)*100), "---") -> 57.14285714
A135: % on both sched & PRN | B135: =IFERROR(((B129/B130)*100), "---") -> 20 | C135: =IFERROR(((C129/C130)*100),"---") -> 33.33333333 | D135: =IFERROR(((D129/D130)*100), "---") -> 14.28571429
A139: Where Medication Started | B139: Total | C139: Short Stay | D139: Long Stay
A140: SNF | B140: =COUNTIFS(J4:J111,"SNF") -> 3 | C140: =COUNTIFS(J4:J111,"SNF",D4:D111,"Short Term") -> 1 | D140: =COUNTIFS(J4:J111,"SNF",D4:D111,"Long Term") -> 2
A141: Hospital | B141: =COUNTIFS(J4:J111,"Hospital") -> 3 | C141: =COUNTIFS(J4:J111,"Hospital",D4:D111,"Short Term") -> 2 | D141: =COUNTIFS(J4:J111,"Hospital",D4:D111,"Long Term") -> 1
A142: Outpatient | B142: =COUNTIFS(J4:J111,"Outpatient") -> 4 | C142: =COUNTIFS(J4:J111,"Outpatient",D4:D111,"Short Term") -> 0 | D142: =COUNTIFS(J4:J111,"Outpatient",D4:D111,"Long Term") -> 4
A143: Total | B143: =SUM(B140:B142) -> 10 | C143: =SUM(C140:C142) -> 3 | D143: 7
A144: % started in SNF | B144: =IFERROR(((B140/B143)*100), "---") -> 30 | C144: =IFERROR(((C140/C143)*100), "---") -> 33.33333333 | D144: =IFERROR(((D140/D143)*100), "---") -> 28.57142857
A145: % started in hospital | B145: =IFERROR(((B141/B143)*100), "---") -> 30 | C145: =IFERROR(((C141/C143)*100), "---") -> 66.66666667 | D145: =IFERROR(((D141/D143)*100), "---") -> 14.28571429
A146: % started in outpatient | B146: =IFERROR(((B142/B143)*100), "---") -> 40 | C146: =IFERROR(((C142/C143)*100), "---") -> 0 | D146: =IFERROR(((D142/D143)*100), "---") -> 57.14285714
A151: Dx appropriate | B151: Total | C151: Short Stay | D151: Long Stay
A152: Yes | B152: =COUNTIFS(L4:L111,"Yes") -> 3 | C152: =COUNTIFS(L4:L111,"Yes",D4:D111,"Short Term") -> 1 | D152: =COUNTIFS(L4:L111,"Yes",D4:D111,"Long Term") -> 2
A153: No | B153: =COUNTIFS(L4:L111,"No") -> 7 | C153: =COUNTIFS(L4:L111,"No",D4:D111,"Short Term") -> 2 | D153: =COUNTIFS(L4:L111,"No",D4:D111,"Long Term") -> 5
A154: Total | B154: =SUM(B152:B153) -> 10 | C154: =SUM(C152:C153) -> 3 | D154: 7
A155: % with appropriate diagnosis | B155: =IFERROR(((B152/B154)*100), "---") -> 30 | C155: =IFERROR(((C152/C154)*100), "---") -> 33.33333333 | D155: =IFERROR(((D152/D154)*100), "---") -> 28.57142857
A160: BPSD documented | B160: Total | C160: Short Stay | D160: Long Stay
A161: Yes | B161: =COUNTIFS(N4:N111,"Yes") -> 10 | C161: =COUNTIFS(N4:N111,"Yes",D4:D111,"Short Term") -> 3 | D161: =COUNTIFS(N4:N111,"Yes",D4:D111,"Long Term") -> 7
A162: No | B162: =COUNTIFS(N4:N111,"No") -> 0 | C162: =COUNTIFS(N4:N111,"No",D4:D111,"Short Term") -> 0 | D162: =COUNTIFS(N4:N111,"No",D4:D111,"Long Term") -> 0
A163: N/A | B163: =COUNTIFS(N4:N111,"N/A") -> 0 | C163: =COUNTIFS(N4:N111,"N/A",D4:D111,"Short Term") -> 0 | D163: =COUNTIFS(N4:N111,"N/A",D4:D111,"Long Term") -> 0
A164: Total | B164: =SUM(B161:B163) -> 10 | C164: =SUM(C161:C163) -> 3 | D164: 7
A165: % needing BPSD documented | B165: =IFERROR(((B162/(B161+B162))*100),"---") -> 0 | C165: =IFERROR(((C162/(C161+C162))*100), "---") -> 0 | D165: =IFERROR(((D162/(D161+D162))*100), "---") -> 0
A170: Non drug interventions documented | B170: Total | C170: Short Stay | D170: Long Stay
A171: Yes | B171: =COUNTIFS(P4:P111,"Yes") -> 5 | C171: =COUNTIFS(P4:P111,"Yes",D4:D111,"Short Term") -> 1 | D171: =COUNTIFS(P4:P111,"Yes",D4:D111,"Long Term") -> 4
A172: No | B172: =COUNTIFS(P4:P111,"No") -> 3 | C172: =COUNTIFS(P4:P111,"No",D4:D111,"Short Term") -> 0 | D172: =COUNTIFS(P4:P111,"No",D4:D111,"Long Term") -> 3
A173: N/A | B173: =COUNTIFS(P4:P111,"N/A") -> 2 | C173: =COUNTIFS(P4:P111,"N/A",D4:D111,"Short Term") -> 2 | D173: =COUNTIFS(P4:P111,"N/A",D4:D111,"Long Term") -> 0
A174: Total | B174: =SUM(B171:B173) -> 10 | C174: =SUM(C171:C173) -> 3 | D174: 7
A175: % without non drug interventions documented | B175: =IFERROR((B172/(B171+B172))*100, "---") -> 37.5 | C175: =IFERROR((C72/(C171+C172)*100), "---") -> 0 | D175: =IFERROR((D172/(D171+D172)*100), "---") -> 42.85714286
A180: GDR Outcome | B180: Total | C180: Short Stay | D180: Long Stay
A181: Dose reduced | B181: =COUNTIFS(R4:R111,"Dose reduced") -> 5 | C181: =COUNTIFS(R4:R111,"Dose reduced",D4:D111,"Short Term") -> 2 | D181: =COUNTIFS(R4:R111,"Dose reduced",D4:D111,"Long Term") -> 3
A182: Dose discontinued | B182: =COUNTIFS(R4:R111,"Drug discontinued") -> 3 | C182: =COUNTIFS(R4:R111,"Drug discontinued",D4:D111,"Short Term") -> 1 | D182: =COUNTIFS(R4:R111,"Drug discontinued",D4:D111,"Long Term") -> 2
A183: Return to previous dose | B183: =COUNTIFS(R4:R111,"Return to previous dose") -> 2 | C183: =COUNTIFS(R4:R111,"Return to previous dose",D4:D111,"Short Term") -> 0 | D183: =COUNTIFS(R4:R111,"Return to previous dose",D4:D111,"Long Term") -> 2
A184: Total | B184: =SUM(B181:B183) -> 10 | C184: =SUM(C181:C183) -> 3 | D184: 7
A185: dose reduced or dc'd | B185: =B181+B182 -> 8 | C185: =C181+C182 -> 3 | D185: 5
A186: % dose reduction | B186: =IFERROR((B181/B184)*100, "---") -> 50 | C186: =IFERROR((C181/C184)*100, "---") -> 66.66666667 | D186: =IFERROR((D181/D184)*100, "---") -> 42.85714286
A187: % dose discontinued | B187: =IFERROR((B182/B184)*100, "---") -> 30 | C187: =IFERROR((C182/C184)*100, "---") -> 33.33333333 | D187: =IFERROR((D182/D184)*100, "---") -> 28.57142857
A188: % dose reduced or discontinued | B188: =IFERROR((B185/B184)*100, "---") -> 80 | C188: =IFERROR((C185/C184)*100, "---") -> 100 | D188: =IFERROR((D185/D184)*100, "---") -> 71.42857143
A193: GDR needed | B193: Total | C193: Short Stay | D193: Long Stay
A194: Yes | B194: =COUNTIFS(S4:S111,"Yes") -> 3 | C194: =COUNTIFS(S4:S111,"Yes",D4:D111,"Short Term") -> 1 | D194: =COUNTIFS(S4:S111,"Yes",D4:D111,"Long Term") -> 2
A195: No | B195: =COUNTIFS(S4:S111,"No") -> 7 | C195: =COUNTIFS(S4:S111,"No",D4:D111,"Short Term") -> 2 | D195: =COUNTIFS(S4:S111,"No",D4:D111,"Long Term") -> 5
A196: Total | B196: =SUM(B194:B195) -> 10 | C196: =SUM(C194:C195) -> 3 | D196: 7
A197: % needing GDR | B197: =IFERROR((B194/B196)*100, "---") -> 30 | C197: =IFERROR((C194/C196)*100, "---") -> 33.33333333 | D197: =IFERROR((D194/D196)*100, "---") -> 28.57142857
A202: Reason no GDR attempted | B202: Total | C202: Short Stay | D202: Long Stay
A203: N/A | B203: =COUNTIFS(T4:T111,"N/A") -> 0 | C203: =COUNTIFS(T4:T111,"N/A",D4:D111,"Short Term") -> 0 | D203: =COUNTIFS(T4:T111,"N/A",D4:D111,"Long Term") -> 0
A204: Resident on lowest possible dose | B204: =COUNTIFS(T4:T111,"Resident on lowest possible dose") -> 7 | C204: =COUNTIFS(T4:T111,"Resident on lowest possible dose",D4:D111,"Short Term") -> 3 | D204: =COUNTIFS(T4:T111,"Resident on lowest possible dose",D4:D111,"Long Term") -> 4
A205: Contraindicated per prescriber | B205: =COUNTIFS(T4:T111,"Contraindicated per prescriber") -> 1 | C205: =COUNTIFS(T4:T111,"Contraindicated per prescriber",D4:D111,"Short Term") -> 0 | D205: =COUNTIFS(T4:T111,"Contraindicated per prescriber",D4:D111,"Long Term") -> 1
A206: Other | B206: =COUNTIFS(T4:T111,"Other") -> 2 | C206: =COUNTIFS(T4:T111,"Other",D4:D111,"Short Term") -> 0 | D206: =COUNTIFS(T4:T111,"Other",D4:D111,"Long Term") -> 2
A207: Total | B207: =SUM(B203:B206) -> 10 | C207: =SUM(C203:C206) -> 3 | D207: 7
A208: % resident on lowest possible dose | B208: =IFERROR((B204/B207)*100, "---") -> 70 | C208: =IFERROR((C204/C207)*100, "---") -> 100 | D208: =IFERROR((D204/D207)*100, "---") -> 57.14285714
A209: % contraindicated per prescriber | B209: =IFERROR((B205/B207)*100, "---") -> 10 | C209: =IFERROR((C205/C207)*100, "---") -> 0 | D209: =IFERROR((D205/D207)*100, "---") -> 14.28571429
A210: % other | B210: =IFERROR((B206/B207)*100, "---") -> 20 | C210: =IFERROR((C206/C207)*100, "---") -> 0 | D210: =IFERROR((D206/D207)*100, "---") -> 28.57142857
A215: Adverse Effects | B215: Total | C215: Short Stay | D215: Long Stay
A216: Yes | B216: =COUNTIFS(U4:U111,"Yes") -> 2 | C216: =COUNTIFS(U4:U111,"Yes",D4:D111,"Short Term") -> 0 | D216: =COUNTIFS(U4:U111,"Yes",D4:D111,"Long Term") -> 2
A217: No | B217: =COUNTIFS(U4:U111,"No") -> 8 | C217: =COUNTIFS(U4:U111,"No",D4:D111,"Short Term") -> 3 | D217: =COUNTIFS(U4:U111,"No",D4:D111,"Long Term") -> 5
A218: Total | B218: =SUM(B216:B217) -> 10 | C218: =SUM(C216:C217) -> 3 | D218: 7
A219: % with adverse effects | B219: =IFERROR((B216/B218)*100, "---") -> 20 | C219: =IFERROR((C216/C218)*100, "---") -> 0 | D219: =IFERROR((D216/D218)*100, "---") -> 28.57142857

Sheet January
A1: End of Month Census : | D1: 50 | E1: Current residents on antipsychotics: | G1: =SUMPRODUCT((A4:A111<>"")/COUNTIF(A4:A111,A4:A111&"")) -> 0 | H1: Percentage of residents on antipsychotic: | I1: =IFERROR((G1/D1)*100, "---") -> 0
A2: Resident Information | F2: Antipsychotic Medication Information
A3: Room # | B3: Last Name | C3: First Name | D3: Type of Stay | E3: Notes (New Admit, etc) | F3: Antipsychotic Drug Prescribed | G3: Prescriber | H3: Dose Schedule | I3: Date Started | J3: Where was medication started? | K3: Diagnosis associated with antipsychotic | L3: Is Dx Appropriate? (See directions) | M3: List BPSD | N3: Appropriate BPSD documented? | O3: List Non Drug Interventions tried | P3: Non Drug Intv documented? | Q3: Date of most recent GDR | R3: Outcome of GDR | S3: GDR Needed? | T3: Reasons for no GDR being attempted | U3: Has resident experienced adverse drug effects? | V3: If yes, describe adverse effects
BB14: =CONCATENATE(C14,B14) -> 
BB78: =CONCATENATE(C78,B78) -> 
C112: TOTALS | L112: =COUNTIF(L4:L111,"Yes") -> 0 | M112: =COUNTIF(M4:M111,"Yes") -> 0 | N112: =COUNTIF(N4:N111,"Yes") -> 0 | O112: =COUNTIF(P4:P111,"Yes") -> 0 | P112: =COUNTIF(Q4:Q111,"Yes") -> 0 | R112: =SUM(S4:S111) -> 0 | S112: =SUM(T4:T111) -> 0
A119: Type of Stay Breakdown
A120: Short Stay | B120: =COUNTIF(D4:D111,"Short Term") -> 0
A121: Long Stay | B121: =COUNTIF(D4:D111,"Long Term") -> 0
A122: Total | B122: =B120+B121 -> 0
A126: Dose Schedule | B126: Total | C126: Short Stay | D126: Long Stay
A127: Scheduled | B127: =COUNTIFS(H4:H111,"Scheduled") -> 0 | C127: =COUNTIFS(H4:H111,"Scheduled",D4:D111,"Short Term") -> 0 | D127: =COUNTIFS(H4:H111,"Scheduled",D4:D111,"Long Term") -> 0
A128: PRN | B128: =COUNTIFS(H4:H111,"PRN") -> 0 | C128: =COUNTIFS(H4:H111,"PRN",D4:D111,"Short Term") -> 0 | D128: =COUNTIFS(H4:H111,"PRN",D4:D111,"Long Term") -> 0
A129: Both | B129: =COUNTIFS(H4:H111,"Both") -> 0 | C129: =COUNTIFS(H4:H111,"Both",D4:D111,"Short Term") -> 0 | D129: =COUNTIFS(H4:H111,"Both",D4:D111,"Long Term") -> 0
A130: Total | B130: =SUM(B127:B129) -> 0 | C130: =SUM(C127:C129) -> 0 | D130: 0
A131: % on a scheduled dose | B131: =IFERROR(((B127/$B$130)*100), "---") -> --- | C131: =IFERROR(((C127/C130)*100), "---") -> --- | D131: =IFERROR(((D127/D130)*100), "---") -> ---
A132: % on a PRN dose | B132: =IFERROR(((B128/$B$130)*100), "---") -> --- | C132: =IFERROR(((C128/$C$130)*100), "---") -> --- | D132: =IFERROR(((D128/$D$130)*100), "---") -> ---
A133: % on both sched & PRN | B133: --- | C133: =IFERROR(((C129/C130)*100),"---") -> --- | D133: =IFERROR(((D129/D130)*100), "---") -> ---
A137: Where Medication Started | B137: Total | C137: Short Stay | D137: Long Stay
A138: SNF | B138: =COUNTIFS(J4:J111,"SNF") -> 0 | C138: =COUNTIFS(J4:J111,"SNF",D4:D111,"Short Term") -> 0 | D138: =COUNTIFS(J4:J111,"SNF",D4:D111,"Long Term") -> 0
A139: Hospital | B139: =COUNTIFS(J4:J111,"Hospital") -> 0 | C139: =COUNTIFS(J4:J111,"Hospital",D4:D111,"Short Term") -> 0 | D139: =COUNTIFS(J4:J111,"Hospital",D4:D111,"Long Term") -> 0
A140: Outpatient | B140: =COUNTIFS(J4:J111,"Outpatient") -> 0 | C140: =COUNTIFS(J4:J111,"Outpatient",D4:D111,"Short Term") -> 0 | D140: =COUNTIFS(J4:J111,"Outpatient",D4:D111,"Long Term") -> 0
A141: Total | B141: =SUM(B138:B140) -> 0 | C141: =SUM(C138:C140) -> 0 | D141: 0
A142: % started in SNF | B142: =IFERROR(((B138/B141)*100), "---") -> --- | C142: =IFERROR(((C138/C141)*100), "---") -> --- | D142: =IFERROR(((D138/D141)*100), "---") -> ---
A143: % started in hospital | B143: =IFERROR(((B139/B141)*100), "---") -> --- | C143: =IFERROR(((C139/C141)*100), "---") -> --- | D143: =IFERROR(((D139/D141)*100), "---") -> ---
A144: % started in outpatient | B144: =IFERROR(((B140/B141)*100), "---") -> --- | C144: =IFERROR(((C140/C141)*100), "---") -> --- | D144: =IFERROR(((D140/D141)*100), "---") -> ---
A149: Dx appropriate | B149: Total | C149: Short Stay | D149: Long Stay
A150: Yes | B150: =COUNTIFS(L4:L111,"Yes") -> 0 | C150: =COUNTIFS(L4:L111,"Yes",D4:D111,"Short Term") -> 0 | D150: =COUNTIFS(L4:L111,"Yes",D4:D111,"Long Term") -> 0
A151: No | B151: =COUNTIFS(L4:L111,"No") -> 0 | C151: =COUNTIFS(L4:L111,"No",D4:D111,"Short Term") -> 0 | D151: =COUNTIFS(L4:L111,"No",D4:D111,"Long Term") -> 0
A152: Total | B152: =SUM(B150:B151) -> 0 | C152: =SUM(C150:C151) -> 0 | D152: 0
A153: % with appropriate diagnosis | B153: =IFERROR(((B150/B152)*100), "---") -> --- | C153: =IFERROR(((C150/C152)*100), "---") -> --- | D153: =IFERROR(((D150/D152)*100), "---") -> ---
A158: BPSD documented | B158: Total | C158: Short Stay | D158: Long Stay
A159: Yes | B159: =COUNTIFS(N4:N111,"Yes") -> 0 | C159: =COUNTIFS(N4:N111,"Yes",D4:D111,"Short Term") -> 0 | D159: =COUNTIFS(N4:N111,"Yes",D4:D111,"Long Term") -> 0
A160: No | B160: =COUNTIFS(N4:N111,"No") -> 0 | C160: =COUNTIFS(N4:N111,"No",D4:D111,"Short Term") -> 0 | D160: =COUNTIFS(N4:N111,"No",D4:D111,"Long Term") -> 0
A161: N/A | B161: =COUNTIFS(N4:N111,"N/A") -> 0 | C161: =COUNTIFS(N4:N111,"N/A",D4:D111,"Short Term") -> 0 | D161: =COUNTIFS(N4:N111,"N/A",D4:D111,"Long Term") -> 0
A162: Total | B162: =SUM(B159:B161) -> 0 | C162: =SUM(C159:C161) -> 0 | D162: 0
A163: % needing BPSD documented | B163: =IFERROR(((B160/(B159+B160))*100),"---") -> --- | C163: =IFERROR(((C160/(C159+C160))*100), "---") -> --- | D163: =IFERROR(((D160/(D159+D160))*100), "---") -> ---
A168: Non drug interventions documented | B168: Total | C168: Short Stay | D168: Long Stay
A169: Yes | B169: =COUNTIFS(P4:P111,"Yes") -> 0 | C169: =COUNTIFS(P4:P111,"Yes",D4:D111,"Short Term") -> 0 | D169: =COUNTIFS(P4:P111,"Yes",D4:D111,"Long Term") -> 0
A170: No | B170: =COUNTIFS(P4:P111,"No") -> 0 | C170: =COUNTIFS(P4:P111,"No",D4:D111,"Short Term") -> 0 | D170: =COUNTIFS(P4:P111,"No",D4:D111,"Long Term") -> 0
A171: N/A | B171: =COUNTIFS(P4:P111,"N/A") -> 0 | C171: =COUNTIFS(P4:P111,"N/A",D4:D111,"Short Term") -> 0 | D171: =COUNTIFS(P4:P111,"N/A",D4:D111,"Long Term") -> 0
A172: Total | B172: =SUM(B169:B171) -> 0 | C172: =SUM(C169:C171) -> 0 | D172: 0
A173: % without non drug interventions documented | B173: =IFERROR((B170/(B169+B170))*100, "---") -> --- | C173: =IFERROR((C72/(C169+C170)*100), "---") -> --- | D173: =IFERROR((D170/(D169+D170)*100), "---") -> ---
A178: GDR Outcome | B178: Total | C178: Short Stay | D178: Long Stay
A179: Dose reduced | B179: =COUNTIFS(R4:R111,"Dose reduced") -> 0 | C179: =COUNTIFS(R4:R111,"Dose reduced",D4:D111,"Short Term") -> 0 | D179: =COUNTIFS(R4:R111,"Dose reduced",D4:D111,"Long Term") -> 0
A180: Dose discontinued | B180: =COUNTIFS(R4:R111,"Drug discontinued") -> 0 | C180: =COUNTIFS(R4:R111,"Drug discontinued",D4:D111,"Short Term") -> 0 | D180: =COUNTIFS(R4:R111,"Drug discontinued",D4:D111,"Long Term") -> 0
A181: Return to previous dose | B181: =COUNTIFS(R4:R111,"Return to previous dose") -> 0 | C181: =COUNTIFS(R4:R111,"Return to previous dose",D4:D111,"Short Term") -> 0 | D181: =COUNTIFS(R4:R111,"Return to previous dose",D4:D111,"Long Term") -> 0
A182: Total | B182: =SUM(B179:B181) -> 0 | C182: =SUM(C179:C181) -> 0 | D182: 0
A183: dose reduced or dc'd | B183: =B179+B180 -> 0 | C183: =C179+C180 -> 0 | D183: 0
A184: % dose reduction | B184: =IFERROR((B179/B182)*100, "---") -> --- | C184: =IFERROR((C179/C182)*100, "---") -> --- | D184: =IFERROR((D179/D182)*100, "---") -> ---
A185: % dose discontinued | B185: =IFERROR((B180/B182)*100, "---") -> --- | C185: =IFERROR((C180/C182)*100, "---") -> --- | D185: =IFERROR((D180/D182)*100, "---") -> ---
A186: % dose reduced or discontinued | B186: =IFERROR((B183/B182)*100, "---") -> --- | C186: =IFERROR((C183/C182)*100, "---") -> --- | D186: =IFERROR((D183/D182)*100, "---") -> ---
A191: GDR needed | B191: Total | C191: Short Stay | D191: Long Stay
A192: Yes | B192: =COUNTIFS(S4:S111,"Yes") -> 0 | C192: =COUNTIFS(S4:S111,"Yes",D4:D111,"Short Term") -> 0 | D192: =COUNTIFS(S4:S111,"Yes",D4:D111,"Long Term") -> 0
A193: No | B193: =COUNTIFS(S4:S111,"No") -> 0 | C193: =COUNTIFS(S4:S111,"No",D4:D111,"Short Term") -> 0 | D193: =COUNTIFS(S4:S111,"No",D4:D111,"Long Term") -> 0
A194: Total | B194: =SUM(B192:B193) -> 0 | C194: =SUM(C192:C193) -> 0 | D194: 0
A195: % needing GDR | B195: =IFERROR((B192/B194)*100, "---") -> --- | C195: =IFERROR((C192/C194)*100, "---") -> --- | D195: =IFERROR((D192/D194)*100, "---") -> ---
A200: Reason no GDR attempted | B200: Total | C200: Short Stay | D200: Long Stay
A201: N/A | B201: =COUNTIFS(T4:T111,"N/A") -> 0 | C201: =COUNTIFS(T4:T111,"N/A",D4:D111,"Short Term") -> 0 | D201: =COUNTIFS(T4:T111,"N/A",D4:D111,"Long Term") -> 0
A202: Resident on lowest possible dose | B202: =COUNTIFS(T4:T111,"Resident on lowest possible dose") -> 0 | C202: =COUNTIFS(T4:T111,"Resident on lowest possible dose",D4:D111,"Short Term") -> 0 | D202: =COUNTIFS(T4:T111,"Resident on lowest possible dose",D4:D111,"Long Term") -> 0
A203: Contraindicated per prescriber | B203: =COUNTIFS(T4:T111,"Contraindicated per prescriber") -> 0 | C203: =COUNTIFS(T4:T111,"Contraindicated per prescriber",D4:D111,"Short Term") -> 0 | D203: =COUNTIFS(T4:T111,"Contraindicated per prescriber",D4:D111,"Long Term") -> 0
A204: Other | B204: =COUNTIFS(T4:T111,"Other") -> 0 | C204: =COUNTIFS(T4:T111,"Other",D4:D111,"Short Term") -> 0 | D204: =COUNTIFS(T4:T111,"Other",D4:D111,"Long Term") -> 0
A205: Total | B205: =SUM(B201:B204) -> 0 | C205: =SUM(C201:C204) -> 0 | D205: 0
A206: % resident on lowest possible dose | B206: =IFERROR((B202/B205)*100, "---") -> --- | C206: =IFERROR((C202/C205)*100, "---") -> --- | D206: =IFERROR((D202/D205)*100, "---") -> ---
A207: % contraindicated per prescriber | B207: =IFERROR((B203/B205)*100, "---") -> --- | C207: =IFERROR((C203/C205)*100, "---") -> --- | D207: =IFERROR((D203/D205)*100, "---") -> ---
A208: % other | B208: =IFERROR((B204/B205)*100, "---") -> --- | C208: =IFERROR((C204/C205)*100, "---") -> --- | D208: =IFERROR((D204/D205)*100, "---") -> ---
A213: Adverse Effects | B213: Total | C213: Short Stay | D213: Long Stay
A214: Yes | B214: =COUNTIFS(U4:U111,"Yes") -> 0 | C214: =COUNTIFS(U4:U111,"Yes",D4:D111,"Short Term") -> 0 | D214: =COUNTIFS(U4:U111,"Yes",D4:D111,"Long Term") -> 0
A215: No | B215: =COUNTIFS(U4:U111,"No") -> 0 | C215: =COUNTIFS(U4:U111,"No",D4:D111,"Short Term") -> 0 | D215: =COUNTIFS(U4:U111,"No",D4:D111,"Long Term") -> 0
A216: Total | B216: =SUM(B214:B215) -> 0 | C216: =SUM(C214:C215) -> 0 | D216: 0
A217: % with adverse effects | B217: =IFERROR((B214/B216)*100, "---") -> --- | C217: =IFERROR((C214/C216)*100, "---") -> --- | D217: =IFERROR((D214/D216)*100, "---") -> ---

Sheet February
A1: End of Month Census : | E1: Current residents on antipsychotics: | G1: =SUMPRODUCT((A4:A111<>"")/COUNTIF(A4:A111,A4:A111&"")) -> 0 | H1: Percentage of residents on antipsychotic: | I1: =IFERROR((G1/D1)*100, "---") -> ---
A2: Resident Information | F2: Antipsychotic Medication Information
A3: Room # | B3: Last Name | C3: First Name | D3: Type of Stay | E3: Notes (New Admit, etc) | F3: Antipsychotic Drug Prescribed | G3: Prescriber | H3: Dose Schedule | I3: Date Started | J3: Where was medication started? | K3: Diagnosis associated with antipsychotic | L3: Is Dx Appropriate? (See directions) | M3: List BPSD | N3: Appropriate BPSD documented? | O3: List Non Drug Interventions tried | P3: Non Drug Intv documented? | Q3: Date of most recent GDR | R3: Outcome of GDR | S3: GDR Needed? | T3: Reasons for no GDR being attempted | U3: Has resident experienced adverse drug effects? | V3: If yes, describe adverse effects
BB23: =CONCATENATE(C23,B23) -> 
BB78: =CONCATENATE(C78,B78) -> 
C112: TOTALS | L112: =COUNTIF(L4:L111,"Yes") -> 0 | M112: =COUNTIF(M4:M111,"Yes") -> 0 | N112: =COUNTIF(N4:N111,"Yes") -> 0 | O112: =COUNTIF(P4:P111,"Yes") -> 0 | P112: =COUNTIF(Q4:Q111,"Yes") -> 0 | R112: =SUM(S4:S111) -> 0 | S112: =SUM(T4:T111) -> 0
A119: Type of Stay Breakdown
A120: Short Stay | B120: =COUNTIF(D4:D111,"Short Term") -> 0
A121: Long Stay | B121: =COUNTIF(D4:D111,"Long Term") -> 0
A122: Total | B122: =B120+B121 -> 0
A126: Dose Schedule | B126: Total | C126: Short Stay | D126: Long Stay
A127: Scheduled | B127: =COUNTIFS(H4:H111,"Scheduled") -> 0 | C127: =COUNTIFS(H4:H111,"Scheduled",D4:D111,"Short Term") -> 0 | D127: =COUNTIFS(H4:H111,"Scheduled",D4:D111,"Long Term") -> 0
A128: PRN | B128: =COUNTIFS(H4:H111,"PRN") -> 0 | C128: =COUNTIFS(H4:H111,"PRN",D4:D111,"Short Term") -> 0 | D128: =COUNTIFS(H4:H111,"PRN",D4:D111,"Long Term") -> 0
A129: Both | B129: =COUNTIFS(H4:H111,"Both") -> 0 | C129: =COUNTIFS(H4:H111,"Both",D4:D111,"Short Term") -> 0 | D129: =COUNTIFS(H4:H111,"Both",D4:D111,"Long Term") -> 0
A130: Total | B130: =SUM(B127:B129) -> 0 | C130: =SUM(C127:C129) -> 0 | D130: 0
A131: % on a scheduled dose | B131: =IFERROR(((B127/$B$130)*100), "---") -> --- | C131: =IFERROR(((C127/C130)*100), "---") -> --- | D131: =IFERROR(((D127/D130)*100), "---") -> ---
A132: % on a PRN dose | B132: =IFERROR(((B128/$B$130)*100), "---") -> --- | C132: =IFERROR(((C128/$C$130)*100), "---") -> --- | D132: =IFERROR(((D128/$D$130)*100), "---") -> ---
A133: % on both sched & PRN | B133: --- | C133: =IFERROR(((C129/C130)*100),"---") -> --- | D133: =IFERROR(((D129/D130)*100), "---") -> ---
A137: Where Medication Started | B137: Total | C137: Short Stay | D137: Long Stay
A138: SNF | B138: =COUNTIFS(J4:J111,"SNF") -> 0 | C138: =COUNTIFS(J4:J111,"SNF",D4:D111,"Short Term") -> 0 | D138: =COUNTIFS(J4:J111,"SNF",D4:D111,"Long Term") -> 0
A139: Hospital | B139: =COUNTIFS(J4:J111,"Hospital") -> 0 | C139: =COUNTIFS(J4:J111,"Hospital",D4:D111,"Short Term") -> 0 | D139: =COUNTIFS(J4:J111,"Hospital",D4:D111,"Long Term") -> 0
A140: Outpatient | B140: =COUNTIFS(J4:J111,"Outpatient") -> 0 | C140: =COUNTIFS(J4:J111,"Outpatient",D4:D111,"Short Term") -> 0 | D140: =COUNTIFS(J4:J111,"Outpatient",D4:D111,"Long Term") -> 0
A141: Total | B141: =SUM(B138:B140) -> 0 | C141: =SUM(C138:C140) -> 0 | D141: 0
A142: % started in SNF | B142: =IFERROR(((B138/B141)*100), "---") -> --- | C142: =IFERROR(((C138/C141)*100), "---") -> --- | D142: =IFERROR(((D138/D141)*100), "---") -> ---
A143: % started in hospital | B143: =IFERROR(((B139/B141)*100), "---") -> --- | C143: =IFERROR(((C139/C141)*100), "---") -> --- | D143: =IFERROR(((D139/D141)*100), "---") -> ---
A144: % started in outpatient | B144: =IFERROR(((B140/B141)*100), "---") -> --- | C144: =IFERROR(((C140/C141)*100), "---") -> --- | D144: =IFERROR(((D140/D141)*100), "---") -> ---
A149: Dx appropriate | B149: Total | C149: Short Stay | D149: Long Stay
A150: Yes | B150: =COUNTIFS(L4:L111,"Yes") -> 0 | C150: =COUNTIFS(L4:L111,"Yes",D4:D111,"Short Term") -> 0 | D150: =COUNTIFS(L4:L111,"Yes",D4:D111,"Long Term") -> 0
A151: No | B151: =COUNTIFS(L4:L111,"No") -> 0 | C151: =COUNTIFS(L4:L111,"No",D4:D111,"Short Term") -> 0 | D151: =COUNTIFS(L4:L111,"No",D4:D111,"Long Term") -> 0
A152: Total | B152: =SUM(B150:B151) -> 0 | C152: =SUM(C150:C151) -> 0 | D152: 0
A153: % with appropriate diagnosis | B153: =IFERROR(((B150/B152)*100), "---") -> --- | C153: =IFERROR(((C150/C152)*100), "---") -> --- | D153: =IFERROR(((D150/D152)*100), "---") -> ---
A158: BPSD documented | B158: Total | C158: Short Stay | D158: Long Stay
A159: Yes | B159: =COUNTIFS(N4:N111,"Yes") -> 0 | C159: =COUNTIFS(N4:N111,"Yes",D4:D111,"Short Term") -> 0 | D159: =COUNTIFS(N4:N111,"Yes",D4:D111,"Long Term") -> 0
A160: No | B160: =COUNTIFS(N4:N111,"No") -> 0 | C160: =COUNTIFS(N4:N111,"No",D4:D111,"Short Term") -> 0 | D160: =COUNTIFS(N4:N111,"No",D4:D111,"Long Term") -> 0
A161: N/A | B161: =COUNTIFS(N4:N111,"N/A") -> 0 | C161: =COUNTIFS(N4:N111,"N/A",D4:D111,"Short Term") -> 0 | D161: =COUNTIFS(N4:N111,"N/A",D4:D111,"Long Term") -> 0
A162: Total | B162: =SUM(B159:B161) -> 0 | C162: =SUM(C159:C161) -> 0 | D162: 0
A163: % needing BPSD documented | B163: =IFERROR(((B160/(B159+B160))*100),"---") -> --- | C163: =IFERROR(((C160/(C159+C160))*100), "---") -> --- | D163: =IFERROR(((D160/(D159+D160))*100), "---") -> ---
A168: Non drug interventions documented | B168: Total | C168: Short Stay | D168: Long Stay
A169: Yes | B169: =COUNTIFS(P4:P111,"Yes") -> 0 | C169: =COUNTIFS(P4:P111,"Yes",D4:D111,"Short Term") -> 0 | D169: =COUNTIFS(P4:P111,"Yes",D4:D111,"Long Term") -> 0
A170: No | B170: =COUNTIFS(P4:P111,"No") -> 0 | C170: =COUNTIFS(P4:P111,"No",D4:D111,"Short Term") -> 0 | D170: =COUNTIFS(P4:P111,"No",D4:D111,"Long Term") -> 0
A171: N/A | B171: =COUNTIFS(P4:P111,"N/A") -> 0 | C171: =COUNTIFS(P4:P111,"N/A",D4:D111,"Short Term") -> 0 | D171: =COUNTIFS(P4:P111,"N/A",D4:D111,"Long Term") -> 0
A172: Total | B172: =SUM(B169:B171) -> 0 | C172: =SUM(C169:C171) -> 0 | D172: 0
A173: % without non drug interventions documented | B173: =IFERROR((B170/(B169+B170))*100, "---") -> --- | C173: =IFERROR((C72/(C169+C170)*100), "---") -> --- | D173: =IFERROR((D170/(D169+D170)*100), "---") -> ---
A178: GDR Outcome | B178: Total | C178: Short Stay | D178: Long Stay
A179: Dose reduced | B179: =COUNTIFS(R4:R111,"Dose reduced") -> 0 | C179: =COUNTIFS(R4:R111,"Dose reduced",D4:D111,"Short Term") -> 0 | D179: =COUNTIFS(R4:R111,"Dose reduced",D4:D111,"Long Term") -> 0
A180: Dose discontinued | B180: =COUNTIFS(R4:R111,"Drug discontinued") -> 0 | C180: =COUNTIFS(R4:R111,"Drug discontinued",D4:D111,"Short Term") -> 0 | D180: =COUNTIFS(R4:R111,"Drug discontinued",D4:D111,"Long Term") -> 0
A181: Return to previous dose | B181: =COUNTIFS(R4:R111,"Return to previous dose") -> 0 | C181: =COUNTIFS(R4:R111,"Return to previous dose",D4:D111,"Short Term") -> 0 | D181: =COUNTIFS(R4:R111,"Return to previous dose",D4:D111,"Long Term") -> 0
A182: Total | B182: =SUM(B179:B181) -> 0 | C182: =SUM(C179:C181) -> 0 | D182: 0
A183: dose reduced or dc'd | B183: =B179+B180 -> 0 | C183: =C179+C180 -> 0 | D183: 0
A184: % dose reduction | B184: =IFERROR((B179/B182)*100, "---") -> --- | C184: =IFERROR((C179/C182)*100, "---") -> --- | D184: =IFERROR((D179/D182)*100, "---") -> ---
A185: % dose discontinued | B185: =IFERROR((B180/B182)*100, "---") -> --- | C185: =IFERROR((C180/C182)*100, "---") -> --- | D185: =IFERROR((D180/D182)*100, "---") -> ---
A186: % dose reduced or discontinued | B186: =IFERROR((B183/B182)*100, "---") -> --- | C186: =IFERROR((C183/C182)*100, "---") -> --- | D186: =IFERROR((D183/D182)*100, "---") -> ---
A191: GDR needed | B191: Total | C191: Short Stay | D191: Long Stay
A192: Yes | B192: =COUNTIFS(S4:S111,"Yes") -> 0 | C192: =COUNTIFS(S4:S111,"Yes",D4:D111,"Short Term") -> 0 | D192: =COUNTIFS(S4:S111,"Yes",D4:D111,"Long Term") -> 0
A193: No | B193: =COUNTIFS(S4:S111,"No") -> 0 | C193: =COUNTIFS(S4:S111,"No",D4:D111,"Short Term") -> 0 | D193: =COUNTIFS(S4:S111,"No",D4:D111,"Long Term") -> 0
A194: Total | B194: =SUM(B192:B193) -> 0 | C194: =SUM(C192:C193) -> 0 | D194: 0
A195: % needing GDR | B195: =IFERROR((B192/B194)*100, "---") -> --- | C195: =IFERROR((C192/C194)*100, "---") -> --- | D195: =IFERROR((D192/D194)*100, "---") -> ---
A200: Reason no GDR attempted | B200: Total | C200: Short Stay | D200: Long Stay
A201: N/A | B201: =COUNTIFS(T4:T111,"N/A") -> 0 | C201: =COUNTIFS(T4:T111,"N/A",D4:D111,"Short Term") -> 0 | D201: =COUNTIFS(T4:T111,"N/A",D4:D111,"Long Term") -> 0
A202: Resident on lowest possible dose | B202: =COUNTIFS(T4:T111,"Resident on lowest possible dose") -> 0 | C202: =COUNTIFS(T4:T111,"Resident on lowest possible dose",D4:D111,"Short Term") -> 0 | D202: =COUNTIFS(T4:T111,"Resident on lowest possible dose",D4:D111,"Long Term") -> 0
A203: Contraindicated per prescriber | B203: =COUNTIFS(T4:T111,"Contraindicated per prescriber") -> 0 | C203: =COUNTIFS(T4:T111,"Contraindicated per prescriber",D4:D111,"Short Term") -> 0 | D203: =COUNTIFS(T4:T111,"Contraindicated per prescriber",D4:D111,"Long Term") -> 0
A204: Other | B204: =COUNTIFS(T4:T111,"Other") -> 0 | C204: =COUNTIFS(T4:T111,"Other",D4:D111,"Short Term") -> 0 | D204: =COUNTIFS(T4:T111,"Other",D4:D111,"Long Term") -> 0
A205: Total | B205: =SUM(B201:B204) -> 0 | C205: =SUM(C201:C204) -> 0 | D205: 0
A206: % resident on lowest possible dose | B206: =IFERROR((B202/B205)*100, "---") -> --- | C206: =IFERROR((C202/C205)*100, "---") -> --- | D206: =IFERROR((D202/D205)*100, "---") -> ---
A207: % contraindicated per prescriber | B207: =IFERROR((B203/B205)*100, "---") -> --- | C207: =IFERROR((C203/C205)*100, "---") -> --- | D207: =IFERROR((D203/D205)*100, "---") -> ---
A208: % other | B208: =IFERROR((B204/B205)*100, "---") -> --- | C208: =IFERROR((C204/C205)*100, "---") -> --- | D208: =IFERROR((D204/D205)*100, "---") -> ---
A213: Adverse Effects | B213: Total | C213: Short Stay | D213: Long Stay
A214: Yes | B214: =COUNTIFS(U4:U111,"Yes") -> 0 | C214: =COUNTIFS(U4:U111,"Yes",D4:D111,"Short Term") -> 0 | D214: =COUNTIFS(U4:U111,"Yes",D4:D111,"Long Term") -> 0
A215: No | B215: =COUNTIFS(U4:U111,"No") -> 0 | C215: =COUNTIFS(U4:U111,"No",D4:D111,"Short Term") -> 0 | D215: =COUNTIFS(U4:U111,"No",D4:D111,"Long Term") -> 0
A216: Total | B216: =SUM(B214:B215) -> 0 | C216: =SUM(C214:C215) -> 0 | D216: 0
A217: % with adverse effects | B217: =IFERROR((B214/B216)*100, "---") -> --- | C217: =IFERROR((C214/C216)*100, "---") -> --- | D217: =IFERROR((D214/D216)*100, "---") -> ---

Sheet March
A1: End of Month Census : | E1: Current residents on antipsychotics: | G1: =SUMPRODUCT((A4:A111<>"")/COUNTIF(A4:A111,A4:A111&"")) -> 0 | H1: Percentage of residents on antipsychotic: | I1: =IFERROR((G1/D1)*100, "---") -> ---
A2: Resident Information | F2: Antipsychotic Medication Information
A3: Room # | B3: Last Name | C3: First Name | D3: Type of Stay | E3: Notes (New Admit, etc) | F3: Antipsychotic Drug Prescribed | G3: Prescriber | H3: Dose Schedule | I3: Date Started | J3: Where was medication started? | K3: Diagnosis associated with antipsychotic | L3: Is Dx Appropriate? (See directions) | M3: List BPSD | N3: Appropriate BPSD documented? | O3: List Non Drug Interventions tried | P3: Non Drug Intv documented? | Q3: Date of most recent GDR | R3: Outcome of GDR | S3: GDR Needed? | T3: Reasons for no GDR being attempted | U3: Has resident experienced adverse drug effects? | V3: If yes, describe adverse effects
BB14: =CONCATENATE(C14,B14) -> 
BB78: =CONCATENATE(C78,B78) -> 
C112: TOTALS | L112: =COUNTIF(L4:L111,"Yes") -> 0 | M112: =COUNTIF(M4:M111,"Yes") -> 0 | N112: =COUNTIF(N4:N111,"Yes") -> 0 | O112: =COUNTIF(P4:P111,"Yes") -> 0 | P112: =COUNTIF(Q4:Q111,"Yes") -> 0 | R112: =SUM(S4:S111) -> 0 | S112: =SUM(T4:T111) -> 0
A119: Type of Stay Breakdown
A120: Short Stay | B120: =COUNTIF(D4:D111,"Short Term") -> 0
A121: Long Stay | B121: =COUNTIF(D4:D111,"Long Term") -> 0
A122: Total | B122: =B120+B121 -> 0
A126: Dose Schedule | B126: Total | C126: Short Stay | D126: Long Stay
A127: Scheduled | B127: =COUNTIFS(H4:H111,"Scheduled") -> 0 | C127: =COUNTIFS(H4:H111,"Scheduled",D4:D111,"Short Term") -> 0 | D127: =COUNTIFS(H4:H111,"Scheduled",D4:D111,"Long Term") -> 0
A128: PRN | B128: =COUNTIFS(H4:H111,"PRN") -> 0 | C128: =COUNTIFS(H4:H111,"PRN",D4:D111,"Short Term") -> 0 | D128: =COUNTIFS(H4:H111,"PRN",D4:D111,"Long Term") -> 0
A129: Both | B129: =COUNTIFS(H4:H111,"Both") -> 0 | C129: =COUNTIFS(H4:H111,"Both",D4:D111,"Short Term") -> 0 | D129: =COUNTIFS(H4:H111,"Both",D4:D111,"Long Term") -> 0
A130: Total | B130: =SUM(B127:B129) -> 0 | C130: =SUM(C127:C129) -> 0 | D130: 0
A131: % on a scheduled dose | B131: =IFERROR(((B127/$B$130)*100), "---") -> --- | C131: =IFERROR(((C127/C130)*100), "---") -> --- | D131: =IFERROR(((D127/D130)*100), "---") -> ---
A132: % on a PRN dose | B132: =IFERROR(((B128/$B$130)*100), "---") -> --- | C132: =IFERROR(((C128/$C$130)*100), "---") -> --- | D132: =IFERROR(((D128/$D$130)*100), "---") -> ---
A133: % on both sched & PRN | B133: --- | C133: =IFERROR(((C129/C130)*100),"---") -> --- | D133: =IFERROR(((D129/D130)*100), "---") -> ---
A137: Where Medication Started | B137: Total | C137: Short Stay | D137: Long Stay
A138: SNF | B138: =COUNTIFS(J4:J111,"SNF") -> 0 | C138: =COUNTIFS(J4:J111,"SNF",D4:D111,"Short Term") -> 0 | D138: =COUNTIFS(J4:J111,"SNF",D4:D111,"Long Term") -> 0
A139: Hospital | B139: =COUNTIFS(J4:J111,"Hospital") -> 0 | C139: =COUNTIFS(J4:J111,"Hospital",D4:D111,"Short Term") -> 0 | D139: =COUNTIFS(J4:J111,"Hospital",D4:D111,"Long Term") -> 0
A140: Outpatient | B140: =COUNTIFS(J4:J111,"Outpatient") -> 0 | C140: =COUNTIFS(J4:J111,"Outpatient",D4:D111,"Short Term") -> 0 | D140: =COUNTIFS(J4:J111,"Outpatient",D4:D111,"Long Term") -> 0
A141: Total | B141: =SUM(B138:B140) -> 0 | C141: =SUM(C138:C140) -> 0 | D141: 0
A142: % started in SNF | B142: =IFERROR(((B138/B141)*100), "---") -> --- | C142: =IFERROR(((C138/C141)*100), "---") -> --- | D142: =IFERROR(((D138/D141)*100), "---") -> ---
A143: % started in hospital | B143: =IFERROR(((B139/B141)*100), "---") -> --- | C143: =IFERROR(((C139/C141)*100), "---") -> --- | D143: =IFERROR(((D139/D141)*100), "---") -> ---
A144: % started in outpatient | B144: =IFERROR(((B140/B141)*100), "---") -> --- | C144: =IFERROR(((C140/C141)*100), "---") -> --- | D144: =IFERROR(((D140/D141)*100), "---") -> ---
A149: Dx appropriate | B149: Total | C149: Short Stay | D149: Long Stay
A150: Yes | B150: =COUNTIFS(L4:L111,"Yes") -> 0 | C150: =COUNTIFS(L4:L111,"Yes",D4:D111,"Short Term") -> 0 | D150: =COUNTIFS(L4:L111,"Yes",D4:D111,"Long Term") -> 0
A151: No | B151: =COUNTIFS(L4:L111,"No") -> 0 | C151: =COUNTIFS(L4:L111,"No",D4:D111,"Short Term") -> 0 | D151: =COUNTIFS(L4:L111,"No",D4:D111,"Long Term") -> 0
A152: Total | B152: =SUM(B150:B151) -> 0 | C152: =SUM(C150:C151) -> 0 | D152: 0
A153: % with appropriate diagnosis | B153: =IFERROR(((B150/B152)*100), "---") -> --- | C153: =IFERROR(((C150/C152)*100), "---") -> --- | D153: =IFERROR(((D150/D152)*100), "---") -> ---
A158: BPSD documented | B158: Total | C158: Short Stay | D158: Long Stay
A159: Yes | B159: =COUNTIFS(N4:N111,"Yes") -> 0 | C159: =COUNTIFS(N4:N111,"Yes",D4:D111,"Short Term") -> 0 | D159: =COUNTIFS(N4:N111,"Yes",D4:D111,"Long Term") -> 0
A160: No | B160: =COUNTIFS(N4:N111,"No") -> 0 | C160: =COUNTIFS(N4:N111,"No",D4:D111,"Short Term") -> 0 | D160: =COUNTIFS(N4:N111,"No",D4:D111,"Long Term") -> 0
A161: N/A | B161: =COUNTIFS(N4:N111,"N/A") -> 0 | C161: =COUNTIFS(N4:N111,"N/A",D4:D111,"Short Term") -> 0 | D161: =COUNTIFS(N4:N111,"N/A",D4:D111,"Long Term") -> 0
A162: Total | B162: =SUM(B159:B161) -> 0 | C162: =SUM(C159:C161) -> 0 | D162: 0
A163: % needing BPSD documented | B163: =IFERROR(((B160/(B159+B160))*100),"---") -> --- | C163: =IFERROR(((C160/(C159+C160))*100), "---") -> --- | D163: =IFERROR(((D160/(D159+D160))*100), "---") -> ---
A168: Non drug interventions documented | B168: Total | C168: Short Stay | D168: Long Stay
A169: Yes | B169: =COUNTIFS(P4:P111,"Yes") -> 0 | C169: =COUNTIFS(P4:P111,"Yes",D4:D111,"Short Term") -> 0 | D169: =COUNTIFS(P4:P111,"Yes",D4:D111,"Long Term") -> 0
A170: No | B170: =COUNTIFS(P4:P111,"No") -> 0 | C170: =COUNTIFS(P4:P111,"No",D4:D111,"Short Term") -> 0 | D170: =COUNTIFS(P4:P111,"No",D4:D111,"Long Term") -> 0
A171: N/A | B171: =COUNTIFS(P4:P111,"N/A") -> 0 | C171: =COUNTIFS(P4:P111,"N/A",D4:D111,"Short Term") -> 0 | D171: =COUNTIFS(P4:P111,"N/A",D4:D111,"Long Term") -> 0
A172: Total | B172: =SUM(B169:B171) -> 0 | C172: =SUM(C169:C171) -> 0 | D172: 0
A173: % without non drug interventions documented | B173: =IFERROR((B170/(B169+B170))*100, "---") -> --- | C173: =IFERROR((C72/(C169+C170)*100), "---") -> --- | D173: =IFERROR((D170/(D169+D170)*100), "---") -> ---
A178: GDR Outcome | B178: Total | C178: Short Stay | D178: Long Stay
A179: Dose reduced | B179: =COUNTIFS(R4:R111,"Dose reduced") -> 0 | C179: =COUNTIFS(R4:R111,"Dose reduced",D4:D111,"Short Term") -> 0 | D179: =COUNTIFS(R4:R111,"Dose reduced",D4:D111,"Long Term") -> 0
A180: Dose discontinued | B180: =COUNTIFS(R4:R111,"Drug discontinued") -> 0 | C180: =COUNTIFS(R4:R111,"Drug discontinued",D4:D111,"Short Term") -> 0 | D180: =COUNTIFS(R4:R111,"Drug discontinued",D4:D111,"Long Term") -> 0
A181: Return to previous dose | B181: =COUNTIFS(R4:R111,"Return to previous dose") -> 0 | C181: =COUNTIFS(R4:R111,"Return to previous dose",D4:D111,"Short Term") -> 0 | D181: =COUNTIFS(R4:R111,"Return to previous dose",D4:D111,"Long Term") -> 0
A182: Total | B182: =SUM(B179:B181) -> 0 | C182: =SUM(C179:C181) -> 0 | D182: 0
A183: dose reduced or dc'd | B183: =B179+B180 -> 0 | C183: =C179+C180 -> 0 | D183: 0
A184: % dose reduction | B184: =IFERROR((B179/B182)*100, "---") -> --- | C184: =IFERROR((C179/C182)*100, "---") -> --- | D184: =IFERROR((D179/D182)*100, "---") -> ---
A185: % dose discontinued | B185: =IFERROR((B180/B182)*100, "---") -> --- | C185: =IFERROR((C180/C182)*100, "---") -> --- | D185: =IFERROR((D180/D182)*100, "---") -> ---
A186: % dose reduced or discontinued | B186: =IFERROR((B183/B182)*100, "---") -> --- | C186: =IFERROR((C183/C182)*100, "---") -> --- | D186: =IFERROR((D183/D182)*100, "---") -> ---
A191: GDR needed | B191: Total | C191: Short Stay | D191: Long Stay
A192: Yes | B192: =COUNTIFS(S4:S111,"Yes") -> 0 | C192: =COUNTIFS(S4:S111,"Yes",D4:D111,"Short Term") -> 0 | D192: =COUNTIFS(S4:S111,"Yes",D4:D111,"Long Term") -> 0
A193: No | B193: =COUNTIFS(S4:S111,"No") -> 0 | C193: =COUNTIFS(S4:S111,"No",D4:D111,"Short Term") -> 0 | D193: =COUNTIFS(S4:S111,"No",D4:D111,"Long Term") -> 0
A194: Total | B194: =SUM(B192:B193) -> 0 | C194: =SUM(C192:C193) -> 0 | D194: 0
A195: % needing GDR | B195: =IFERROR((B192/B194)*100, "---") -> --- | C195: =IFERROR((C192/C194)*100, "---") -> --- | D195: =IFERROR((D192/D194)*100, "---") -> ---
A200: Reason no GDR attempted | B200: Total | C200: Short Stay | D200: Long Stay
A201: N/A | B201: =COUNTIFS(T4:T111,"N/A") -> 0 | C201: =COUNTIFS(T4:T111,"N/A",D4:D111,"Short Term") -> 0 | D201: =COUNTIFS(T4:T111,"N/A",D4:D111,"Long Term") -> 0
A202: Resident on lowest possible dose | B202: =COUNTIFS(T4:T111,"Resident on lowest possible dose") -> 0 | C202: =COUNTIFS(T4:T111,"Resident on lowest possible dose",D4:D111,"Short Term") -> 0 | D202: =COUNTIFS(T4:T111,"Resident on lowest possible dose",D4:D111,"Long Term") -> 0
A203: Contraindicated per prescriber | B203: =COUNTIFS(T4:T111,"Contraindicated per prescriber") -> 0 | C203: =COUNTIFS(T4:T111,"Contraindicated per prescriber",D4:D111,"Short Term") -> 0 | D203: =COUNTIFS(T4:T111,"Contraindicated per prescriber",D4:D111,"Long Term") -> 0
A204: Other | B204: =COUNTIFS(T4:T111,"Other") -> 0 | C204: =COUNTIFS(T4:T111,"Other",D4:D111,"Short Term") -> 0 | D204: =COUNTIFS(T4:T111,"Other",D4:D111,"Long Term") -> 0
A205: Total | B205: =SUM(B201:B204) -> 0 | C205: =SUM(C201:C204) -> 0 | D205: 0
A206: % resident on lowest possible dose | B206: =IFERROR((B202/B205)*100, "---") -> --- | C206: =IFERROR((C202/C205)*100, "---") -> --- | D206: =IFERROR((D202/D205)*100, "---") -> ---
A207: % contraindicated per prescriber | B207: =IFERROR((B203/B205)*100, "---") -> --- | C207: =IFERROR((C203/C205)*100, "---") -> --- | D207: =IFERROR((D203/D205)*100, "---") -> ---
A208: % other | B208: =IFERROR((B204/B205)*100, "---") -> --- | C208: =IFERROR((C204/C205)*100, "---") -> --- | D208: =IFERROR((D204/D205)*100, "---") -> ---
A213: Adverse Effects | B213: Total | C213: Short Stay | D213: Long Stay
A214: Yes | B214: =COUNTIFS(U4:U111,"Yes") -> 0 | C214: =COUNTIFS(U4:U111,"Yes",D4:D111,"Short Term") -> 0 | D214: =COUNTIFS(U4:U111,"Yes",D4:D111,"Long Term") -> 0
A215: No | B215: =COUNTIFS(U4:U111,"No") -> 0 | C215: =COUNTIFS(U4:U111,"No",D4:D111,"Short Term") -> 0 | D215: =COUNTIFS(U4:U111,"No",D4:D111,"Long Term") -> 0
A216: Total | B216: =SUM(B214:B215) -> 0 | C216: =SUM(C214:C215) -> 0 | D216: 0
A217: % with adverse effects | B217: =IFERROR((B214/B216)*100, "---") -> --- | C217: =IFERROR((C214/C216)*100, "---") -> --- | D217: =IFERROR((D214/D216)*100, "---") -> ---

Sheet April
A1: End of Month Census : | E1: Current residents on antipsychotics: | G1: =SUMPRODUCT((A4:A111<>"")/COUNTIF(A4:A111,A4:A111&"")) -> 0 | H1: Percentage of residents on antipsychotic: | I1: =IFERROR((G1/D1)*100, "---") -> ---
A2: Resident Information | F2: Antipsychotic Medication Information
A3: Room # | B3: Last Name | C3: First Name | D3: Type of Stay | E3: Notes (New Admit, etc) | F3: Antipsychotic Drug Prescribed | G3: Prescriber | H3: Dose Schedule | I3: Date Started | J3: Where was medication started? | K3: Diagnosis associated with antipsychotic | L3: Is Dx Appropriate? (See directions) | M3: List BPSD | N3: Appropriate BPSD documented? | O3: List Non Drug Interventions tried | P3: Non Drug Intv documented? | Q3: Date of most recent GDR | R3: Outcome of GDR | S3: GDR Needed? | T3: Reasons for no GDR being attempted | U3: Has resident experienced adverse drug effects? | V3: If yes, describe adverse effects
BB14: =CONCATENATE(C14,B14) -> 
BB78: =CONCATENATE(C78,B78) -> 
C112: TOTALS | L112: =COUNTIF(L4:L111,"Yes") -> 0 | M112: =COUNTIF(M4:M111,"Yes") -> 0 | N112: =COUNTIF(N4:N111,"Yes") -> 0 | O112: =COUNTIF(P4:P111,"Yes") -> 0 | P112: =COUNTIF(Q4:Q111,"Yes") -> 0 | R112: =SUM(S4:S111) -> 0 | S112: =SUM(T4:T111) -> 0
A119: Type of Stay Breakdown
A120: Short Stay | B120: =COUNTIF(D4:D111,"Short Term") -> 0
A121: Long Stay | B121: =COUNTIF(D4:D111,"Long Term") -> 0
A122: Total | B122: =B120+B121 -> 0
A126: Dose Schedule | B126: Total | C126: Short Stay | D126: Long Stay
A127: Scheduled | B127: =COUNTIFS(H4:H111,"Scheduled") -> 0 | C127: =COUNTIFS(H4:H111,"Scheduled",D4:D111,"Short Term") -> 0 | D127: =COUNTIFS(H4:H111,"Scheduled",D4:D111,"Long Term") -> 0
A128: PRN | B128: =COUNTIFS(H4:H111,"PRN") -> 0 | C128: =COUNTIFS(H4:H111,"PRN",D4:D111,"Short Term") -> 0 | D128: =COUNTIFS(H4:H111,"PRN",D4:D111,"Long Term") -> 0
A129: Both | B129: =COUNTIFS(H4:H111,"Both") -> 0 | C129: =COUNTIFS(H4:H111,"Both",D4:D111,"Short Term") -> 0 | D129: =COUNTIFS(H4:H111,"Both",D4:D111,"Long Term") -> 0
A130: Total | B130: =SUM(B127:B129) -> 0 | C130: =SUM(C127:C129) -> 0 | D130: 0
A131: % on a scheduled dose | B131: =IFERROR(((B127/$B$130)*100), "---") -> --- | C131: =IFERROR(((C127/C130)*100), "---") -> --- | D131: =IFERROR(((D127/D130)*100), "---") -> ---
A132: % on a PRN dose | B132: =IFERROR(((B128/$B$130)*100), "---") -> --- | C132: =IFERROR(((C128/$C$130)*100), "---") -> --- | D132: =IFERROR(((D128/$D$130)*100), "---") -> ---
A133: % on both sched & PRN | B133: --- | C133: =IFERROR(((C129/C130)*100),"---") -> --- | D133: =IFERROR(((D129/D130)*100), "---") -> ---
A137: Where Medication Started | B137: Total | C137: Short Stay | D137: Long Stay
A138: SNF | B138: =COUNTIFS(J4:J111,"SNF") -> 0 | C138: =COUNTIFS(J4:J111,"SNF",D4:D111,"Short Term") -> 0 | D138: =COUNTIFS(J4:J111,"SNF",D4:D111,"Long Term") -> 0
A139: Hospital | B139: =COUNTIFS(J4:J111,"Hospital") -> 0 | C139: =COUNTIFS(J4:J111,"Hospital",D4:D111,"Short Term") -> 0 | D139: =COUNTIFS(J4:J111,"Hospital",D4:D111,"Long Term") -> 0
A140: Outpatient | B140: =COUNTIFS(J4:J111,"Outpatient") -> 0 | C140: =COUNTIFS(J4:J111,"Outpatient",D4:D111,"Short Term") -> 0 | D140: =COUNTIFS(J4:J111,"Outpatient",D4:D111,"Long Term") -> 0
A141: Total | B141: =SUM(B138:B140) -> 0 | C141: =SUM(C138:C140) -> 0 | D141: 0
A142: % started in SNF | B142: =IFERROR(((B138/B141)*100), "---") -> --- | C142: =IFERROR(((C138/C141)*100), "---") -> --- | D142: =IFERROR(((D138/D141)*100), "---") -> ---
A143: % started in hospital | B143: =IFERROR(((B139/B141)*100), "---") -> --- | C143: =IFERROR(((C139/C141)*100), "---") -> --- | D143: =IFERROR(((D139/D141)*100), "---") -> ---
A144: % started in outpatient | B144: =IFERROR(((B140/B141)*100), "---") -> --- | C144: =IFERROR(((C140/C141)*100), "---") -> --- | D144: =IFERROR(((D140/D141)*100), "---") -> ---
A149: Dx appropriate | B149: Total | C149: Short Stay | D149: Long Stay
A150: Yes | B150: =COUNTIFS(L4:L111,"Yes") -> 0 | C150: =COUNTIFS(L4:L111,"Yes",D4:D111,"Short Term") -> 0 | D150: =COUNTIFS(L4:L111,"Yes",D4:D111,"Long Term") -> 0
A151: No | B151: =COUNTIFS(L4:L111,"No") -> 0 | C151: =COUNTIFS(L4:L111,"No",D4:D111,"Short Term") -> 0 | D151: =COUNTIFS(L4:L111,"No",D4:D111,"Long Term") -> 0
A152: Total | B152: =SUM(B150:B151) -> 0 | C152: =SUM(C150:C151) -> 0 | D152: 0
A153: % with appropriate diagnosis | B153: =IFERROR(((B150/B152)*100), "---") -> --- | C153: =IFERROR(((C150/C152)*100), "---") -> --- | D153: =IFERROR(((D150/D152)*100), "---") -> ---
A158: BPSD documented | B158: Total | C158: Short Stay | D158: Long Stay
A159: Yes | B159: =COUNTIFS(N4:N111,"Yes") -> 0 | C159: =COUNTIFS(N4:N111,"Yes",D4:D111,"Short Term") -> 0 | D159: =COUNTIFS(N4:N111,"Yes",D4:D111,"Long Term") -> 0
A160: No | B160: =COUNTIFS(N4:N111,"No") -> 0 | C160: =COUNTIFS(N4:N111,"No",D4:D111,"Short Term") -> 0 | D160: =COUNTIFS(N4:N111,"No",D4:D111,"Long Term") -> 0
A161: N/A | B161: =COUNTIFS(N4:N111,"N/A") -> 0 | C161: =COUNTIFS(N4:N111,"N/A",D4:D111,"Short Term") -> 0 | D161: =COUNTIFS(N4:N111,"N/A",D4:D111,"Long Term") -> 0
A162: Total | B162: =SUM(B159:B161) -> 0 | C162: =SUM(C159:C161) -> 0 | D162: 0
A163: % needing BPSD documented | B163: =IFERROR(((B160/(B159+B160))*100),"---") -> --- | C163: =IFERROR(((C160/(C159+C160))*100), "---") -> --- | D163: =IFERROR(((D160/(D159+D160))*100), "---") -> ---
A168: Non drug interventions documented | B168: Total | C168: Short Stay | D168: Long Stay
A169: Yes | B169: =COUNTIFS(P4:P111,"Yes") -> 0 | C169: =COUNTIFS(P4:P111,"Yes",D4:D111,"Short Term") -> 0 | D169: =COUNTIFS(P4:P111,"Yes",D4:D111,"Long Term") -> 0
A170: No | B170: =COUNTIFS(P4:P111,"No") -> 0 | C170: =COUNTIFS(P4:P111,"No",D4:D111,"Short Term") -> 0 | D170: =COUNTIFS(P4:P111,"No",D4:D111,"Long Term") -> 0
A171: N/A | B171: =COUNTIFS(P4:P111,"N/A") -> 0 | C171: =COUNTIFS(P4:P111,"N/A",D4:D111,"Short Term") -> 0 | D171: =COUNTIFS(P4:P111,"N/A",D4:D111,"Long Term") -> 0
A172: Total | B172: =SUM(B169:B171) -> 0 | C172: =SUM(C169:C171) -> 0 | D172: 0
A173: % without non drug interventions documented | B173: =IFERROR((B170/(B169+B170))*100, "---") -> --- | C173: =IFERROR((C72/(C169+C170)*100), "---") -> --- | D173: =IFERROR((D170/(D169+D170)*100), "---") -> ---
A178: GDR Outcome | B178: Total | C178: Short Stay | D178: Long Stay
A179: Dose reduced | B179: =COUNTIFS(R4:R111,"Dose reduced") -> 0 | C179: =COUNTIFS(R4:R111,"Dose reduced",D4:D111,"Short Term") -> 0 | D179: =COUNTIFS(R4:R111,"Dose reduced",D4:D111,"Long Term") -> 0
A180: Dose discontinued | B180: =COUNTIFS(R4:R111,"Drug discontinued") -> 0 | C180: =COUNTIFS(R4:R111,"Drug discontinued",D4:D111,"Short Term") -> 0 | D180: =COUNTIFS(R4:R111,"Drug discontinued",D4:D111,"Long Term") -> 0
A181: Return to previous dose | B181: =COUNTIFS(R4:R111,"Return to previous dose") -> 0 | C181: =COUNTIFS(R4:R111,"Return to previous dose",D4:D111,"Short Term") -> 0 | D181: =COUNTIFS(R4:R111,"Return to previous dose",D4:D111,"Long Term") -> 0
A182: Total | B182: =SUM(B179:B181) -> 0 | C182: =SUM(C179:C181) -> 0 | D182: 0
A183: dose reduced or dc'd | B183: =B179+B180 -> 0 | C183: =C179+C180 -> 0 | D183: 0
A184: % dose reduction | B184: =IFERROR((B179/B182)*100, "---") -> --- | C184: =IFERROR((C179/C182)*100, "---") -> --- | D184: =IFERROR((D179/D182)*100, "---") -> ---
A185: % dose discontinued | B185: =IFERROR((B180/B182)*100, "---") -> --- | C185: =IFERROR((C180/C182)*100, "---") -> --- | D185: =IFERROR((D180/D182)*100, "---") -> ---
A186: % dose reduced or discontinued | B186: =IFERROR((B183/B182)*100, "---") -> --- | C186: =IFERROR((C183/C182)*100, "---") -> --- | D186: =IFERROR((D183/D182)*100, "---") -> ---
A191: GDR needed | B191: Total | C191: Short Stay | D191: Long Stay
A192: Yes | B192: =COUNTIFS(S4:S111,"Yes") -> 0 | C192: =COUNTIFS(S4:S111,"Yes",D4:D111,"Short Term") -> 0 | D192: =COUNTIFS(S4:S111,"Yes",D4:D111,"Long Term") -> 0
A193: No | B193: =COUNTIFS(S4:S111,"No") -> 0 | C193: =COUNTIFS(S4:S111,"No",D4:D111,"Short Term") -> 0 | D193: =COUNTIFS(S4:S111,"No",D4:D111,"Long Term") -> 0
A194: Total | B194: =SUM(B192:B193) -> 0 | C194: =SUM(C192:C193) -> 0 | D194: 0
A195: % needing GDR | B195: =IFERROR((B192/B194)*100, "---") -> --- | C195: =IFERROR((C192/C194)*100, "---") -> --- | D195: =IFERROR((D192/D194)*100, "---") -> ---
A200: Reason no GDR attempted | B200: Total | C200: Short Stay | D200: Long Stay
A201: N/A | B201: =COUNTIFS(T4:T111,"N/A") -> 0 | C201: =COUNTIFS(T4:T111,"N/A",D4:D111,"Short Term") -> 0 | D201: =COUNTIFS(T4:T111,"N/A",D4:D111,"Long Term") -> 0
A202: Resident on lowest possible dose | B202: =COUNTIFS(T4:T111,"Resident on lowest possible dose") -> 0 | C202: =COUNTIFS(T4:T111,"Resident on lowest possible dose",D4:D111,"Short Term") -> 0 | D202: =COUNTIFS(T4:T111,"Resident on lowest possible dose",D4:D111,"Long Term") -> 0
A203: Contraindicated per prescriber | B203: =COUNTIFS(T4:T111,"Contraindicated per prescriber") -> 0 | C203: =COUNTIFS(T4:T111,"Contraindicated per prescriber",D4:D111,"Short Term") -> 0 | D203: =COUNTIFS(T4:T111,"Contraindicated per prescriber",D4:D111,"Long Term") -> 0
A204: Other | B204: =COUNTIFS(T4:T111,"Other") -> 0 | C204: =COUNTIFS(T4:T111,"Other",D4:D111,"Short Term") -> 0 | D204: =COUNTIFS(T4:T111,"Other",D4:D111,"Long Term") -> 0
A205: Total | B205: =SUM(B201:B204) -> 0 | C205: =SUM(C201:C204) -> 0 | D205: 0
A206: % resident on lowest possible dose | B206: =IFERROR((B202/B205)*100, "---") -> --- | C206: =IFERROR((C202/C205)*100, "---") -> --- | D206: =IFERROR((D202/D205)*100, "---") -> ---
A207: % contraindicated per prescriber | B207: =IFERROR((B203/B205)*100, "---") -> --- | C207: =IFERROR((C203/C205)*100, "---") -> --- | D207: =IFERROR((D203/D205)*100, "---") -> ---
A208: % other | B208: =IFERROR((B204/B205)*100, "---") -> --- | C208: =IFERROR((C204/C205)*100, "---") -> --- | D208: =IFERROR((D204/D205)*100, "---") -> ---
A213: Adverse Effects | B213: Total | C213: Short Stay | D213: Long Stay
A214: Yes | B214: =COUNTIFS(U4:U111,"Yes") -> 0 | C214: =COUNTIFS(U4:U111,"Yes",D4:D111,"Short Term") -> 0 | D214: =COUNTIFS(U4:U111,"Yes",D4:D111,"Long Term") -> 0
A215: No | B215: =COUNTIFS(U4:U111,"No") -> 0 | C215: =COUNTIFS(U4:U111,"No",D4:D111,"Short Term") -> 0 | D215: =COUNTIFS(U4:U111,"No",D4:D111,"Long Term") -> 0
A216: Total | B216: =SUM(B214:B215) -> 0 | C216: =SUM(C214:C215) -> 0 | D216: 0
A217: % with adverse effects | B217: =IFERROR((B214/B216)*100, "---") -> --- | C217: =IFERROR((C214/C216)*100, "---") -> --- | D217: =IFERROR((D214/D216)*100, "---") -> ---

Sheet May
A1: End of Month Census : | E1: Current residents on antipsychotics: | G1: =SUMPRODUCT((A4:A111<>"")/COUNTIF(A4:A111,A4:A111&"")) -> 0 | H1: Percentage of residents on antipsychotic: | I1: =IFERROR((G1/D1)*100, "---") -> ---
A2: Resident Information | F2: Antipsychotic Medication Information
A3: Room # | B3: Last Name | C3: First Name | D3: Type of Stay | E3: Notes (New Admit, etc) | F3: Antipsychotic Drug Prescribed | G3: Prescriber | H3: Dose Schedule | I3: Date Started | J3: Where was medication started? | K3: Diagnosis associated with antipsychotic | L3: Is Dx Appropriate? (See directions) | M3: List BPSD | N3: Appropriate BPSD documented? | O3: List Non Drug Interventions tried | P3: Non Drug Intv documented? | Q3: Date of most recent GDR | R3: Outcome of GDR | S3: GDR Needed? | T3: Reasons for no GDR being attempted | U3: Has resident experienced adverse drug effects? | V3: If yes, describe adverse effects
BB14: =CONCATENATE(C14,B14) -> 
BB78: =CONCATENATE(C78,B78) -> 
C112: TOTALS | L112: =COUNTIF(L4:L111,"Yes") -> 0 | M112: =COUNTIF(M4:M111,"Yes") -> 0 | N112: =COUNTIF(N4:N111,"Yes") -> 0 | O112: =COUNTIF(P4:P111,"Yes") -> 0 | P112: =COUNTIF(Q4:Q111,"Yes") -> 0 | R112: =SUM(S4:S111) -> 0 | S112: =SUM(T4:T111) -> 0
A119: Type of Stay Breakdown
A120: Short Stay | B120: =COUNTIF(D4:D111,"Short Term") -> 0
A121: Long Stay | B121: =COUNTIF(D4:D111,"Long Term") -> 0
A122: Total | B122: =B120+B121 -> 0
A126: Dose Schedule | B126: Total | C126: Short Stay | D126: Long Stay
A127: Scheduled | B127: =COUNTIFS(H4:H111,"Scheduled") -> 0 | C127: =COUNTIFS(H4:H111,"Scheduled",D4:D111,"Short Term") -> 0 | D127: =COUNTIFS(H4:H111,"Scheduled",D4:D111,"Long Term") -> 0
A128: PRN | B128: =COUNTIFS(H4:H111,"PRN") -> 0 | C128: =COUNTIFS(H4:H111,"PRN",D4:D111,"Short Term") -> 0 | D128: =COUNTIFS(H4:H111,"PRN",D4:D111,"Long Term") -> 0
A129: Both | B129: =COUNTIFS(H4:H111,"Both") -> 0 | C129: =COUNTIFS(H4:H111,"Both",D4:D111,"Short Term") -> 0 | D129: =COUNTIFS(H4:H111,"Both",D4:D111,"Long Term") -> 0
A130: Total | B130: =SUM(B127:B129) -> 0 | C130: =SUM(C127:C129) -> 0 | D130: 0
A131: % on a scheduled dose | B131: =IFERROR(((B127/$B$130)*100), "---") -> --- | C131: =IFERROR(((C127/C130)*100), "---") -> --- | D131: =IFERROR(((D127/D130)*100), "---") -> ---
A132: % on a PRN dose | B132: =IFERROR(((B128/$B$130)*100), "---") -> --- | C132: =IFERROR(((C128/$C$130)*100), "---") -> --- | D132: =IFERROR(((D128/$D$130)*100), "---") -> ---
A133: % on both sched & PRN | B133: --- | C133: =IFERROR(((C129/C130)*100),"---") -> --- | D133: =IFERROR(((D129/D130)*100), "---") -> ---
A137: Where Medication Started | B137: Total | C137: Short Stay | D137: Long Stay
A138: SNF | B138: =COUNTIFS(J4:J111,"SNF") -> 0 | C138: =COUNTIFS(J4:J111,"SNF",D4:D111,"Short Term") -> 0 | D138: =COUNTIFS(J4:J111,"SNF",D4:D111,"Long Term") -> 0
A139: Hospital | B139: =COUNTIFS(J4:J111,"Hospital") -> 0 | C139: =COUNTIFS(J4:J111,"Hospital",D4:D111,"Short Term") -> 0 | D139: =COUNTIFS(J4:J111,"Hospital",D4:D111,"Long Term") -> 0
A140: Outpatient | B140: =COUNTIFS(J4:J111,"Outpatient") -> 0 | C140: =COUNTIFS(J4:J111,"Outpatient",D4:D111,"Short Term") -> 0 | D140: =COUNTIFS(J4:J111,"Outpatient",D4:D111,"Long Term") -> 0
A141: Total | B141: =SUM(B138:B140) -> 0 | C141: =SUM(C138:C140) -> 0 | D141: 0
A142: % started in SNF | B142: =IFERROR(((B138/B141)*100), "---") -> --- | C142: =IFERROR(((C138/C141)*100), "---") -> --- | D142: =IFERROR(((D138/D141)*100), "---") -> ---
A143: % started in hospital | B143: =IFERROR(((B139/B141)*100), "---") -> --- | C143: =IFERROR(((C139/C141)*100), "---") -> --- | D143: =IFERROR(((D139/D141)*100), "---") -> ---
A144: % started in outpatient | B144: =IFERROR(((B140/B141)*100), "---") -> --- | C144: =IFERROR(((C140/C141)*100), "---") -> --- | D144: =IFERROR(((D140/D141)*100), "---") -> ---
A149: Dx appropriate | B149: Total | C149: Short Stay | D149: Long Stay
A150: Yes | B150: =COUNTIFS(L4:L111,"Yes") -> 0 | C150: =COUNTIFS(L4:L111,"Yes",D4:D111,"Short Term") -> 0 | D150: =COUNTIFS(L4:L111,"Yes",D4:D111,"Long Term") -> 0
A151: No | B151: =COUNTIFS(L4:L111,"No") -> 0 | C151: =COUNTIFS(L4:L111,"No",D4:D111,"Short Term") -> 0 | D151: =COUNTIFS(L4:L111,"No",D4:D111,"Long Term") -> 0
A152: Total | B152: =SUM(B150:B151) -> 0 | C152: =SUM(C150:C151) -> 0 | D152: 0
A153: % with appropriate diagnosis | B153: =IFERROR(((B150/B152)*100), "---") -> --- | C153: =IFERROR(((C150/C152)*100), "---") -> --- | D153: =IFERROR(((D150/D152)*100), "---") -> ---
A158: BPSD documented | B158: Total | C158: Short Stay | D158: Long Stay
A159: Yes | B159: =COUNTIFS(N4:N111,"Yes") -> 0 | C159: =COUNTIFS(N4:N111,"Yes",D4:D111,"Short Term") -> 0 | D159: =COUNTIFS(N4:N111,"Yes",D4:D111,"Long Term") -> 0
A160: No | B160: =COUNTIFS(N4:N111,"No") -> 0 | C160: =COUNTIFS(N4:N111,"No",D4:D111,"Short Term") -> 0 | D160: =COUNTIFS(N4:N111,"No",D4:D111,"Long Term") -> 0
A161: N/A | B161: =COUNTIFS(N4:N111,"N/A") -> 0 | C161: =COUNTIFS(N4:N111,"N/A",D4:D111,"Short Term") -> 0 | D161: =COUNTIFS(N4:N111,"N/A",D4:D111,"Long Term") -> 0
A162: Total | B162: =SUM(B159:B161) -> 0 | C162: =SUM(C159:C161) -> 0 | D162: 0
A163: % needing BPSD documented | B163: =IFERROR(((B160/(B159+B160))*100),"---") -> --- | C163: =IFERROR(((C160/(C159+C160))*100), "---") -> --- | D163: =IFERROR(((D160/(D159+D160))*100), "---") -> ---
A168: Non drug interventions documented | B168: Total | C168: Short Stay | D168: Long Stay
A169: Yes | B169: =COUNTIFS(P4:P111,"Yes") -> 0 | C169: =COUNTIFS(P4:P111,"Yes",D4:D111,"Short Term") -> 0 | D169: =COUNTIFS(P4:P111,"Yes",D4:D111,"Long Term") -> 0
A170: No | B170: =COUNTIFS(P4:P111,"No") -> 0 | C170: =COUNTIFS(P4:P111,"No",D4:D111,"Short Term") -> 0 | D170: =COUNTIFS(P4:P111,"No",D4:D111,"Long Term") -> 0
A171: N/A | B171: =COUNTIFS(P4:P111,"N/A") -> 0 | C171: =COUNTIFS(P4:P111,"N/A",D4:D111,"Short Term") -> 0 | D171: =COUNTIFS(P4:P111,"N/A",D4:D111,"Long Term") -> 0
A172: Total | B172: =SUM(B169:B171) -> 0 | C172: =SUM(C169:C171) -> 0 | D172: 0
A173: % without non drug interventions documented | B173: =IFERROR((B170/(B169+B170))*100, "---") -> --- | C173: =IFERROR((C72/(C169+C170)*100), "---") -> --- | D173: =IFERROR((D170/(D169+D170)*100), "---") -> ---
A178: GDR Outcome | B178: Total | C178: Short Stay | D178: Long Stay
A179: Dose reduced | B179: =COUNTIFS(R4:R111,"Dose reduced") -> 0 | C179: =COUNTIFS(R4:R111,"Dose reduced",D4:D111,"Short Term") -> 0 | D179: =COUNTIFS(R4:R111,"Dose reduced",D4:D111,"Long Term") -> 0
A180: Dose discontinued | B180: =COUNTIFS(R4:R111,"Drug discontinued") -> 0 | C180: =COUNTIFS(R4:R111,"Drug discontinued",D4:D111,"Short Term") -> 0 | D180: =COUNTIFS(R4:R111,"Drug discontinued",D4:D111,"Long Term") -> 0
A181: Return to previous dose | B181: =COUNTIFS(R4:R111,"Return to previous dose") -> 0 | C181: =COUNTIFS(R4:R111,"Return to previous dose",D4:D111,"Short Term") -> 0 | D181: =COUNTIFS(R4:R111,"Return to previous dose",D4:D111,"Long Term") -> 0
A182: Total | B182: =SUM(B179:B181) -> 0 | C182: =SUM(C179:C181) -> 0 | D182: 0
A183: dose reduced or dc'd | B183: =B179+B180 -> 0 | C183: =C179+C180 -> 0 | D183: 0
A184: % dose reduction | B184: =IFERROR((B179/B182)*100, "---") -> --- | C184: =IFERROR((C179/C182)*100, "---") -> --- | D184: =IFERROR((D179/D182)*100, "---") -> ---
A185: % dose discontinued | B185: =IFERROR((B180/B182)*100, "---") -> --- | C185: =IFERROR((C180/C182)*100, "---") -> --- | D185: =IFERROR((D180/D182)*100, "---") -> ---
A186: % dose reduced or discontinued | B186: =IFERROR((B183/B182)*100, "---") -> --- | C186: =IFERROR((C183/C182)*100, "---") -> --- | D186: =IFERROR((D183/D182)*100, "---") -> ---
A191: GDR needed | B191: Total | C191: Short Stay | D191: Long Stay
A192: Yes | B192: =COUNTIFS(S4:S111,"Yes") -> 0 | C192: =COUNTIFS(S4:S111,"Yes",D4:D111,"Short Term") -> 0 | D192: =COUNTIFS(S4:S111,"Yes",D4:D111,"Long Term") -> 0
A193: No | B193: =COUNTIFS(S4:S111,"No") -> 0 | C193: =COUNTIFS(S4:S111,"No",D4:D111,"Short Term") -> 0 | D193: =COUNTIFS(S4:S111,"No",D4:D111,"Long Term") -> 0
A194: Total | B194: =SUM(B192:B193) -> 0 | C194: =SUM(C192:C193) -> 0 | D194: 0
A195: % needing GDR | B195: =IFERROR((B192/B194)*100, "---") -> --- | C195: =IFERROR((C192/C194)*100, "---") -> --- | D195: =IFERROR((D192/D194)*100, "---") -> ---
A200: Reason no GDR attempted | B200: Total | C200: Short Stay | D200: Long Stay
A201: N/A | B201: =COUNTIFS(T4:T111,"N/A") -> 0 | C201: =COUNTIFS(T4:T111,"N/A",D4:D111,"Short Term") -> 0 | D201: =COUNTIFS(T4:T111,"N/A",D4:D111,"Long Term") -> 0
A202: Resident on lowest possible dose | B202: =COUNTIFS(T4:T111,"Resident on lowest possible dose") -> 0 | C202: =COUNTIFS(T4:T111,"Resident on lowest possible dose",D4:D111,"Short Term") -> 0 | D202: =COUNTIFS(T4:T111,"Resident on lowest possible dose",D4:D111,"Long Term") -> 0
A203: Contraindicated per prescriber | B203: =COUNTIFS(T4:T111,"Contraindicated per prescriber") -> 0 | C203: =COUNTIFS(T4:T111,"Contraindicated per prescriber",D4:D111,"Short Term") -> 0 | D203: =COUNTIFS(T4:T111,"Contraindicated per prescriber",D4:D111,"Long Term") -> 0
A204: Other | B204: =COUNTIFS(T4:T111,"Other") -> 0 | C204: =COUNTIFS(T4:T111,"Other",D4:D111,"Short Term") -> 0 | D204: =COUNTIFS(T4:T111,"Other",D4:D111,"Long Term") -> 0
A205: Total | B205: =SUM(B201:B204) -> 0 | C205: =SUM(C201:C204) -> 0 | D205: 0
A206: % resident on lowest possible dose | B206: =IFERROR((B202/B205)*100, "---") -> --- | C206: =IFERROR((C202/C205)*100, "---") -> --- | D206: =IFERROR((D202/D205)*100, "---") -> ---
A207: % contraindicated per prescriber | B207: =IFERROR((B203/B205)*100, "---") -> --- | C207: =IFERROR((C203/C205)*100, "---") -> --- | D207: =IFERROR((D203/D205)*100, "---") -> ---
A208: % other | B208: =IFERROR((B204/B205)*100, "---") -> --- | C208: =IFERROR((C204/C205)*100, "---") -> --- | D208: =IFERROR((D204/D205)*100, "---") -> ---
A213: Adverse Effects | B213: Total | C213: Short Stay | D213: Long Stay
A214: Yes | B214: =COUNTIFS(U4:U111,"Yes") -> 0 | C214: =COUNTIFS(U4:U111,"Yes",D4:D111,"Short Term") -> 0 | D214: =COUNTIFS(U4:U111,"Yes",D4:D111,"Long Term") -> 0
A215: No | B215: =COUNTIFS(U4:U111,"No") -> 0 | C215: =COUNTIFS(U4:U111,"No",D4:D111,"Short Term") -> 0 | D215: =COUNTIFS(U4:U111,"No",D4:D111,"Long Term") -> 0
A216: Total | B216: =SUM(B214:B215) -> 0 | C216: =SUM(C214:C215) -> 0 | D216: 0
A217: % with adverse effects | B217: =IFERROR((B214/B216)*100, "---") -> --- | C217: =IFERROR((C214/C216)*100, "---") -> --- | D217: =IFERROR((D214/D216)*100, "---") -> ---

Sheet June
A1: End of Month Census : | E1: Current residents on antipsychotics: | G1: =SUMPRODUCT((A4:A111<>"")/COUNTIF(A4:A111,A4:A111&"")) -> 0 | H1: Percentage of residents on antipsychotic: | I1: =IFERROR((G1/D1)*100, "---") -> ---
A2: Resident Information | F2: Antipsychotic Medication Information
A3: Room # | B3: Last Name | C3: First Name | D3: Type of Stay | E3: Notes (New Admit, etc) | F3: Antipsychotic Drug Prescribed | G3: Prescriber | H3: Dose Schedule | I3: Date Started | J3: Where was medication started? | K3: Diagnosis associated with antipsychotic | L3: Is Dx Appropriate? (See directions) | M3: List BPSD | N3: Appropriate BPSD documented? | O3: List Non Drug Interventions tried | P3: Non Drug Intv documented? | Q3: Date of most recent GDR | R3: Outcome of GDR | S3: GDR Needed? | T3: Reasons for no GDR being attempted | U3: Has resident experienced adverse drug effects? | V3: If yes, describe adverse effects
BB14: =CONCATENATE(C14,B14) -> 
BB78: =CONCATENATE(C78,B78) -> 
C112: TOTALS | L112: =COUNTIF(L4:L111,"Yes") -> 0 | M112: =COUNTIF(M4:M111,"Yes") -> 0 | N112: =COUNTIF(N4:N111,"Yes") -> 0 | O112: =COUNTIF(P4:P111,"Yes") -> 0 | P112: =COUNTIF(Q4:Q111,"Yes") -> 0 | R112: =SUM(S4:S111) -> 0 | S112: =SUM(T4:T111) -> 0
A119: Type of Stay Breakdown
A120: Short Stay | B120: =COUNTIF(D4:D111,"Short Term") -> 0
A121: Long Stay | B121: =COUNTIF(D4:D111,"Long Term") -> 0
A122: Total | B122: =B120+B121 -> 0
A126: Dose Schedule | B126: Total | C126: Short Stay | D126: Long Stay
A127: Scheduled | B127: =COUNTIFS(H4:H111,"Scheduled") -> 0 | C127: =COUNTIFS(H4:H111,"Scheduled",D4:D111,"Short Term") -> 0 | D127: =COUNTIFS(H4:H111,"Scheduled",D4:D111,"Long Term") -> 0
A128: PRN | B128: =COUNTIFS(H4:H111,"PRN") -> 0 | C128: =COUNTIFS(H4:H111,"PRN",D4:D111,"Short Term") -> 0 | D128: =COUNTIFS(H4:H111,"PRN",D4:D111,"Long Term") -> 0
A129: Both | B129: =COUNTIFS(H4:H111,"Both") -> 0 | C129: =COUNTIFS(H4:H111,"Both",D4:D111,"Short Term") -> 0 | D129: =COUNTIFS(H4:H111,"Both",D4:D111,"Long Term") -> 0
A130: Total | B130: =SUM(B127:B129) -> 0 | C130: =SUM(C127:C129) -> 0 | D130: 0
A131: % on a scheduled dose | B131: =IFERROR(((B127/$B$130)*100), "---") -> --- | C131: =IFERROR(((C127/C130)*100), "---") -> --- | D131: =IFERROR(((D127/D130)*100), "---") -> ---
A132: % on a PRN dose | B132: =IFERROR(((B128/$B$130)*100), "---") -> --- | C132: =IFERROR(((C128/$C$130)*100), "---") -> --- | D132: =IFERROR(((D128/$D$130)*100), "---") -> ---
A133: % on both sched & PRN | B133: --- | C133: =IFERROR(((C129/C130)*100),"---") -> --- | D133: =IFERROR(((D129/D130)*100), "---") -> ---
A137: Where Medication Started | B137: Total | C137: Short Stay | D137: Long Stay
A138: SNF | B138: =COUNTIFS(J4:J111,"SNF") -> 0 | C138: =COUNTIFS(J4:J111,"SNF",D4:D111,"Short Term") -> 0 | D138: =COUNTIFS(J4:J111,"SNF",D4:D111,"Long Term") -> 0
A139: Hospital | B139: =COUNTIFS(J4:J111,"Hospital") -> 0 | C139: =COUNTIFS(J4:J111,"Hospital",D4:D111,"Short Term") -> 0 | D139: =COUNTIFS(J4:J111,"Hospital",D4:D111,"Long Term") -> 0
A140: Outpatient | B140: =COUNTIFS(J4:J111,"Outpatient") -> 0 | C140: =COUNTIFS(J4:J111,"Outpatient",D4:D111,"Short Term") -> 0 | D140: =COUNTIFS(J4:J111,"Outpatient",D4:D111,"Long Term") -> 0
A141: Total | B141: =SUM(B138:B140) -> 0 | C141: =SUM(C138:C140) -> 0 | D141: 0
A142: % started in SNF | B142: =IFERROR(((B138/B141)*100), "---") -> --- | C142: =IFERROR(((C138/C141)*100), "---") -> --- | D142: =IFERROR(((D138/D141)*100), "---") -> ---
A143: % started in hospital | B143: =IFERROR(((B139/B141)*100), "---") -> --- | C143: =IFERROR(((C139/C141)*100), "---") -> --- | D143: =IFERROR(((D139/D141)*100), "---") -> ---
A144: % started in outpatient | B144: =IFERROR(((B140/B141)*100), "---") -> --- | C144: =IFERROR(((C140/C141)*100), "---") -> --- | D144: =IFERROR(((D140/D141)*100), "---") -> ---
A149: Dx appropriate | B149: Total | C149: Short Stay | D149: Long Stay
A150: Yes | B150: =COUNTIFS(L4:L111,"Yes") -> 0 | C150: =COUNTIFS(L4:L111,"Yes",D4:D111,"Short Term") -> 0 | D150: =COUNTIFS(L4:L111,"Yes",D4:D111,"Long Term") -> 0
A151: No | B151: =COUNTIFS(L4:L111,"No") -> 0 | C151: =COUNTIFS(L4:L111,"No",D4:D111,"Short Term") -> 0 | D151: =COUNTIFS(L4:L111,"No",D4:D111,"Long Term") -> 0
A152: Total | B152: =SUM(B150:B151) -> 0 | C152: =SUM(C150:C151) -> 0 | D152: 0
A153: % with appropriate diagnosis | B153: =IFERROR(((B150/B152)*100), "---") -> --- | C153: =IFERROR(((C150/C152)*100), "---") -> --- | D153: =IFERROR(((D150/D152)*100), "---") -> ---
A158: BPSD documented | B158: Total | C158: Short Stay | D158: Long Stay
A159: Yes | B159: =COUNTIFS(N4:N111,"Yes") -> 0 | C159: =COUNTIFS(N4:N111,"Yes",D4:D111,"Short Term") -> 0 | D159: =COUNTIFS(N4:N111,"Yes",D4:D111,"Long Term") -> 0
A160: No | B160: =COUNTIFS(N4:N111,"No") -> 0 | C160: =COUNTIFS(N4:N111,"No",D4:D111,"Short Term") -> 0 | D160: =COUNTIFS(N4:N111,"No",D4:D111,"Long Term") -> 0
A161: N/A | B161: =COUNTIFS(N4:N111,"N/A") -> 0 | C161: =COUNTIFS(N4:N111,"N/A",D4:D111,"Short Term") -> 0 | D161: =COUNTIFS(N4:N111,"N/A",D4:D111,"Long Term") -> 0
A162: Total | B162: =SUM(B159:B161) -> 0 | C162: =SUM(C159:C161) -> 0 | D162: 0
A163: % needing BPSD documented | B163: =IFERROR(((B160/(B159+B160))*100),"---") -> --- | C163: =IFERROR(((C160/(C159+C160))*100), "---") -> --- | D163: =IFERROR(((D160/(D159+D160))*100), "---") -> ---
A168: Non drug interventions documented | B168: Total | C168: Short Stay | D168: Long Stay
A169: Yes | B169: =COUNTIFS(P4:P111,"Yes") -> 0 | C169: =COUNTIFS(P4:P111,"Yes",D4:D111,"Short Term") -> 0 | D169: =COUNTIFS(P4:P111,"Yes",D4:D111,"Long Term") -> 0
A170: No | B170: =COUNTIFS(P4:P111,"No") -> 0 | C170: =COUNTIFS(P4:P111,"No",D4:D111,"Short Term") -> 0 | D170: =COUNTIFS(P4:P111,"No",D4:D111,"Long Term") -> 0
A171: N/A | B171: =COUNTIFS(P4:P111,"N/A") -> 0 | C171: =COUNTIFS(P4:P111,"N/A",D4:D111,"Short Term") -> 0 | D171: =COUNTIFS(P4:P111,"N/A",D4:D111,"Long Term") -> 0
A172: Total | B172: =SUM(B169:B171) -> 0 | C172: =SUM(C169:C171) -> 0 | D172: 0
A173: % without non drug interventions documented | B173: =IFERROR((B170/(B169+B170))*100, "---") -> --- | C173: =IFERROR((C72/(C169+C170)*100), "---") -> --- | D173: =IFERROR((D170/(D169+D170)*100), "---") -> ---
A178: GDR Outcome | B178: Total | C178: Short Stay | D178: Long Stay
A179: Dose reduced | B179: =COUNTIFS(R4:R111,"Dose reduced") -> 0 | C179: =COUNTIFS(R4:R111,"Dose reduced",D4:D111,"Short Term") -> 0 | D179: =COUNTIFS(R4:R111,"Dose reduced",D4:D111,"Long Term") -> 0
A180: Dose discontinued | B180: =COUNTIFS(R4:R111,"Drug discontinued") -> 0 | C180: =COUNTIFS(R4:R111,"Drug discontinued",D4:D111,"Short Term") -> 0 | D180: =COUNTIFS(R4:R111,"Drug discontinued",D4:D111,"Long Term") -> 0
A181: Return to previous dose | B181: =COUNTIFS(R4:R111,"Return to previous dose") -> 0 | C181: =COUNTIFS(R4:R111,"Return to previous dose",D4:D111,"Short Term") -> 0 | D181: =COUNTIFS(R4:R111,"Return to previous dose",D4:D111,"Long Term") -> 0
A182: Total | B182: =SUM(B179:B181) -> 0 | C182: =SUM(C179:C181) -> 0 | D182: 0
A183: dose reduced or dc'd | B183: =B179+B180 -> 0 | C183: =C179+C180 -> 0 | D183: 0
A184: % dose reduction | B184: =IFERROR((B179/B182)*100, "---") -> --- | C184: =IFERROR((C179/C182)*100, "---") -> --- | D184: =IFERROR((D179/D182)*100, "---") -> ---
A185: % dose discontinued | B185: =IFERROR((B180/B182)*100, "---") -> --- | C185: =IFERROR((C180/C182)*100, "---") -> --- | D185: =IFERROR((D180/D182)*100, "---") -> ---
A186: % dose reduced or discontinued | B186: =IFERROR((B183/B182)*100, "---") -> --- | C186: =IFERROR((C183/C182)*100, "---") -> --- | D186: =IFERROR((D183/D182)*100, "---") -> ---
A191: GDR needed | B191: Total | C191: Short Stay | D191: Long Stay
A192: Yes | B192: =COUNTIFS(S4:S111,"Yes") -> 0 | C192: =COUNTIFS(S4:S111,"Yes",D4:D111,"Short Term") -> 0 | D192: =COUNTIFS(S4:S111,"Yes",D4:D111,"Long Term") -> 0
A193: No | B193: =COUNTIFS(S4:S111,"No") -> 0 | C193: =COUNTIFS(S4:S111,"No",D4:D111,"Short Term") -> 0 | D193: =COUNTIFS(S4:S111,"No",D4:D111,"Long Term") -> 0
A194: Total | B194: =SUM(B192:B193) -> 0 | C194: =SUM(C192:C193) -> 0 | D194: 0
A195: % needing GDR | B195: =IFERROR((B192/B194)*100, "---") -> --- | C195: =IFERROR((C192/C194)*100, "---") -> --- | D195: =IFERROR((D192/D194)*100, "---") -> ---
A200: Reason no GDR attempted | B200: Total | C200: Short Stay | D200: Long Stay
A201: N/A | B201: =COUNTIFS(T4:T111,"N/A") -> 0 | C201: =COUNTIFS(T4:T111,"N/A",D4:D111,"Short Term") -> 0 | D201: =COUNTIFS(T4:T111,"N/A",D4:D111,"Long Term") -> 0
A202: Resident on lowest possible dose | B202: =COUNTIFS(T4:T111,"Resident on lowest possible dose") -> 0 | C202: =COUNTIFS(T4:T111,"Resident on lowest possible dose",D4:D111,"Short Term") -> 0 | D202: =COUNTIFS(T4:T111,"Resident on lowest possible dose",D4:D111,"Long Term") -> 0
A203: Contraindicated per prescriber | B203: =COUNTIFS(T4:T111,"Contraindicated per prescriber") -> 0 | C203: =COUNTIFS(T4:T111,"Contraindicated per prescriber",D4:D111,"Short Term") -> 0 | D203: =COUNTIFS(T4:T111,"Contraindicated per prescriber",D4:D111,"Long Term") -> 0
A204: Other | B204: =COUNTIFS(T4:T111,"Other") -> 0 | C204: =COUNTIFS(T4:T111,"Other",D4:D111,"Short Term") -> 0 | D204: =COUNTIFS(T4:T111,"Other",D4:D111,"Long Term") -> 0
A205: Total | B205: =SUM(B201:B204) -> 0 | C205: =SUM(C201:C204) -> 0 | D205: 0
A206: % resident on lowest possible dose | B206: =IFERROR((B202/B205)*100, "---") -> --- | C206: =IFERROR((C202/C205)*100, "---") -> --- | D206: =IFERROR((D202/D205)*100, "---") -> ---
A207: % contraindicated per prescriber | B207: =IFERROR((B203/B205)*100, "---") -> --- | C207: =IFERROR((C203/C205)*100, "---") -> --- | D207: =IFERROR((D203/D205)*100, "---") -> ---
A208: % other | B208: =IFERROR((B204/B205)*100, "---") -> --- | C208: =IFERROR((C204/C205)*100, "---") -> --- | D208: =IFERROR((D204/D205)*100, "---") -> ---
A213: Adverse Effects | B213: Total | C213: Short Stay | D213: Long Stay
A214: Yes | B214: =COUNTIFS(U4:U111,"Yes") -> 0 | C214: =COUNTIFS(U4:U111,"Yes",D4:D111,"Short Term") -> 0 | D214: =COUNTIFS(U4:U111,"Yes",D4:D111,"Long Term") -> 0
A215: No | B215: =COUNTIFS(U4:U111,"No") -> 0 | C215: =COUNTIFS(U4:U111,"No",D4:D111,"Short Term") -> 0 | D215: =COUNTIFS(U4:U111,"No",D4:D111,"Long Term") -> 0
A216: Total | B216: =SUM(B214:B215) -> 0 | C216: =SUM(C214:C215) -> 0 | D216: 0
A217: % with adverse effects | B217: =IFERROR((B214/B216)*100, "---") -> --- | C217: =IFERROR((C214/C216)*100, "---") -> --- | D217: =IFERROR((D214/D216)*100, "---") -> ---

Sheet July
A1: End of Month Census : | E1: Current residents on antipsychotics: | G1: =SUMPRODUCT((A4:A111<>"")/COUNTIF(A4:A111,A4:A111&"")) -> 0 | H1: Percentage of residents on antipsychotic: | I1: =IFERROR((G1/D1)*100, "---") -> ---
A2: Resident Information | F2: Antipsychotic Medication Information
A3: Room # | B3: Last Name | C3: First Name | D3: Type of Stay | E3: Notes (New Admit, etc) | F3: Antipsychotic Drug Prescribed | G3: Prescriber | H3: Dose Schedule | I3: Date Started | J3: Where was medication started? | K3: Diagnosis associated with antipsychotic | L3: Is Dx Appropriate? (See directions) | M3: List BPSD | N3: Appropriate BPSD documented? | O3: List Non Drug Interventions tried | P3: Non Drug Intv documented? | Q3: Date of most recent GDR | R3: Outcome of GDR | S3: GDR Needed? | T3: Reasons for no GDR being attempted | U3: Has resident experienced adverse drug effects? | V3: If yes, describe adverse effects
BB14: =CONCATENATE(C14,B14) -> 
BB70: =CONCATENATE(C70,B70) -> 
C112: TOTALS | L112: =COUNTIF(L4:L111,"Yes") -> 0 | M112: =COUNTIF(M4:M111,"Yes") -> 0 | N112: =COUNTIF(N4:N111,"Yes") -> 0 | O112: =COUNTIF(P4:P111,"Yes") -> 0 | P112: =COUNTIF(Q4:Q111,"Yes") -> 0 | R112: =SUM(S4:S111) -> 0 | S112: =SUM(T4:T111) -> 0
A119: Type of Stay Breakdown
A120: Short Stay | B120: =COUNTIF(D4:D111,"Short Term") -> 0
A121: Long Stay | B121: =COUNTIF(D4:D111,"Long Term") -> 0
A122: Total | B122: =B120+B121 -> 0
A126: Dose Schedule | B126: Total | C126: Short Stay | D126: Long Stay
A127: Scheduled | B127: =COUNTIFS(H4:H111,"Scheduled") -> 0 | C127: =COUNTIFS(H4:H111,"Scheduled",D4:D111,"Short Term") -> 0 | D127: =COUNTIFS(H4:H111,"Scheduled",D4:D111,"Long Term") -> 0
A128: PRN | B128: =COUNTIFS(H4:H111,"PRN") -> 0 | C128: =COUNTIFS(H4:H111,"PRN",D4:D111,"Short Term") -> 0 | D128: =COUNTIFS(H4:H111,"PRN",D4:D111,"Long Term") -> 0
A129: Both | B129: =COUNTIFS(H4:H111,"Both") -> 0 | C129: =COUNTIFS(H4:H111,"Both",D4:D111,"Short Term") -> 0 | D129: =COUNTIFS(H4:H111,"Both",D4:D111,"Long Term") -> 0
A130: Total | B130: =SUM(B127:B129) -> 0 | C130: =SUM(C127:C129) -> 0 | D130: 0
A131: % on a scheduled dose | B131: =IFERROR(((B127/$B$130)*100), "---") -> --- | C131: =IFERROR(((C127/C130)*100), "---") -> --- | D131: =IFERROR(((D127/D130)*100), "---") -> ---
A132: % on a PRN dose | B132: =IFERROR(((B128/$B$130)*100), "---") -> --- | C132: =IFERROR(((C128/$C$130)*100), "---") -> --- | D132: =IFERROR(((D128/$D$130)*100), "---") -> ---
A133: % on both sched & PRN | B133: --- | C133: =IFERROR(((C129/C130)*100),"---") -> --- | D133: =IFERROR(((D129/D130)*100), "---") -> ---
A137: Where Medication Started | B137: Total | C137: Short Stay | D137: Long Stay
A138: SNF | B138: =COUNTIFS(J4:J111,"SNF") -> 0 | C138: =COUNTIFS(J4:J111,"SNF",D4:D111,"Short Term") -> 0 | D138: =COUNTIFS(J4:J111,"SNF",D4:D111,"Long Term") -> 0
A139: Hospital | B139: =COUNTIFS(J4:J111,"Hospital") -> 0 | C139: =COUNTIFS(J4:J111,"Hospital",D4:D111,"Short Term") -> 0 | D139: =COUNTIFS(J4:J111,"Hospital",D4:D111,"Long Term") -> 0
A140: Outpatient | B140: =COUNTIFS(J4:J111,"Outpatient") -> 0 | C140: =COUNTIFS(J4:J111,"Outpatient",D4:D111,"Short Term") -> 0 | D140: =COUNTIFS(J4:J111,"Outpatient",D4:D111,"Long Term") -> 0
A141: Total | B141: =SUM(B138:B140) -> 0 | C141: =SUM(C138:C140) -> 0 | D141: 0
A142: % started in SNF | B142: =IFERROR(((B138/B141)*100), "---") -> --- | C142: =IFERROR(((C138/C141)*100), "---") -> --- | D142: =IFERROR(((D138/D141)*100), "---") -> ---
A143: % started in hospital | B143: =IFERROR(((B139/B141)*100), "---") -> --- | C143: =IFERROR(((C139/C141)*100), "---") -> --- | D143: =IFERROR(((D139/D141)*100), "---") -> ---
A144: % started in outpatient | B144: =IFERROR(((B140/B141)*100), "---") -> --- | C144: =IFERROR(((C140/C141)*100), "---") -> --- | D144: =IFERROR(((D140/D141)*100), "---") -> ---
A149: Dx appropriate | B149: Total | C149: Short Stay | D149: Long Stay
A150: Yes | B150: =COUNTIFS(L4:L111,"Yes") -> 0 | C150: =COUNTIFS(L4:L111,"Yes",D4:D111,"Short Term") -> 0 | D150: =COUNTIFS(L4:L111,"Yes",D4:D111,"Long Term") -> 0
A151: No | B151: =COUNTIFS(L4:L111,"No") -> 0 | C151: =COUNTIFS(L4:L111,"No",D4:D111,"Short Term") -> 0 | D151: =COUNTIFS(L4:L111,"No",D4:D111,"Long Term") -> 0
A152: Total | B152: =SUM(B150:B151) -> 0 | C152: =SUM(C150:C151) -> 0 | D152: 0
A153: % with appropriate diagnosis | B153: =IFERROR(((B150/B152)*100), "---") -> --- | C153: =IFERROR(((C150/C152)*100), "---") -> --- | D153: =IFERROR(((D150/D152)*100), "---") -> ---
A158: BPSD documented | B158: Total | C158: Short Stay | D158: Long Stay
A159: Yes | B159: =COUNTIFS(N4:N111,"Yes") -> 0 | C159: =COUNTIFS(N4:N111,"Yes",D4:D111,"Short Term") -> 0 | D159: =COUNTIFS(N4:N111,"Yes",D4:D111,"Long Term") -> 0
A160: No | B160: =COUNTIFS(N4:N111,"No") -> 0 | C160: =COUNTIFS(N4:N111,"No",D4:D111,"Short Term") -> 0 | D160: =COUNTIFS(N4:N111,"No",D4:D111,"Long Term") -> 0
A161: N/A | B161: =COUNTIFS(N4:N111,"N/A") -> 0 | C161: =COUNTIFS(N4:N111,"N/A",D4:D111,"Short Term") -> 0 | D161: =COUNTIFS(N4:N111,"N/A",D4:D111,"Long Term") -> 0
A162: Total | B162: =SUM(B159:B161) -> 0 | C162: =SUM(C159:C161) -> 0 | D162: 0
A163: % needing BPSD documented | B163: =IFERROR(((B160/(B159+B160))*100),"---") -> --- | C163: =IFERROR(((C160/(C159+C160))*100), "---") -> --- | D163: =IFERROR(((D160/(D159+D160))*100), "---") -> ---
A168: Non drug interventions documented | B168: Total | C168: Short Stay | D168: Long Stay
A169: Yes | B169: =COUNTIFS(P4:P111,"Yes") -> 0 | C169: =COUNTIFS(P4:P111,"Yes",D4:D111,"Short Term") -> 0 | D169: =COUNTIFS(P4:P111,"Yes",D4:D111,"Long Term") -> 0
A170: No | B170: =COUNTIFS(P4:P111,"No") -> 0 | C170: =COUNTIFS(P4:P111,"No",D4:D111,"Short Term") -> 0 | D170: =COUNTIFS(P4:P111,"No",D4:D111,"Long Term") -> 0
A171: N/A | B171: =COUNTIFS(P4:P111,"N/A") -> 0 | C171: =COUNTIFS(P4:P111,"N/A",D4:D111,"Short Term") -> 0 | D171: =COUNTIFS(P4:P111,"N/A",D4:D111,"Long Term") -> 0
A172: Total | B172: =SUM(B169:B171) -> 0 | C172: =SUM(C169:C171) -> 0 | D172: 0
A173: % without non drug interventions documented | B173: =IFERROR((B170/(B169+B170))*100, "---") -> --- | C173: =IFERROR((C72/(C169+C170)*100), "---") -> --- | D173: =IFERROR((D170/(D169+D170)*100), "---") -> ---
A178: GDR Outcome | B178: Total | C178: Short Stay | D178: Long Stay
A179: Dose reduced | B179: =COUNTIFS(R4:R111,"Dose reduced") -> 0 | C179: =COUNTIFS(R4:R111,"Dose reduced",D4:D111,"Short Term") -> 0 | D179: =COUNTIFS(R4:R111,"Dose reduced",D4:D111,"Long Term") -> 0
A180: Dose discontinued | B180: =COUNTIFS(R4:R111,"Drug discontinued") -> 0 | C180: =COUNTIFS(R4:R111,"Drug discontinued",D4:D111,"Short Term") -> 0 | D180: =COUNTIFS(R4:R111,"Drug discontinued",D4:D111,"Long Term") -> 0
A181: Return to previous dose | B181: =COUNTIFS(R4:R111,"Return to previous dose") -> 0 | C181: =COUNTIFS(R4:R111,"Return to previous dose",D4:D111,"Short Term") -> 0 | D181: =COUNTIFS(R4:R111,"Return to previous dose",D4:D111,"Long Term") -> 0
A182: Total | B182: =SUM(B179:B181) -> 0 | C182: =SUM(C179:C181) -> 0 | D182: 0
A183: dose reduced or dc'd | B183: =B179+B180 -> 0 | C183: =C179+C180 -> 0 | D183: 0
A184: % dose reduction | B184: =IFERROR((B179/B182)*100, "---") -> --- | C184: =IFERROR((C179/C182)*100, "---") -> --- | D184: =IFERROR((D179/D182)*100, "---") -> ---
A185: % dose discontinued | B185: =IFERROR((B180/B182)*100, "---") -> --- | C185: =IFERROR((C180/C182)*100, "---") -> --- | D185: =IFERROR((D180/D182)*100, "---") -> ---
A186: % dose reduced or discontinued | B186: =IFERROR((B183/B182)*100, "---") -> --- | C186: =IFERROR((C183/C182)*100, "---") -> --- | D186: =IFERROR((D183/D182)*100, "---") -> ---
A191: GDR needed | B191: Total | C191: Short Stay | D191: Long Stay
A192: Yes | B192: =COUNTIFS(S4:S111,"Yes") -> 0 | C192: =COUNTIFS(S4:S111,"Yes",D4:D111,"Short Term") -> 0 | D192: =COUNTIFS(S4:S111,"Yes",D4:D111,"Long Term") -> 0
A193: No | B193: =COUNTIFS(S4:S111,"No") -> 0 | C193: =COUNTIFS(S4:S111,"No",D4:D111,"Short Term") -> 0 | D193: =COUNTIFS(S4:S111,"No",D4:D111,"Long Term") -> 0
A194: Total | B194: =SUM(B192:B193) -> 0 | C194: =SUM(C192:C193) -> 0 | D194: 0
A195: % needing GDR | B195: =IFERROR((B192/B194)*100, "---") -> --- | C195: =IFERROR((C192/C194)*100, "---") -> --- | D195: =IFERROR((D192/D194)*100, "---") -> ---
A200: Reason no GDR attempted | B200: Total | C200: Short Stay | D200: Long Stay
A201: N/A | B201: =COUNTIFS(T4:T111,"N/A") -> 0 | C201: =COUNTIFS(T4:T111,"N/A",D4:D111,"Short Term") -> 0 | D201: =COUNTIFS(T4:T111,"N/A",D4:D111,"Long Term") -> 0
A202: Resident on lowest possible dose | B202: =COUNTIFS(T4:T111,"Resident on lowest possible dose") -> 0 | C202: =COUNTIFS(T4:T111,"Resident on lowest possible dose",D4:D111,"Short Term") -> 0 | D202: =COUNTIFS(T4:T111,"Resident on lowest possible dose",D4:D111,"Long Term") -> 0
A203: Contraindicated per prescriber | B203: =COUNTIFS(T4:T111,"Contraindicated per prescriber") -> 0 | C203: =COUNTIFS(T4:T111,"Contraindicated per prescriber",D4:D111,"Short Term") -> 0 | D203: =COUNTIFS(T4:T111,"Contraindicated per prescriber",D4:D111,"Long Term") -> 0
A204: Other | B204: =COUNTIFS(T4:T111,"Other") -> 0 | C204: =COUNTIFS(T4:T111,"Other",D4:D111,"Short Term") -> 0 | D204: =COUNTIFS(T4:T111,"Other",D4:D111,"Long Term") -> 0
A205: Total | B205: =SUM(B201:B204) -> 0 | C205: =SUM(C201:C204) -> 0 | D205: 0
A206: % resident on lowest possible dose | B206: =IFERROR((B202/B205)*100, "---") -> --- | C206: =IFERROR((C202/C205)*100, "---") -> --- | D206: =IFERROR((D202/D205)*100, "---") -> ---
A207: % contraindicated per prescriber | B207: =IFERROR((B203/B205)*100, "---") -> --- | C207: =IFERROR((C203/C205)*100, "---") -> --- | D207: =IFERROR((D203/D205)*100, "---") -> ---
A208: % other | B208: =IFERROR((B204/B205)*100, "---") -> --- | C208: =IFERROR((C204/C205)*100, "---") -> --- | D208: =IFERROR((D204/D205)*100, "---") -> ---
A213: Adverse Effects | B213: Total | C213: Short Stay | D213: Long Stay
A214: Yes | B214: =COUNTIFS(U4:U111,"Yes") -> 0 | C214: =COUNTIFS(U4:U111,"Yes",D4:D111,"Short Term") -> 0 | D214: =COUNTIFS(U4:U111,"Yes",D4:D111,"Long Term") -> 0
A215: No | B215: =COUNTIFS(U4:U111,"No") -> 0 | C215: =COUNTIFS(U4:U111,"No",D4:D111,"Short Term") -> 0 | D215: =COUNTIFS(U4:U111,"No",D4:D111,"Long Term") -> 0
A216: Total | B216: =SUM(B214:B215) -> 0 | C216: =SUM(C214:C215) -> 0 | D216: 0
A217: % with adverse effects | B217: =IFERROR((B214/B216)*100, "---") -> --- | C217: =IFERROR((C214/C216)*100, "---") -> --- | D217: =IFERROR((D214/D216)*100, "---") -> ---

Sheet August
A1: End of Month Census : | E1: Current residents on antipsychotics: | G1: =SUMPRODUCT((A4:A112<>"")/COUNTIF(A4:A112,A4:A112&"")) -> 0 | H1: Percentage of residents on antipsychotic: | I1: =IFERROR((G1/D1)*100, "---") -> ---
A2: Resident Information | F2: Antipsychotic Medication Information
A3: Room # | B3: Last Name | C3: First Name | D3: Type of Stay | E3: Notes (New Admit, etc) | F3: Antipsychotic Drug Prescribed | G3: Prescriber | H3: Dose Schedule | I3: Date Started | J3: Where was medication started? | K3: Diagnosis associated with antipsychotic | L3: Is Dx Appropriate? (See directions) | M3: List BPSD | N3: Appropriate BPSD documented? | O3: List Non Drug Interventions tried | P3: Non Drug Intv documented? | Q3: Date of most recent GDR | R3: Outcome of GDR | S3: GDR Needed? | T3: Reasons for no GDR being attempted | U3: Has resident experienced adverse drug effects? | V3: If yes, describe adverse effects
C112: TOTALS | L112: =COUNTIF(L4:L111,"Yes") -> 0 | M112: =COUNTIF(M4:M111,"Yes") -> 0 | N112: =COUNTIF(N4:N111,"Yes") -> 0 | O112: =COUNTIF(P4:P111,"Yes") -> 0 | P112: =COUNTIF(Q4:Q111,"Yes") -> 0 | R112: =SUM(S4:S111) -> 0 | S112: =SUM(T4:T111) -> 0
A119: Type of Stay Breakdown
A120: Short Stay | B120: =COUNTIF(D4:D111,"Short Term") -> 0
A121: Long Stay | B121: =COUNTIF(D4:D111,"Long Term") -> 0
A122: Total | B122: =B120+B121 -> 0
A126: Dose Schedule | B126: Total | C126: Short Stay | D126: Long Stay
A127: Scheduled | B127: =COUNTIFS(H4:H111,"Scheduled") -> 0 | C127: =COUNTIFS(H4:H111,"Scheduled",D4:D111,"Short Term") -> 0 | D127: =COUNTIFS(H4:H111,"Scheduled",D4:D111,"Long Term") -> 0
A128: PRN | B128: =COUNTIFS(H4:H111,"PRN") -> 0 | C128: =COUNTIFS(H4:H111,"PRN",D4:D111,"Short Term") -> 0 | D128: =COUNTIFS(H4:H111,"PRN",D4:D111,"Long Term") -> 0
A129: Both | B129: =COUNTIFS(H4:H111,"Both") -> 0 | C129: =COUNTIFS(H4:H111,"Both",D4:D111,"Short Term") -> 0 | D129: =COUNTIFS(H4:H111,"Both",D4:D111,"Long Term") -> 0
A130: Total | B130: =SUM(B127:B129) -> 0 | C130: =SUM(C127:C129) -> 0 | D130: 0
A131: % on a scheduled dose | B131: =IFERROR(((B127/$B$130)*100), "---") -> --- | C131: =IFERROR(((C127/C130)*100), "---") -> --- | D131: =IFERROR(((D127/D130)*100), "---") -> ---
A132: % on a PRN dose | B132: =IFERROR(((B128/$B$130)*100), "---") -> --- | C132: =IFERROR(((C128/$C$130)*100), "---") -> --- | D132: =IFERROR(((D128/$D$130)*100), "---") -> ---
A133: % on both sched & PRN | B133: --- | C133: =IFERROR(((C129/C130)*100),"---") -> --- | D133: =IFERROR(((D129/D130)*100), "---") -> ---
A137: Where Medication Started | B137: Total | C137: Short Stay | D137: Long Stay
A138: SNF | B138: =COUNTIFS(J4:J111,"SNF") -> 0 | C138: =COUNTIFS(J4:J111,"SNF",D4:D111,"Short Term") -> 0 | D138: =COUNTIFS(J4:J111,"SNF",D4:D111,"Long Term") -> 0
A139: Hospital | B139: =COUNTIFS(J4:J111,"Hospital") -> 0 | C139: =COUNTIFS(J4:J111,"Hospital",D4:D111,"Short Term") -> 0 | D139: =COUNTIFS(J4:J111,"Hospital",D4:D111,"Long Term") -> 0
A140: Outpatient | B140: =COUNTIFS(J4:J111,"Outpatient") -> 0 | C140: =COUNTIFS(J4:J111,"Outpatient",D4:D111,"Short Term") -> 0 | D140: =COUNTIFS(J4:J111,"Outpatient",D4:D111,"Long Term") -> 0
A141: Total | B141: =SUM(B138:B140) -> 0 | C141: =SUM(C138:C140) -> 0 | D141: 0
A142: % started in SNF | B142: =IFERROR((B138/B141)*100, "---") -> --- | C142: =IFERROR((C138/C141)*100, "---") -> --- | D142: =IFERROR((D138/D141)*100, "---") -> ---
A143: % started in hospital | B143: =IFERROR((B139/B141)*100, "---") -> --- | C143: =IFERROR((C139/C141)*100, "---") -> --- | D143: =IFERROR((D139/D141)*100, "---") -> ---
A144: % started in outpatient | B144: =IFERROR((B140/B141)*100, "---") -> --- | C144: =IFERROR((C140/C141)*100, "---") -> --- | D144: =IFERROR((D140/D141)*100, "---") -> ---
A149: Dx appropriate | B149: Total | C149: Short Stay | D149: Long Stay
A150: Yes | B150: =COUNTIFS(L4:L111,"Yes") -> 0 | C150: =COUNTIFS(L4:L111,"Yes",D4:D111,"Short Term") -> 0 | D150: =COUNTIFS(L4:L111,"Yes",D4:D111,"Long Term") -> 0
A151: No | B151: =COUNTIFS(L4:L111,"No") -> 0 | C151: =COUNTIFS(L4:L111,"No",D4:D111,"Short Term") -> 0 | D151: =COUNTIFS(L4:L111,"No",D4:D111,"Long Term") -> 0
A152: Total | B152: =SUM(B150:B151) -> 0 | C152: =SUM(C150:C151) -> 0 | D152: 0
A153: % with appropriate diagnosis | B153: =IFERROR((B150/B152)*100, "---") -> --- | C153: =IFERROR((C150/C152)*100, "---") -> --- | D153: =IFERROR((D150/D152)*100, "---") -> ---
A158: BPSD documented | B158: Total | C158: Short Stay | D158: Long Stay
A159: Yes | B159: =COUNTIFS(N4:N111,"Yes") -> 0 | C159: =COUNTIFS(N4:N111,"Yes",D4:D111,"Short Term") -> 0 | D159: =COUNTIFS(N4:N111,"Yes",D4:D111,"Long Term") -> 0
A160: No | B160: =COUNTIFS(N4:N111,"No") -> 0 | C160: =COUNTIFS(N4:N111,"No",D4:D111,"Short Term") -> 0 | D160: =COUNTIFS(N4:N111,"No",D4:D111,"Long Term") -> 0
A161: N/A | B161: =COUNTIFS(N4:N111,"N/A") -> 0 | C161: =COUNTIFS(N4:N111,"N/A",D4:D111,"Short Term") -> 0 | D161: =COUNTIFS(N4:N111,"N/A",D4:D111,"Long Term") -> 0
A162: Total | B162: =SUM(B159:B161) -> 0 | C162: =SUM(C159:C161) -> 0 | D162: 0
A163: % needing BPSD documented | B163: =IFERROR((B160/(B159+B160))*100, "---") -> --- | C163: =IFERROR((C160/(C159+C160))*100, "---") -> --- | D163: =IFERROR((D160/(D159+D160))*100, "---") -> ---
A168: Non drug interventions documented | B168: Total | C168: Short Stay | D168: Long Stay
A169: Yes | B169: =COUNTIFS(P4:P111,"Yes") -> 0 | C169: =COUNTIFS(P4:P111,"Yes",D4:D111,"Short Term") -> 0 | D169: =COUNTIFS(P4:P111,"Yes",D4:D111,"Long Term") -> 0
A170: No | B170: =COUNTIFS(P4:P111,"No") -> 0 | C170: =COUNTIFS(P4:P111,"No",D4:D111,"Short Term") -> 0 | D170: =COUNTIFS(P4:P111,"No",D4:D111,"Long Term") -> 0
A171: N/A | B171: =COUNTIFS(P4:P111,"N/A") -> 0 | C171: =COUNTIFS(P4:P111,"N/A",D4:D111,"Short Term") -> 0 | D171: =COUNTIFS(P4:P111,"N/A",D4:D111,"Long Term") -> 0
A172: Total | B172: =SUM(B169:B171) -> 0 | C172: =SUM(C169:C171) -> 0 | D172: 0
A173: % without non drug interventions documented | B173: =IFERROR((B170/(B169+B170))*100, "---") -> --- | C173: =IFERROR((C170/(C169+C170))*100, "---") -> --- | D173: =IFERROR((D170/(D169+D170))*100, "---") -> ---
A178: GDR Outcome | B178: Total | C178: Short Stay | D178: Long Stay
A179: Dose reduced | B179: =COUNTIFS(R4:R111,"Dose reduced") -> 0 | C179: =COUNTIFS(R4:R111,"Dose reduced",D4:D111,"Short Term") -> 0 | D179: =COUNTIFS(R4:R111,"Dose reduced",D4:D111,"Long Term") -> 0
A180: Dose discontinued | B180: =COUNTIFS(R4:R111,"Drug discontinued") -> 0 | C180: =COUNTIFS(R4:R111,"Drug discontinued",D4:D111,"Short Term") -> 0 | D180: =COUNTIFS(R4:R111,"Drug discontinued",D4:D111,"Long Term") -> 0
A181: Return to previous dose | B181: =COUNTIFS(R4:R111,"Return to previous dose") -> 0 | C181: =COUNTIFS(R4:R111,"Return to previous dose",D4:D111,"Short Term") -> 0 | D181: =COUNTIFS(R4:R111,"Return to previous dose",D4:D111,"Long Term") -> 0
A182: Total | B182: =SUM(B179:B181) -> 0 | C182: =SUM(C179:C181) -> 0 | D182: 0
A183: dose reduced or dc'd | B183: =B179+B180 -> 0 | C183: =C179+C180 -> 0 | D183: 0
A184: % dose reduction | B184: =IFERROR((B179/B182)*100, "---") -> --- | C184: =IFERROR((C179/C182)*100, "---") -> --- | D184: =IFERROR((D179/D182)*100, "---") -> ---
A185: % dose discontinued | B185: =IFERROR((B180/B182)*100, "---") -> --- | C185: =IFERROR((C180/C182)*100, "---") -> --- | D185: =IFERROR((D180/D182)*100, "---") -> ---
A186: % dose reduced or discontinued | B186: =IFERROR((B183/B182)*100, "---") -> --- | C186: =IFERROR((C183/C182)*100, "---") -> --- | D186: =IFERROR((D183/D182)*100, "---") -> ---
A191: GDR needed | B191: Total | C191: Short Stay | D191: Long Stay
A192: Yes | B192: =COUNTIFS(S4:S111,"Yes") -> 0 | C192: =COUNTIFS(S4:S111,"Yes",D4:D111,"Short Term") -> 0 | D192: =COUNTIFS(S4:S111,"Yes",D4:D111,"Long Term") -> 0
A193: No | B193: =COUNTIFS(S4:S111,"No") -> 0 | C193: =COUNTIFS(S4:S111,"No",D4:D111,"Short Term") -> 0 | D193: =COUNTIFS(S4:S111,"No",D4:D111,"Long Term") -> 0
A194: Total | B194: =SUM(B192:B193) -> 0 | C194: =SUM(C192:C193) -> 0 | D194: 0
A195: % needing GDR | B195: =IFERROR((B192/B194)*100, "---") -> --- | C195: =IFERROR((C192/C194)*100, "---") -> --- | D195: =IFERROR((D192/D194)*100, "---") -> ---
A200: Reason no GDR attempted | B200: Total | C200: Short Stay | D200: Long Stay
A201: N/A | B201: =COUNTIFS(T4:T111,"N/A") -> 0 | C201: =COUNTIFS(T4:T111,"N/A",D4:D111,"Short Term") -> 0 | D201: =COUNTIFS(T4:T111,"N/A",D4:D111,"Long Term") -> 0
A202: Resident on lowest possible dose | B202: =COUNTIFS(T4:T111,"Resident on lowest possible dose") -> 0 | C202: =COUNTIFS(T4:T111,"Resident on lowest possible dose",D4:D111,"Short Term") -> 0 | D202: =COUNTIFS(T4:T111,"Resident on lowest possible dose",D4:D111,"Long Term") -> 0
A203: Contraindicated per prescriber | B203: =COUNTIFS(T4:T111,"Contraindicated per prescriber") -> 0 | C203: =COUNTIFS(T4:T111,"Contraindicated per prescriber",D4:D111,"Short Term") -> 0 | D203: =COUNTIFS(T4:T111,"Contraindicated per prescriber",D4:D111,"Long Term") -> 0
A204: Other | B204: =COUNTIFS(T4:T111,"Other") -> 0 | C204: =COUNTIFS(T4:T111,"Other",D4:D111,"Short Term") -> 0 | D204: =COUNTIFS(T4:T111,"Other",D4:D111,"Long Term") -> 0
A205: Total | B205: =SUM(B201:B204) -> 0 | C205: =SUM(C201:C204) -> 0 | D205: 0
A206: % resident on lowest possible dose | B206: =IFERROR((B202/B205)*100, "---") -> --- | C206: =IFERROR((C202/C205)*100, "---") -> --- | D206: =IFERROR((D202/D205)*100, "---") -> ---
A207: % contraindicated per prescriber | B207: =IFERROR((B203/B205)*100, "---") -> --- | C207: =IFERROR((C203/C205)*100, "---") -> --- | D207: =IFERROR((D203/D205)*100, "---") -> ---
A208: % other | B208: =IFERROR((B204/B205)*100, "---") -> --- | C208: =IFERROR((C204/C205)*100, "---") -> --- | D208: =IFERROR((D204/D205)*100, "---") -> ---
A213: Adverse Effects | B213: Total | C213: Short Stay | D213: Long Stay
A214: Yes | B214: =COUNTIFS(U4:U111,"Yes") -> 0 | C214: =COUNTIFS(U4:U111,"Yes",D4:D111,"Short Term") -> 0 | D214: =COUNTIFS(U4:U111,"Yes",D4:D111,"Long Term") -> 0
A215: No | B215: =COUNTIFS(U4:U111,"No") -> 0 | C215: =COUNTIFS(U4:U111,"No",D4:D111,"Short Term") -> 0 | D215: =COUNTIFS(U4:U111,"No",D4:D111,"Long Term") -> 0
A216: Total | B216: =SUM(B214:B215) -> 0 | C216: =SUM(C214:C215) -> 0 | D216: 0
A217: % with adverse effects | B217: =IFERROR((B214/B216)*100, "---") -> --- | C217: =IFERROR(((C214/C216)*100), "---") -> --- | D217: =IFERROR((D214/D216)*100, "---") -> ---

Sheet September
A1: End of Month Census : | E1: Current residents on antipsychotics: | G1: =SUMPRODUCT((A4:A112<>"")/COUNTIF(A4:A112,A4:A112&"")) -> 0 | H1: Percentage of residents on antipsychotic: | I1: =IFERROR((G1/D1)*100, "---") -> ---
A2: Resident Information | F2: Antipsychotic Medication Information
A3: Room # | B3: Last Name | C3: First Name | D3: Type of Stay | E3: Notes (New Admit, etc) | F3: Antipsychotic Drug Prescribed | G3: Prescriber | H3: Dose Schedule | I3: Date Started | J3: Where was medication started? | K3: Diagnosis associated with antipsychotic | L3: Is Dx Appropriate? (See directions) | M3: List BPSD | N3: Appropriate BPSD documented? | O3: List Non Drug Interventions tried | P3: Non Drug Intv documented? | Q3: Date of most recent GDR | R3: Outcome of GDR | S3: GDR Needed? | T3: Reasons for no GDR being attempted | U3: Has resident experienced adverse drug effects? | V3: If yes, describe adverse effects
C112: TOTALS | L112: =COUNTIF(L4:L111,"Yes") -> 0 | M112: =COUNTIF(M4:M111,"Yes") -> 0 | N112: =COUNTIF(N4:N111,"Yes") -> 0 | O112: =COUNTIF(P4:P111,"Yes") -> 0 | P112: =COUNTIF(Q4:Q111,"Yes") -> 0 | R112: =SUM(S4:S111) -> 0 | S112: =SUM(T4:T111) -> 0
A119: Type of Stay Breakdown
A120: Short Stay | B120: =COUNTIF(D4:D111,"Short Term") -> 0
A121: Long Stay | B121: =COUNTIF(D4:D111,"Long Term") -> 0
A122: Total | B122: =B120+B121 -> 0
A126: Dose Schedule | B126: Total | C126: Short Stay | D126: Long Stay
A127: Scheduled | B127: =COUNTIFS(H4:H111,"Scheduled") -> 0 | C127: =COUNTIFS(H4:H111,"Scheduled",D4:D111,"Short Term") -> 0 | D127: =COUNTIFS(H4:H111,"Scheduled",D4:D111,"Long Term") -> 0
A128: PRN | B128: =COUNTIFS(H4:H111,"PRN") -> 0 | C128: =COUNTIFS(H4:H111,"PRN",D4:D111,"Short Term") -> 0 | D128: =COUNTIFS(H4:H111,"PRN",D4:D111,"Long Term") -> 0
A129: Both | B129: =COUNTIFS(H4:H111,"Both") -> 0 | C129: =COUNTIFS(H4:H111,"Both",D4:D111,"Short Term") -> 0 | D129: =COUNTIFS(H4:H111,"Both",D4:D111,"Long Term") -> 0
A130: Total | B130: =SUM(B127:B129) -> 0 | C130: =SUM(C127:C129) -> 0 | D130: 0
A131: % on a scheduled dose | B131: =IFERROR(((B127/$B$130)*100), "---") -> --- | C131: =IFERROR(((C127/C130)*100), "---") -> --- | D131: =IFERROR(((D127/D130)*100), "---") -> ---
A132: % on a PRN dose | B132: =IFERROR(((B128/$B$130)*100), "---") -> --- | C132: =IFERROR(((C128/$C$130)*100), "---") -> --- | D132: =IFERROR(((D128/$D$130)*100), "---") -> ---
A133: % on both sched & PRN | B133: --- | C133: =IFERROR(((C129/C130)*100),"---") -> --- | D133: =IFERROR(((D129/D130)*100), "---") -> ---
A137: Where Medication Started | B137: Total | C137: Short Stay | D137: Long Stay
A138: SNF | B138: =COUNTIFS(J4:J111,"SNF") -> 0 | C138: =COUNTIFS(J4:J111,"SNF",D4:D111,"Short Term") -> 0 | D138: =COUNTIFS(J4:J111,"SNF",D4:D111,"Long Term") -> 0
A139: Hospital | B139: =COUNTIFS(J4:J111,"Hospital") -> 0 | C139: =COUNTIFS(J4:J111,"Hospital",D4:D111,"Short Term") -> 0 | D139: =COUNTIFS(J4:J111,"Hospital",D4:D111,"Long Term") -> 0
A140: Outpatient | B140: =COUNTIFS(J4:J111,"Outpatient") -> 0 | C140: =COUNTIFS(J4:J111,"Outpatient",D4:D111,"Short Term") -> 0 | D140: =COUNTIFS(J4:J111,"Outpatient",D4:D111,"Long Term") -> 0
A141: Total | B141: =SUM(B138:B140) -> 0 | C141: =SUM(C138:C140) -> 0 | D141: 0
A142: % started in SNF | B142: =IFERROR((B138/B141)*100, "---") -> --- | C142: =IFERROR((C138/C141)*100, "---") -> --- | D142: =IFERROR((D138/D141)*100, "---") -> ---
A143: % started in hospital | B143: =IFERROR((B139/B141)*100, "---") -> --- | C143: =IFERROR((C139/C141)*100, "---") -> --- | D143: =IFERROR((D139/D141)*100, "---") -> ---
A144: % started in outpatient | B144: =IFERROR((B140/B141)*100, "---") -> --- | C144: =IFERROR((C140/C141)*100, "---") -> --- | D144: =IFERROR((D140/D141)*100, "---") -> ---
A149: Dx appropriate | B149: Total | C149: Short Stay | D149: Long Stay
A150: Yes | B150: =COUNTIFS(L4:L111,"Yes") -> 0 | C150: =COUNTIFS(L4:L111,"Yes",D4:D111,"Short Term") -> 0 | D150: =COUNTIFS(L4:L111,"Yes",D4:D111,"Long Term") -> 0
A151: No | B151: =COUNTIFS(L4:L111,"No") -> 0 | C151: =COUNTIFS(L4:L111,"No",D4:D111,"Short Term") -> 0 | D151: =COUNTIFS(L4:L111,"No",D4:D111,"Long Term") -> 0
A152: Total | B152: =SUM(B150:B151) -> 0 | C152: =SUM(C150:C151) -> 0 | D152: 0
A153: % with appropriate diagnosis | B153: =IFERROR((B150/B152)*100, "---") -> --- | C153: =IFERROR((C150/C152)*100, "---") -> --- | D153: =IFERROR((D150/D152)*100, "---") -> ---
A158: BPSD documented | B158: Total | C158: Short Stay | D158: Long Stay
A159: Yes | B159: =COUNTIFS(N4:N111,"Yes") -> 0 | C159: =COUNTIFS(N4:N111,"Yes",D4:D111,"Short Term") -> 0 | D159: =COUNTIFS(N4:N111,"Yes",D4:D111,"Long Term") -> 0
A160: No | B160: =COUNTIFS(N4:N111,"No") -> 0 | C160: =COUNTIFS(N4:N111,"No",D4:D111,"Short Term") -> 0 | D160: =COUNTIFS(N4:N111,"No",D4:D111,"Long Term") -> 0
A161: N/A | B161: =COUNTIFS(N4:N111,"N/A") -> 0 | C161: =COUNTIFS(N4:N111,"N/A",D4:D111,"Short Term") -> 0 | D161: =COUNTIFS(N4:N111,"N/A",D4:D111,"Long Term") -> 0
A162: Total | B162: =SUM(B159:B161) -> 0 | C162: =SUM(C159:C161) -> 0 | D162: 0
A163: % needing BPSD documented | B163: =IFERROR((B160/(B159+B160))*100, "---") -> --- | C163: =IFERROR((C160/(C159+C160))*100, "---") -> --- | D163: =IFERROR((D160/(D159+D160))*100, "---") -> ---
A168: Non drug interventions documented | B168: Total | C168: Short Stay | D168: Long Stay
A169: Yes | B169: =COUNTIFS(P4:P111,"Yes") -> 0 | C169: =COUNTIFS(P4:P111,"Yes",D4:D111,"Short Term") -> 0 | D169: =COUNTIFS(P4:P111,"Yes",D4:D111,"Long Term") -> 0
A170: No | B170: =COUNTIFS(P4:P111,"No") -> 0 | C170: =COUNTIFS(P4:P111,"No",D4:D111,"Short Term") -> 0 | D170: =COUNTIFS(P4:P111,"No",D4:D111,"Long Term") -> 0
A171: N/A | B171: =COUNTIFS(P4:P111,"N/A") -> 0 | C171: =COUNTIFS(P4:P111,"N/A",D4:D111,"Short Term") -> 0 | D171: =COUNTIFS(P4:P111,"N/A",D4:D111,"Long Term") -> 0
A172: Total | B172: =SUM(B169:B171) -> 0 | C172: =SUM(C169:C171) -> 0 | D172: 0
A173: % without non drug interventions documented | B173: =IFERROR((B170/(B169+B170))*100, "---") -> --- | C173: =IFERROR((C170/(C169+C170))*100, "---") -> --- | D173: =IFERROR((D170/(D169+D170))*100, "---") -> ---
A178: GDR Outcome | B178: Total | C178: Short Stay | D178: Long Stay
A179: Dose reduced | B179: =COUNTIFS(R4:R111,"Dose reduced") -> 0 | C179: =COUNTIFS(R4:R111,"Dose reduced",D4:D111,"Short Term") -> 0 | D179: =COUNTIFS(R4:R111,"Dose reduced",D4:D111,"Long Term") -> 0
A180: Dose discontinued | B180: =COUNTIFS(R4:R111,"Drug discontinued") -> 0 | C180: =COUNTIFS(R4:R111,"Drug discontinued",D4:D111,"Short Term") -> 0 | D180: =COUNTIFS(R4:R111,"Drug discontinued",D4:D111,"Long Term") -> 0
A181: Return to previous dose | B181: =COUNTIFS(R4:R111,"Return to previous dose") -> 0 | C181: =COUNTIFS(R4:R111,"Return to previous dose",D4:D111,"Short Term") -> 0 | D181: =COUNTIFS(R4:R111,"Return to previous dose",D4:D111,"Long Term") -> 0
A182: Total | B182: =SUM(B179:B181) -> 0 | C182: =SUM(C179:C181) -> 0 | D182: 0
A183: dose reduced or dc'd | B183: =B179+B180 -> 0 | C183: =C179+C180 -> 0 | D183: 0
A184: % dose reduction | B184: =IFERROR((B179/B182)*100, "---") -> --- | C184: =IFERROR((C179/C182)*100, "---") -> --- | D184: =IFERROR((D179/D182)*100, "---") -> ---
A185: % dose discontinued | B185: =IFERROR((B180/B182)*100, "---") -> --- | C185: =IFERROR((C180/C182)*100, "---") -> --- | D185: =IFERROR((D180/D182)*100, "---") -> ---
A186: % dose reduced or discontinued | B186: =IFERROR((B183/B182)*100, "---") -> --- | C186: =IFERROR((C183/C182)*100, "---") -> --- | D186: =IFERROR((D183/D182)*100, "---") -> ---
A191: GDR needed | B191: Total | C191: Short Stay | D191: Long Stay
A192: Yes | B192: =COUNTIFS(S4:S111,"Yes") -> 0 | C192: =COUNTIFS(S4:S111,"Yes",D4:D111,"Short Term") -> 0 | D192: =COUNTIFS(S4:S111,"Yes",D4:D111,"Long Term") -> 0
A193: No | B193: =COUNTIFS(S4:S111,"No") -> 0 | C193: =COUNTIFS(S4:S111,"No",D4:D111,"Short Term") -> 0 | D193: =COUNTIFS(S4:S111,"No",D4:D111,"Long Term") -> 0
A194: Total | B194: =SUM(B192:B193) -> 0 | C194: =SUM(C192:C193) -> 0 | D194: 0
A195: % needing GDR | B195: =IFERROR((B192/B194)*100, "---") -> --- | C195: =IFERROR((C192/C194)*100, "---") -> --- | D195: =IFERROR((D192/D194)*100, "---") -> ---
A200: Reason no GDR attempted | B200: Total | C200: Short Stay | D200: Long Stay
A201: N/A | B201: =COUNTIFS(T4:T111,"N/A") -> 0 | C201: =COUNTIFS(T4:T111,"N/A",D4:D111,"Short Term") -> 0 | D201: =COUNTIFS(T4:T111,"N/A",D4:D111,"Long Term") -> 0
A202: Resident on lowest possible dose | B202: =COUNTIFS(T4:T111,"Resident on lowest possible dose") -> 0 | C202: =COUNTIFS(T4:T111,"Resident on lowest possible dose",D4:D111,"Short Term") -> 0 | D202: =COUNTIFS(T4:T111,"Resident on lowest possible dose",D4:D111,"Long Term") -> 0
A203: Contraindicated per prescriber | B203: =COUNTIFS(T4:T111,"Contraindicated per prescriber") -> 0 | C203: =COUNTIFS(T4:T111,"Contraindicated per prescriber",D4:D111,"Short Term") -> 0 | D203: =COUNTIFS(T4:T111,"Contraindicated per prescriber",D4:D111,"Long Term") -> 0
A204: Other | B204: =COUNTIFS(T4:T111,"Other") -> 0 | C204: =COUNTIFS(T4:T111,"Other",D4:D111,"Short Term") -> 0 | D204: =COUNTIFS(T4:T111,"Other",D4:D111,"Long Term") -> 0
A205: Total | B205: =SUM(B201:B204) -> 0 | C205: =SUM(C201:C204) -> 0 | D205: 0
A206: % resident on lowest possible dose | B206: =IFERROR((B202/B205)*100, "---") -> --- | C206: =IFERROR((C202/C205)*100, "---") -> --- | D206: =IFERROR((D202/D205)*100, "---") -> ---
A207: % contraindicated per prescriber | B207: =IFERROR((B203/B205)*100, "---") -> --- | C207: =IFERROR((C203/C205)*100, "---") -> --- | D207: =IFERROR((D203/D205)*100, "---") -> ---
A208: % other | B208: =IFERROR((B204/B205)*100, "---") -> --- | C208: =IFERROR((C204/C205)*100, "---") -> --- | D208: =IFERROR((D204/D205)*100, "---") -> ---
A213: Adverse Effects | B213: Total | C213: Short Stay | D213: Long Stay
A214: Yes | B214: =COUNTIFS(U4:U111,"Yes") -> 0 | C214: =COUNTIFS(U4:U111,"Yes",D4:D111,"Short Term") -> 0 | D214: =COUNTIFS(U4:U111,"Yes",D4:D111,"Long Term") -> 0
A215: No | B215: =COUNTIFS(U4:U111,"No") -> 0 | C215: =COUNTIFS(U4:U111,"No",D4:D111,"Short Term") -> 0 | D215: =COUNTIFS(U4:U111,"No",D4:D111,"Long Term") -> 0
A216: Total | B216: =SUM(B214:B215) -> 0 | C216: =SUM(C214:C215) -> 0 | D216: 0
A217: % with adverse effects | B217: =IFERROR((B214/B216)*100, "---") -> --- | C217: =IFERROR((C214/C216)*100, "---") -> --- | D217: =IFERROR((D214/D216)*100, "---") -> ---

Sheet October
A1: End of Month Census : | E1: Current residents on antipsychotics: | G1: =SUMPRODUCT((A4:A112<>"")/COUNTIF(A4:A112,A4:A112&"")) -> 0 | H1: Percentage of residents on antipsychotic: | I1: =IFERROR((G1/D1)*100, "---") -> ---
A2: Resident Information | F2: Antipsychotic Medication Information
A3: Room # | B3: Last Name | C3: First Name | D3: Type of Stay | E3: Notes (New Admit, etc) | F3: Antipsychotic Drug Prescribed | G3: Prescriber | H3: Dose Schedule | I3: Date Started | J3: Where was medication started? | K3: Diagnosis associated with antipsychotic | L3: Is Dx Appropriate? (See directions) | M3: List BPSD | N3: Appropriate BPSD documented? | O3: List Non Drug Interventions tried | P3: Non Drug Intv documented? | Q3: Date of most recent GDR | R3: Outcome of GDR | S3: GDR Needed? | T3: Reasons for no GDR being attempted | U3: Has resident experienced adverse drug effects? | V3: If yes, describe adverse effects
C112: TOTALS | L112: =COUNTIF(L4:L111,"Yes") -> 0 | M112: =COUNTIF(M4:M111,"Yes") -> 0 | N112: =COUNTIF(N4:N111,"Yes") -> 0 | O112: =COUNTIF(P4:P111,"Yes") -> 0 | P112: =COUNTIF(Q4:Q111,"Yes") -> 0 | R112: =SUM(S4:S111) -> 0 | S112: =SUM(T4:T111) -> 0
A119: Type of Stay Breakdown
A120: Short Stay | B120: =COUNTIF(D4:D111,"Short Term") -> 0
A121: Long Stay | B121: =COUNTIF(D4:D111,"Long Term") -> 0
A122: Total | B122: =B120+B121 -> 0
A126: Dose Schedule | B126: Total | C126: Short Stay | D126: Long Stay
A127: Scheduled | B127: =COUNTIFS(H4:H111,"Scheduled") -> 0 | C127: =COUNTIFS(H4:H111,"Scheduled",D4:D111,"Short Term") -> 0 | D127: =COUNTIFS(H4:H111,"Scheduled",D4:D111,"Long Term") -> 0
A128: PRN | B128: =COUNTIFS(H4:H111,"PRN") -> 0 | C128: =COUNTIFS(H4:H111,"PRN",D4:D111,"Short Term") -> 0 | D128: =COUNTIFS(H4:H111,"PRN",D4:D111,"Long Term") -> 0
A129: Both | B129: =COUNTIFS(H4:H111,"Both") -> 0 | C129: =COUNTIFS(H4:H111,"Both",D4:D111,"Short Term") -> 0 | D129: =COUNTIFS(H4:H111,"Both",D4:D111,"Long Term") -> 0
A130: Total | B130: =SUM(B127:B129) -> 0 | C130: =SUM(C127:C129) -> 0 | D130: 0
A131: % on a scheduled dose | B131: =IFERROR(((B127/$B$130)*100), "---") -> --- | C131: =IFERROR(((C127/C130)*100), "---") -> --- | D131: =IFERROR(((D127/D130)*100), "---") -> ---
A132: % on a PRN dose | B132: =IFERROR(((B128/$B$130)*100), "---") -> --- | C132: =IFERROR(((C128/$C$130)*100), "---") -> --- | D132: =IFERROR(((D128/$D$130)*100), "---") -> ---
A133: % on both sched & PRN | B133: --- | C133: =IFERROR(((C129/C130)*100),"---") -> --- | D133: =IFERROR(((D129/D130)*100), "---") -> ---
A137: Where Medication Started | B137: Total | C137: Short Stay | D137: Long Stay
A138: SNF | B138: =COUNTIFS(J4:J111,"SNF") -> 0 | C138: =COUNTIFS(J4:J111,"SNF",D4:D111,"Short Term") -> 0 | D138: =COUNTIFS(J4:J111,"SNF",D4:D111,"Long Term") -> 0
A139: Hospital | B139: =COUNTIFS(J4:J111,"Hospital") -> 0 | C139: =COUNTIFS(J4:J111,"Hospital",D4:D111,"Short Term") -> 0 | D139: =COUNTIFS(J4:J111,"Hospital",D4:D111,"Long Term") -> 0
A140: Outpatient | B140: =COUNTIFS(J4:J111,"Outpatient") -> 0 | C140: =COUNTIFS(J4:J111,"Outpatient",D4:D111,"Short Term") -> 0 | D140: =COUNTIFS(J4:J111,"Outpatient",D4:D111,"Long Term") -> 0
A141: Total | B141: =SUM(B138:B140) -> 0 | C141: =SUM(C138:C140) -> 0 | D141: 0
A142: % started in SNF | B142: =IFERROR((B138/B141)*100, "---") -> --- | C142: =IFERROR((C138/C141)*100, "---") -> --- | D142: =IFERROR((D138/D141)*100, "---") -> ---
A143: % started in hospital | B143: =IFERROR((B139/B141)*100, "---") -> --- | C143: =IFERROR((C139/C141)*100, "---") -> --- | D143: =IFERROR((D139/D141)*100, "---") -> ---
A144: % started in outpatient | B144: =IFERROR((B140/B141)*100, "---") -> --- | C144: =IFERROR((C140/C141)*100, "---") -> --- | D144: =IFERROR((D140/D141)*100, "---") -> ---
A149: Dx appropriate | B149: Total | C149: Short Stay | D149: Long Stay
A150: Yes | B150: =COUNTIFS(L4:L111,"Yes") -> 0 | C150: =COUNTIFS(L4:L111,"Yes",D4:D111,"Short Term") -> 0 | D150: =COUNTIFS(L4:L111,"Yes",D4:D111,"Long Term") -> 0
A151: No | B151: =COUNTIFS(L4:L111,"No") -> 0 | C151: =COUNTIFS(L4:L111,"No",D4:D111,"Short Term") -> 0 | D151: =COUNTIFS(L4:L111,"No",D4:D111,"Long Term") -> 0
A152: Total | B152: =SUM(B150:B151) -> 0 | C152: =SUM(C150:C151) -> 0 | D152: 0
A153: % with appropriate diagnosis | B153: =IFERROR((B150/B152)*100, "---") -> --- | C153: =IFERROR((C150/C152)*100, "---") -> --- | D153: =IFERROR((D150/D152)*100, "---") -> ---
A158: BPSD documented | B158: Total | C158: Short Stay | D158: Long Stay
A159: Yes | B159: =COUNTIFS(N4:N111,"Yes") -> 0 | C159: =COUNTIFS(N4:N111,"Yes",D4:D111,"Short Term") -> 0 | D159: =COUNTIFS(N4:N111,"Yes",D4:D111,"Long Term") -> 0
A160: No | B160: =COUNTIFS(N4:N111,"No") -> 0 | C160: =COUNTIFS(N4:N111,"No",D4:D111,"Short Term") -> 0 | D160: =COUNTIFS(N4:N111,"No",D4:D111,"Long Term") -> 0
A161: N/A | B161: =COUNTIFS(N4:N111,"N/A") -> 0 | C161: =COUNTIFS(N4:N111,"N/A",D4:D111,"Short Term") -> 0 | D161: =COUNTIFS(N4:N111,"N/A",D4:D111,"Long Term") -> 0
A162: Total | B162: =SUM(B159:B161) -> 0 | C162: =SUM(C159:C161) -> 0 | D162: 0
A163: % needing BPSD documented | B163: =IFERROR((B160/(B159+B160))*100, "---") -> --- | C163: =IFERROR((C160/(C159+C160))*100, "---") -> --- | D163: =IFERROR((D160/(D159+D160))*100, "---") -> ---
A168: Non drug interventions documented | B168: Total | C168: Short Stay | D168: Long Stay
A169: Yes | B169: =COUNTIFS(P4:P111,"Yes") -> 0 | C169: =COUNTIFS(P4:P111,"Yes",D4:D111,"Short Term") -> 0 | D169: =COUNTIFS(P4:P111,"Yes",D4:D111,"Long Term") -> 0
A170: No | B170: =COUNTIFS(P4:P111,"No") -> 0 | C170: =COUNTIFS(P4:P111,"No",D4:D111,"Short Term") -> 0 | D170: =COUNTIFS(P4:P111,"No",D4:D111,"Long Term") -> 0
A171: N/A | B171: =COUNTIFS(P4:P111,"N/A") -> 0 | C171: =COUNTIFS(P4:P111,"N/A",D4:D111,"Short Term") -> 0 | D171: =COUNTIFS(P4:P111,"N/A",D4:D111,"Long Term") -> 0
A172: Total | B172: =SUM(B169:B171) -> 0 | C172: =SUM(C169:C171) -> 0 | D172: 0
A173: % without non drug interventions documented | B173: =IFERROR((B170/(B169+B170))*100, "---") -> --- | C173: =IFERROR((C170/(C169+C170))*100, "---") -> --- | D173: =IFERROR((D170/(D169+D170))*100, "---") -> ---
A178: GDR Outcome | B178: Total | C178: Short Stay | D178: Long Stay
A179: Dose reduced | B179: =COUNTIFS(R4:R111,"Dose reduced") -> 0 | C179: =COUNTIFS(R4:R111,"Dose reduced",D4:D111,"Short Term") -> 0 | D179: =COUNTIFS(R4:R111,"Dose reduced",D4:D111,"Long Term") -> 0
A180: Dose discontinued | B180: =COUNTIFS(R4:R111,"Drug discontinued") -> 0 | C180: =COUNTIFS(R4:R111,"Drug discontinued",D4:D111,"Short Term") -> 0 | D180: =COUNTIFS(R4:R111,"Drug discontinued",D4:D111,"Long Term") -> 0
A181: Return to previous dose | B181: =COUNTIFS(R4:R111,"Return to previous dose") -> 0 | C181: =COUNTIFS(R4:R111,"Return to previous dose",D4:D111,"Short Term") -> 0 | D181: =COUNTIFS(R4:R111,"Return to previous dose",D4:D111,"Long Term") -> 0
A182: Total | B182: =SUM(B179:B181) -> 0 | C182: =SUM(C179:C181) -> 0 | D182: 0
A183: dose reduced or dc'd | B183: =B179+B180 -> 0 | C183: =C179+C180 -> 0 | D183: 0
A184: % dose reduction | B184: =IFERROR((B179/B182)*100, "---") -> --- | C184: =IFERROR((C179/C182)*100, "---") -> --- | D184: =IFERROR((D179/D182)*100, "---") -> ---
A185: % dose discontinued | B185: =IFERROR((B180/B182)*100, "---") -> --- | C185: =IFERROR((C180/C182)*100, "---") -> --- | D185: =IFERROR((D180/D182)*100, "---") -> ---
A186: % dose reduced or discontinued | B186: =IFERROR((B183/B182)*100, "---") -> --- | C186: =IFERROR((C183/C182)*100, "---") -> --- | D186: =IFERROR((D183/D182)*100, "---") -> ---
A191: GDR needed | B191: Total | C191: Short Stay | D191: Long Stay
A192: Yes | B192: =COUNTIFS(S4:S111,"Yes") -> 0 | C192: =COUNTIFS(S4:S111,"Yes",D4:D111,"Short Term") -> 0 | D192: =COUNTIFS(S4:S111,"Yes",D4:D111,"Long Term") -> 0
A193: No | B193: =COUNTIFS(S4:S111,"No") -> 0 | C193: =COUNTIFS(S4:S111,"No",D4:D111,"Short Term") -> 0 | D193: =COUNTIFS(S4:S111,"No",D4:D111,"Long Term") -> 0
A194: Total | B194: =SUM(B192:B193) -> 0 | C194: =SUM(C192:C193) -> 0 | D194: 0
A195: % needing GDR | B195: =IFERROR((B192/B194)*100, "---") -> --- | C195: =IFERROR((C192/C194)*100, "---") -> --- | D195: =IFERROR((D192/D194)*100, "---") -> ---
A200: Reason no GDR attempted | B200: Total | C200: Short Stay | D200: Long Stay
A201: N/A | B201: =COUNTIFS(T4:T111,"N/A") -> 0 | C201: =COUNTIFS(T4:T111,"N/A",D4:D111,"Short Term") -> 0 | D201: =COUNTIFS(T4:T111,"N/A",D4:D111,"Long Term") -> 0
A202: Resident on lowest possible dose | B202: =COUNTIFS(T4:T111,"Resident on lowest possible dose") -> 0 | C202: =COUNTIFS(T4:T111,"Resident on lowest possible dose",D4:D111,"Short Term") -> 0 | D202: =COUNTIFS(T4:T111,"Resident on lowest possible dose",D4:D111,"Long Term") -> 0
A203: Contraindicated per prescriber | B203: =COUNTIFS(T4:T111,"Contraindicated per prescriber") -> 0 | C203: =COUNTIFS(T4:T111,"Contraindicated per prescriber",D4:D111,"Short Term") -> 0 | D203: =COUNTIFS(T4:T111,"Contraindicated per prescriber",D4:D111,"Long Term") -> 0
A204: Other | B204: =COUNTIFS(T4:T111,"Other") -> 0 | C204: =COUNTIFS(T4:T111,"Other",D4:D111,"Short Term") -> 0 | D204: =COUNTIFS(T4:T111,"Other",D4:D111,"Long Term") -> 0
A205: Total | B205: =SUM(B201:B204) -> 0 | C205: =SUM(C201:C204) -> 0 | D205: 0
A206: % resident on lowest possible dose | B206: =IFERROR((B202/B205)*100, "---") -> --- | C206: =IFERROR((C202/C205)*100,"---") -> --- | D206: =IFERROR((D202/D205)*100, "---") -> ---
A207: % contraindicated per prescriber | B207: =IFERROR((B203/B205)*100, "---") -> --- | C207: =IFERROR((C203/C205)*100, "---") -> --- | D207: =IFERROR((D203/D205)*100, "---") -> ---
A208: % other | B208: =IFERROR((B204/B205)*100, "---") -> --- | C208: =IFERROR((C204/C205)*100, "---") -> --- | D208: =IFERROR((D204/D205)*100, "---") -> ---
A213: Adverse Effects | B213: Total | C213: Short Stay | D213: Long Stay
A214: Yes | B214: =COUNTIFS(U4:U111,"Yes") -> 0 | C214: =COUNTIFS(U4:U111,"Yes",D4:D111,"Short Term") -> 0 | D214: =COUNTIFS(U4:U111,"Yes",D4:D111,"Long Term") -> 0
A215: No | B215: =COUNTIFS(U4:U111,"No") -> 0 | C215: =COUNTIFS(U4:U111,"No",D4:D111,"Short Term") -> 0 | D215: =COUNTIFS(U4:U111,"No",D4:D111,"Long Term") -> 0
A216: Total | B216: =SUM(B214:B215) -> 0 | C216: =SUM(C214:C215) -> 0 | D216: 0
A217: % with adverse effects | B217: =IFERROR((B214/B216)*100, "---") -> --- | C217: =IFERROR((C214/C216)*100, "---") -> --- | D217: =IFERROR((D214/D216)*100, "---") -> ---

Sheet November
A1: End of Month Census : | E1: Current residents on antipsychotics: | G1: =SUMPRODUCT((A4:A112<>"")/COUNTIF(A4:A112,A4:A112&"")) -> 0 | H1: Percentage of residents on antipsychotic: | I1: =IFERROR((G1/D1)*100, "---") -> ---
A2: Resident Information | F2: Antipsychotic Medication Information
A3: Room # | B3: Last Name | C3: First Name | D3: Type of Stay | E3: Notes (New Admit, etc) | F3: Antipsychotic Drug Prescribed | G3: Prescriber | H3: Dose Schedule | I3: Date Started | J3: Where was medication started? | K3: Diagnosis associated with antipsychotic | L3: Is Dx Appropriate? (See directions) | M3: List BPSD | N3: Appropriate BPSD documented? | O3: List Non Drug Interventions tried | P3: Non Drug Intv documented? | Q3: Date of most recent GDR | R3: Outcome of GDR | S3: GDR Needed? | T3: Reasons for no GDR being attempted | U3: Has resident experienced adverse drug effects? | V3: If yes, describe adverse effects
C112: TOTALS | L112: =COUNTIF(L4:L111,"Yes") -> 0 | M112: =COUNTIF(M4:M111,"Yes") -> 0 | N112: =COUNTIF(N4:N111,"Yes") -> 0 | O112: =COUNTIF(P4:P111,"Yes") -> 0 | P112: =COUNTIF(Q4:Q111,"Yes") -> 0 | R112: =SUM(S4:S111) -> 0 | S112: =SUM(T4:T111) -> 0
A119: Type of Stay Breakdown
A120: Short Stay | B120: =COUNTIF(D4:D111,"Short Term") -> 0
A121: Long Stay | B121: =COUNTIF(D4:D111,"Long Term") -> 0
A122: Total | B122: =B120+B121 -> 0
A126: Dose Schedule | B126: Total | C126: Short Stay | D126: Long Stay
A127: Scheduled | B127: =COUNTIFS(H4:H111,"Scheduled") -> 0 | C127: =COUNTIFS(H4:H111,"Scheduled",D4:D111,"Short Term") -> 0 | D127: =COUNTIFS(H4:H111,"Scheduled",D4:D111,"Long Term") -> 0
A128: PRN | B128: =COUNTIFS(H4:H111,"PRN") -> 0 | C128: =COUNTIFS(H4:H111,"PRN",D4:D111,"Short Term") -> 0 | D128: =COUNTIFS(H4:H111,"PRN",D4:D111,"Long Term") -> 0
A129: Both | B129: =COUNTIFS(H4:H111,"Both") -> 0 | C129: =COUNTIFS(H4:H111,"Both",D4:D111,"Short Term") -> 0 | D129: =COUNTIFS(H4:H111,"Both",D4:D111,"Long Term") -> 0
A130: Total | B130: =SUM(B127:B129) -> 0 | C130: =SUM(C127:C129) -> 0 | D130: 0
A131: % on a scheduled dose | B131: =IFERROR(((B127/$B$130)*100), "---") -> --- | C131: =IFERROR(((C127/C130)*100), "---") -> --- | D131: =IFERROR(((D127/D130)*100), "---") -> ---
A132: % on a PRN dose | B132: =IFERROR(((B128/$B$130)*100), "---") -> --- | C132: =IFERROR(((C128/$C$130)*100), "---") -> --- | D132: =IFERROR(((D128/$D$130)*100), "---") -> ---
A133: % on both sched & PRN | B133: --- | C133: =IFERROR(((C129/C130)*100),"---") -> --- | D133: =IFERROR(((D129/D130)*100), "---") -> ---
A137: Where Medication Started | B137: Total | C137: Short Stay | D137: Long Stay
A138: SNF | B138: =COUNTIFS(J4:J111,"SNF") -> 0 | C138: =COUNTIFS(J4:J111,"SNF",D4:D111,"Short Term") -> 0 | D138: =COUNTIFS(J4:J111,"SNF",D4:D111,"Long Term") -> 0
A139: Hospital | B139: =COUNTIFS(J4:J111,"Hospital") -> 0 | C139: =COUNTIFS(J4:J111,"Hospital",D4:D111,"Short Term") -> 0 | D139: =COUNTIFS(J4:J111,"Hospital",D4:D111,"Long Term") -> 0
A140: Outpatient | B140: =COUNTIFS(J4:J111,"Outpatient") -> 0 | C140: =COUNTIFS(J4:J111,"Outpatient",D4:D111,"Short Term") -> 0 | D140: =COUNTIFS(J4:J111,"Outpatient",D4:D111,"Long Term") -> 0
A141: Total | B141: =SUM(B138:B140) -> 0 | C141: =SUM(C138:C140) -> 0 | D141: 0
A142: % started in SNF | B142: =IFERROR((B138/B141)*100, "---") -> --- | C142: =IFERROR((C138/C141)*100, "---") -> --- | D142: =IFERROR((D138/D141)*100, "---") -> ---
A143: % started in hospital | B143: =IFERROR((B139/B141)*100, "---") -> --- | C143: =IFERROR((C139/C141)*100, "---") -> --- | D143: =IFERROR((D139/D141)*100, "---") -> ---
A144: % started in outpatient | B144: =IFERROR((B140/B141)*100, "---") -> --- | C144: =IFERROR((C140/C141)*100, "---") -> --- | D144: =IFERROR((D140/D141)*100, "---") -> ---
A149: Dx appropriate | B149: Total | C149: Short Stay | D149: Long Stay
A150: Yes | B150: =COUNTIFS(L4:L111,"Yes") -> 0 | C150: =COUNTIFS(L4:L111,"Yes",D4:D111,"Short Term") -> 0 | D150: =COUNTIFS(L4:L111,"Yes",D4:D111,"Long Term") -> 0
A151: No | B151: =COUNTIFS(L4:L111,"No") -> 0 | C151: =COUNTIFS(L4:L111,"No",D4:D111,"Short Term") -> 0 | D151: =COUNTIFS(L4:L111,"No",D4:D111,"Long Term") -> 0
A152: Total | B152: =SUM(B150:B151) -> 0 | C152: =SUM(C150:C151) -> 0 | D152: 0
A153: % with appropriate diagnosis | B153: =IFERROR((B150/B152)*100, "---") -> --- | C153: =IFERROR((C150/C152)*100, "---") -> --- | D153: =IFERROR((D150/D152)*100, "---") -> ---
A158: BPSD documented | B158: Total | C158: Short Stay | D158: Long Stay
A159: Yes | B159: =COUNTIFS(N4:N111,"Yes") -> 0 | C159: =COUNTIFS(N4:N111,"Yes",D4:D111,"Short Term") -> 0 | D159: =COUNTIFS(N4:N111,"Yes",D4:D111,"Long Term") -> 0
A160: No | B160: =COUNTIFS(N4:N111,"No") -> 0 | C160: =COUNTIFS(N4:N111,"No",D4:D111,"Short Term") -> 0 | D160: =COUNTIFS(N4:N111,"No",D4:D111,"Long Term") -> 0
A161: N/A | B161: =COUNTIFS(N4:N111,"N/A") -> 0 | C161: =COUNTIFS(N4:N111,"N/A",D4:D111,"Short Term") -> 0 | D161: =COUNTIFS(N4:N111,"N/A",D4:D111,"Long Term") -> 0
A162: Total | B162: =SUM(B159:B161) -> 0 | C162: =SUM(C159:C161) -> 0 | D162: 0
A163: % needing BPSD documented | B163: =IFERROR((B160/(B159+B160))*100, "---") -> --- | C163: =IFERROR((C160/(C159+C160))*100, "---") -> --- | D163: =IFERROR((D160/(D159+D160))*100, "---") -> ---
A168: Non drug interventions documented | B168: Total | C168: Short Stay | D168: Long Stay
A169: Yes | B169: =COUNTIFS(P4:P111,"Yes") -> 0 | C169: =COUNTIFS(P4:P111,"Yes",D4:D111,"Short Term") -> 0 | D169: =COUNTIFS(P4:P111,"Yes",D4:D111,"Long Term") -> 0
A170: No | B170: =COUNTIFS(P4:P111,"No") -> 0 | C170: =COUNTIFS(P4:P111,"No",D4:D111,"Short Term") -> 0 | D170: =COUNTIFS(P4:P111,"No",D4:D111,"Long Term") -> 0
A171: N/A | B171: =COUNTIFS(P4:P111,"N/A") -> 0 | C171: =COUNTIFS(P4:P111,"N/A",D4:D111,"Short Term") -> 0 | D171: =COUNTIFS(P4:P111,"N/A",D4:D111,"Long Term") -> 0
A172: Total | B172: =SUM(B169:B171) -> 0 | C172: =SUM(C169:C171) -> 0 | D172: 0
A173: % without non drug interventions documented | B173: =IFERROR((B170/(B169+B170))*100, "---") -> --- | C173: =IFERROR((C170/(C169+C170))*100, "---") -> --- | D173: =IFERROR((D170/(D169+D170))*100, "---") -> ---
A178: GDR Outcome | B178: Total | C178: Short Stay | D178: Long Stay
A179: Dose reduced | B179: =COUNTIFS(R4:R111,"Dose reduced") -> 0 | C179: =COUNTIFS(R4:R111,"Dose reduced",D4:D111,"Short Term") -> 0 | D179: =COUNTIFS(R4:R111,"Dose reduced",D4:D111,"Long Term") -> 0
A180: Dose discontinued | B180: =COUNTIFS(R4:R111,"Drug discontinued") -> 0 | C180: =COUNTIFS(R4:R111,"Drug discontinued",D4:D111,"Short Term") -> 0 | D180: =COUNTIFS(R4:R111,"Drug discontinued",D4:D111,"Long Term") -> 0
A181: Return to previous dose | B181: =COUNTIFS(R4:R111,"Return to previous dose") -> 0 | C181: =COUNTIFS(R4:R111,"Return to previous dose",D4:D111,"Short Term") -> 0 | D181: =COUNTIFS(R4:R111,"Return to previous dose",D4:D111,"Long Term") -> 0
A182: Total | B182: =SUM(B179:B181) -> 0 | C182: =SUM(C179:C181) -> 0 | D182: 0
A183: dose reduced or dc'd | B183: =B179+B180 -> 0 | C183: =C179+C180 -> 0 | D183: 0
A184: % dose reduction | B184: =IFERROR((B179/B182)*100, "---") -> --- | C184: =IFERROR((C179/C182)*100, "---") -> --- | D184: =IFERROR((D179/D182)*100, "---") -> ---
A185: % dose discontinued | B185: =IFERROR((B180/B182)*100, "---") -> --- | C185: =IFERROR((C180/C182)*100, "---") -> --- | D185: =IFERROR((D180/D182)*100, "---") -> ---
A186: % dose reduced or discontinued | B186: =IFERROR((B183/B182)*100, "---") -> --- | C186: =IFERROR((C183/C182)*100, "---") -> --- | D186: =IFERROR((D183/D182)*100, "---") -> ---
A191: GDR needed | B191: Total | C191: Short Stay | D191: Long Stay
A192: Yes | B192: =COUNTIFS(S4:S111,"Yes") -> 0 | C192: =COUNTIFS(S4:S111,"Yes",D4:D111,"Short Term") -> 0 | D192: =COUNTIFS(S4:S111,"Yes",D4:D111,"Long Term") -> 0
A193: No | B193: =COUNTIFS(S4:S111,"No") -> 0 | C193: =COUNTIFS(S4:S111,"No",D4:D111,"Short Term") -> 0 | D193: =COUNTIFS(S4:S111,"No",D4:D111,"Long Term") -> 0
A194: Total | B194: =SUM(B192:B193) -> 0 | C194: =SUM(C192:C193) -> 0 | D194: 0
A195: % needing GDR | B195: =IFERROR((B192/B194)*100, "---") -> --- | C195: =IFERROR((C192/C194)*100, "---") -> --- | D195: =IFERROR((D192/D194)*100, "---") -> ---
A200: Reason no GDR attempted | B200: Total | C200: Short Stay | D200: Long Stay
A201: N/A | B201: =COUNTIFS(T4:T111,"N/A") -> 0 | C201: =COUNTIFS(T4:T111,"N/A",D4:D111,"Short Term") -> 0 | D201: =COUNTIFS(T4:T111,"N/A",D4:D111,"Long Term") -> 0
A202: Resident on lowest possible dose | B202: =COUNTIFS(T4:T111,"Resident on lowest possible dose") -> 0 | C202: =COUNTIFS(T4:T111,"Resident on lowest possible dose",D4:D111,"Short Term") -> 0 | D202: =COUNTIFS(T4:T111,"Resident on lowest possible dose",D4:D111,"Long Term") -> 0
A203: Contraindicated per prescriber | B203: =COUNTIFS(T4:T111,"Contraindicated per prescriber") -> 0 | C203: =COUNTIFS(T4:T111,"Contraindicated per prescriber",D4:D111,"Short Term") -> 0 | D203: =COUNTIFS(T4:T111,"Contraindicated per prescriber",D4:D111,"Long Term") -> 0
A204: Other | B204: =COUNTIFS(T4:T111,"Other") -> 0 | C204: =COUNTIFS(T4:T111,"Other",D4:D111,"Short Term") -> 0 | D204: =COUNTIFS(T4:T111,"Other",D4:D111,"Long Term") -> 0
A205: Total | B205: =SUM(B201:B204) -> 0 | C205: =SUM(C201:C204) -> 0 | D205: 0
A206: % resident on lowest possible dose | B206: =IFERROR((B202/B205)*100, "---") -> --- | C206: =IFERROR((C202/C205)*100, "---") -> --- | D206: =IFERROR((D202/D205)*100, "---") -> ---
A207: % contraindicated per prescriber | B207: =IFERROR((B203/B205)*100, "---") -> --- | C207: =IFERROR((C203/C205)*100,"---") -> --- | D207: =IFERROR((D203/D205)*100, "---") -> ---
A208: % other | B208: =IFERROR((B204/B205)*100, "---") -> --- | C208: =IFERROR((C204/C205)*100, "---") -> --- | D208: =IFERROR((D204/D205)*100, "---") -> ---
A213: Adverse Effects | B213: Total | C213: Short Stay | D213: Long Stay
A214: Yes | B214: =COUNTIFS(U4:U111,"Yes") -> 0 | C214: =COUNTIFS(U4:U111,"Yes",D4:D111,"Short Term") -> 0 | D214: =COUNTIFS(U4:U111,"Yes",D4:D111,"Long Term") -> 0
A215: No | B215: =COUNTIFS(U4:U111,"No") -> 0 | C215: =COUNTIFS(U4:U111,"No",D4:D111,"Short Term") -> 0 | D215: =COUNTIFS(U4:U111,"No",D4:D111,"Long Term") -> 0
A216: Total | B216: =SUM(B214:B215) -> 0 | C216: =SUM(C214:C215) -> 0 | D216: 0
A217: % with adverse effects | B217: =IFERROR((B214/B216)*100, "---") -> --- | C217: =IFERROR((C214/C216)*100, "---") -> --- | D217: =IFERROR((D214/D216)*100, "---") -> ---

Sheet December
A1: End of Month Census : | E1: Current residents on antipsychotics: | G1: =SUMPRODUCT((A4:A112<>"")/COUNTIF(A4:A112,A4:A112&"")) -> 0 | H1: Percentage of residents on antipsychotic: | I1: =IFERROR((G1/D1)*100, "---") -> ---
A2: Resident Information | F2: Antipsychotic Medication Information
A3: Room # | B3: Last Name | C3: First Name | D3: Type of Stay | E3: Notes (New Admit, etc.) | F3: Antipsychotic Drug Prescribed | G3: Prescriber | H3: Dose Schedule | I3: Date Started | J3: Where was medication started? | K3: Diagnosis associated with antipsychotic | L3: Is Dx Appropriate? (See directions) | M3: List BPSD | N3: Appropriate BPSD documented? | O3: List Non Drug Interventions tried | P3: Non Drug Intv documented? | Q3: Date of most recent GDR | R3: Outcome of GDR | S3: GDR Needed? | T3: Reasons for no GDR being attempted | U3: Has resident experienced adverse drug effects? | V3: If yes, describe adverse effects
C112: TOTALS | L112: =COUNTIF(L4:L111,"Yes") -> 0 | M112: =COUNTIF(M4:M111,"Yes") -> 0 | N112: =COUNTIF(N4:N111,"Yes") -> 0 | O112: =COUNTIF(P4:P111,"Yes") -> 0 | P112: =COUNTIF(Q4:Q111,"Yes") -> 0 | R112: =SUM(S4:S111) -> 0 | S112: =SUM(T4:T111) -> 0
A119: Type of Stay Breakdown
A120: Short Stay | B120: =COUNTIF(D4:D111,"Short Term") -> 0
A121: Long Stay | B121: =COUNTIF(D4:D111,"Long Term") -> 0
A122: Total | B122: =B120+B121 -> 0
A126: Dose Schedule | B126: Total | C126: Short Stay | D126: Long Stay
A127: Scheduled | B127: =COUNTIFS(H4:H111,"Scheduled") -> 0 | C127: =COUNTIFS(H4:H111,"Scheduled",D4:D111,"Short Term") -> 0 | D127: =COUNTIFS(H4:H111,"Scheduled",D4:D111,"Long Term") -> 0
A128: PRN | B128: =COUNTIFS(H4:H111,"PRN") -> 0 | C128: =COUNTIFS(H4:H111,"PRN",D4:D111,"Short Term") -> 0 | D128: =COUNTIFS(H4:H111,"PRN",D4:D111,"Long Term") -> 0
A129: Both | B129: =COUNTIFS(H4:H111,"Both") -> 0 | C129: =COUNTIFS(H4:H111,"Both",D4:D111,"Short Term") -> 0 | D129: =COUNTIFS(H4:H111,"Both",D4:D111,"Long Term") -> 0
A130: Total | B130: =SUM(B127:B129) -> 0 | C130: =SUM(C127:C129) -> 0 | D130: 0
A131: % on a scheduled dose | B131: =IFERROR(((B127/$B$130)*100), "---") -> --- | C131: =IFERROR(((C127/C130)*100), "---") -> --- | D131: =IFERROR(((D127/D130)*100), "---") -> ---
A132: % on a PRN dose | B132: =IFERROR(((B128/$B$130)*100), "---") -> --- | C132: =IFERROR(((C128/$C$130)*100), "---") -> --- | D132: =IFERROR(((D128/$D$130)*100), "---") -> ---
A133: % on both sched & PRN | B133: --- | C133: =IFERROR(((C129/C130)*100),"---") -> --- | D133: =IFERROR(((D129/D130)*100), "---") -> ---
A137: Where Medication Started | B137: Total | C137: Short Stay | D137: Long Stay
A138: SNF | B138: =COUNTIFS(J4:J111,"SNF") -> 0 | C138: =COUNTIFS(J4:J111,"SNF",D4:D111,"Short Term") -> 0 | D138: =COUNTIFS(J4:J111,"SNF",D4:D111,"Long Term") -> 0
A139: Hospital | B139: =COUNTIFS(J4:J111,"Hospital") -> 0 | C139: =COUNTIFS(J4:J111,"Hospital",D4:D111,"Short Term") -> 0 | D139: =COUNTIFS(J4:J111,"Hospital",D4:D111,"Long Term") -> 0
A140: Outpatient | B140: =COUNTIFS(J4:J111,"Outpatient") -> 0 | C140: =COUNTIFS(J4:J111,"Outpatient",D4:D111,"Short Term") -> 0 | D140: =COUNTIFS(J4:J111,"Outpatient",D4:D111,"Long Term") -> 0
A141: Total | B141: =SUM(B138:B140) -> 0 | C141: =SUM(C138:C140) -> 0 | D141: 0
A142: % started in SNF | B142: =IFERROR((B138/B141)*100, "---") -> --- | C142: =IFERROR((C138/C141)*100, "---") -> --- | D142: =IFERROR((D138/D141)*100, "---") -> ---
A143: % started in hospital | B143: =IFERROR((B139/B141)*100, "---") -> --- | C143: =IFERROR((C139/C141)*100, "---") -> --- | D143: =IFERROR((D139/D141)*100, "---") -> ---
A144: % started in outpatient | B144: =IFERROR((B140/B141)*100,"---") -> --- | C144: =IFERROR((C140/C141)*100, "---") -> --- | D144: =IFERROR((D140/D141)*100, "---") -> ---
A149: Dx appropriate | B149: Total | C149: Short Stay | D149: Long Stay
A150: Yes | B150: =COUNTIFS(L4:L111,"Yes") -> 0 | C150: =COUNTIFS(L4:L111,"Yes",D4:D111,"Short Term") -> 0 | D150: =COUNTIFS(L4:L111,"Yes",D4:D111,"Long Term") -> 0
A151: No | B151: =COUNTIFS(L4:L111,"No") -> 0 | C151: =COUNTIFS(L4:L111,"No",D4:D111,"Short Term") -> 0 | D151: =COUNTIFS(L4:L111,"No",D4:D111,"Long Term") -> 0
A152: Total | B152: =SUM(B150:B151) -> 0 | C152: =SUM(C150:C151) -> 0 | D152: 0
A153: % with appropriate diagnosis | B153: =IFERROR((B150/B152)*100, "---") -> --- | C153: =IFERROR((C150/C152)*100, "---") -> --- | D153: =IFERROR((D150/D152)*100, "---") -> ---
A158: BPSD documented | B158: Total | C158: Short Stay | D158: Long Stay
A159: Yes | B159: =COUNTIFS(N4:N111,"Yes") -> 0 | C159: =COUNTIFS(N4:N111,"Yes",D4:D111,"Short Term") -> 0 | D159: =COUNTIFS(N4:N111,"Yes",D4:D111,"Long Term") -> 0
A160: No | B160: =COUNTIFS(N4:N111,"No") -> 0 | C160: =COUNTIFS(N4:N111,"No",D4:D111,"Short Term") -> 0 | D160: =COUNTIFS(N4:N111,"No",D4:D111,"Long Term") -> 0
A161: N/A | B161: =COUNTIFS(N4:N111,"N/A") -> 0 | C161: =COUNTIFS(N4:N111,"N/A",D4:D111,"Short Term") -> 0 | D161: =COUNTIFS(N4:N111,"N/A",D4:D111,"Long Term") -> 0
A162: Total | B162: =SUM(B159:B161) -> 0 | C162: =SUM(C159:C161) -> 0 | D162: 0
A163: % needing BPSD documented | B163: =IFERROR((B160/(B159+B160))*100, "---") -> --- | C163: =IFERROR((C160/(C159+C160))*100, "---") -> --- | D163: =IFERROR((D160/(D159+D160))*100, "---") -> ---
A168: Non drug interventions documented | B168: Total | C168: Short Stay | D168: Long Stay
A169: Yes | B169: =COUNTIFS(P4:P111,"Yes") -> 0 | C169: =COUNTIFS(P4:P111,"Yes",D4:D111,"Short Term") -> 0 | D169: =COUNTIFS(P4:P111,"Yes",D4:D111,"Long Term") -> 0
A170: No | B170: =COUNTIFS(P4:P111,"No") -> 0 | C170: =COUNTIFS(P4:P111,"No",D4:D111,"Short Term") -> 0 | D170: =COUNTIFS(P4:P111,"No",D4:D111,"Long Term") -> 0
A171: N/A | B171: =COUNTIFS(P4:P111,"N/A") -> 0 | C171: =COUNTIFS(P4:P111,"N/A",D4:D111,"Short Term") -> 0 | D171: =COUNTIFS(P4:P111,"N/A",D4:D111,"Long Term") -> 0
A172: Total | B172: =SUM(B169:B171) -> 0 | C172: =SUM(C169:C171) -> 0 | D172: 0
A173: % without non drug interventions documented | B173: =IFERROR((B170/(B169+B170))*100, "---") -> --- | C173: =IFERROR((C170/(C169+C170))*100, "---") -> --- | D173: =IFERROR((D170/(D169+D170))*100, "---") -> ---
A178: GDR Outcome | B178: Total | C178: Short Stay | D178: Long Stay
A179: Dose reduced | B179: =COUNTIFS(R4:R111,"Dose reduced") -> 0 | C179: =COUNTIFS(R4:R111,"Dose reduced",D4:D111,"Short Term") -> 0 | D179: =COUNTIFS(R4:R111,"Dose reduced",D4:D111,"Long Term") -> 0
A180: Dose discontinued | B180: =COUNTIFS(R4:R111,"Drug discontinued") -> 0 | C180: =COUNTIFS(R4:R111,"Drug discontinued",D4:D111,"Short Term") -> 0 | D180: =COUNTIFS(R4:R111,"Drug discontinued",D4:D111,"Long Term") -> 0
A181: Return to previous dose | B181: =COUNTIFS(R4:R111,"Return to previous dose") -> 0 | C181: =COUNTIFS(R4:R111,"Return to previous dose",D4:D111,"Short Term") -> 0 | D181: =COUNTIFS(R4:R111,"Return to previous dose",D4:D111,"Long Term") -> 0
A182: Total | B182: =SUM(B179:B181) -> 0 | C182: =SUM(C179:C181) -> 0 | D182: 0
A183: dose reduced or dc'd | B183: =B179+B180 -> 0 | C183: =C179+C180 -> 0 | D183: 0
A184: % dose reduction | B184: =IFERROR((B179/B182)*100, "---") -> --- | C184: =IFERROR((C179/C182)*100, "---") -> --- | D184: =IFERROR((D179/D182)*100, "---") -> ---
A185: % dose discontinued | B185: =IFERROR((B180/B182)*100, "---") -> --- | C185: =IFERROR((C180/C182)*100, "---") -> --- | D185: =IFERROR((D180/D182)*100, "---") -> ---
A186: % dose reduced or discontinued | B186: =IFERROR((B183/B182)*100, "---") -> --- | C186: =IFERROR((C183/C182)*100, "---") -> --- | D186: =IFERROR((D183/D182)*100, "---") -> ---
A191: GDR needed | B191: Total | C191: Short Stay | D191: Long Stay
A192: Yes | B192: =COUNTIFS(S4:S111,"Yes") -> 0 | C192: =COUNTIFS(S4:S111,"Yes",D4:D111,"Short Term") -> 0 | D192: =COUNTIFS(S4:S111,"Yes",D4:D111,"Long Term") -> 0
A193: No | B193: =COUNTIFS(S4:S111,"No") -> 0 | C193: =COUNTIFS(S4:S111,"No",D4:D111,"Short Term") -> 0 | D193: =COUNTIFS(S4:S111,"No",D4:D111,"Long Term") -> 0
A194: Total | B194: =SUM(B192:B193) -> 0 | C194: =SUM(C192:C193) -> 0 | D194: 0
A195: % needing GDR | B195: =IFERROR((B192/B194)*100, "---") -> --- | C195: =IFERROR((C192/C194)*100, "---") -> --- | D195: =IFERROR((D192/D194)*100, "---") -> ---
A200: Reason no GDR attempted | B200: Total | C200: Short Stay | D200: Long Stay
A201: N/A | B201: =COUNTIFS(T4:T111,"N/A") -> 0 | C201: =COUNTIFS(T4:T111,"N/A",D4:D111,"Short Term") -> 0 | D201: =COUNTIFS(T4:T111,"N/A",D4:D111,"Long Term") -> 0
A202: Resident on lowest possible dose | B202: =COUNTIFS(T4:T111,"Resident on lowest possible dose") -> 0 | C202: =COUNTIFS(T4:T111,"Resident on lowest possible dose",D4:D111,"Short Term") -> 0 | D202: =COUNTIFS(T4:T111,"Resident on lowest possible dose",D4:D111,"Long Term") -> 0
A203: Contraindicated per prescriber | B203: =COUNTIFS(T4:T111,"Contraindicated per prescriber") -> 0 | C203: =COUNTIFS(T4:T111,"Contraindicated per prescriber",D4:D111,"Short Term") -> 0 | D203: =COUNTIFS(T4:T111,"Contraindicated per prescriber",D4:D111,"Long Term") -> 0
A204: Other | B204: =COUNTIFS(T4:T111,"Other") -> 0 | C204: =COUNTIFS(T4:T111,"Other",D4:D111,"Short Term") -> 0 | D204: =COUNTIFS(T4:T111,"Other",D4:D111,"Long Term") -> 0
A205: Total | B205: =SUM(B201:B204) -> 0 | C205: =SUM(C201:C204) -> 0 | D205: 0
A206: % resident on lowest possible dose | B206: =IFERROR((B202/B205)*100, "---") -> --- | C206: =IFERROR((C202/C205)*100, "---") -> --- | D206: =IFERROR((D202/D205)*100, "---") -> ---
A207: % contraindicated per prescriber | B207: =IFERROR((B203/B205)*100, "---") -> --- | C207: =IFERROR((C203/C205)*100, "---") -> --- | D207: =IFERROR((D203/D205)*100, "---") -> ---
A208: % other | B208: =IFERROR((B204/B205)*100, "---") -> --- | C208: =IFERROR((C204/C205)*100,"---") -> --- | D208: =IFERROR((D204/D205)*100, "---") -> ---
A213: Adverse Effects | B213: Total | C213: Short Stay | D213: Long Stay
A214: Yes | B214: =COUNTIFS(U4:U111,"Yes") -> 0 | C214: =COUNTIFS(U4:U111,"Yes",D4:D111,"Short Term") -> 0 | D214: =COUNTIFS(U4:U111,"Yes",D4:D111,"Long Term") -> 0
A215: No | B215: =COUNTIFS(U4:U111,"No") -> 0 | C215: =COUNTIFS(U4:U111,"No",D4:D111,"Short Term") -> 0 | D215: =COUNTIFS(U4:U111,"No",D4:D111,"Long Term") -> 0
A216: Total | B216: =SUM(B214:B215) -> 0 | C216: =SUM(C214:C215) -> 0 | D216: 0
A217: % with adverse effects | B217: =IFERROR((B214/B216)*100, "---") -> --- | C217: =IFERROR((C214/C216)*100, "---") -> --- | D217: =IFERROR((D214/D216)*100, "---") -> ---

Sheet Trending Charts

Sheet Detail Charts

Sheet Trending Data (hidden)
A1: Antipsychotic | B1: Totals | C1: Jan | D1: Feb | E1: March | F1: April | G1: May | H1: June | I1: Jul | J1: Aug | K1: Sept | L1: Oct | M1: Nov | N1: Dec
A2: Type of Stay | B2: Short Stay | C2: =IFERROR((January!$B$120),"---") -> 0 | D2: =IFERROR((February!$B$120),"---") -> 0 | E2: =IFERROR((March!$B$120),"---") -> 0 | F2: =IFERROR((April!$B$120),"---") -> 0 | G2: =IFERROR((May!$B$120),"---") -> 0 | H2: =IFERROR((June!$B$120),"---") -> 0 | I2: =IFERROR((July!$B$120),"---") -> 0 | J2: =IFERROR((August!$B$120),"---") -> 0 | K2: =IFERROR((September!$B$120),"---") -> 0 | L2: =IFERROR((October!$B$120),"---") -> 0 | M2: =IFERROR((November!$B$120),"---") -> 0 | N2: =IFERROR((December!$B$120),"---") -> 0
A3: Type of Stay | B3: Long Stay | C3: =IFERROR((January!$B$121),"---") -> 0 | D3: =IFERROR((February!$B$121),"---") -> 0 | E3: =IFERROR((March!$B$121),"---") -> 0 | F3: =IFERROR((April!$B$121),"---") -> 0 | G3: =IFERROR((May!$B$121),"---") -> 0 | H3: =IFERROR((June!$B$121),"---") -> 0 | I3: =IFERROR((July!$B$121),"---") -> 0 | J3: =IFERROR((August!$B$121),"---") -> 0 | K3: =IFERROR((September!$B$121),"---") -> 0 | L3: =IFERROR((October!$B$121),"---") -> 0 | M3: =IFERROR((November!$B$121),"---") -> 0 | N3: =IFERROR((December!$B$121),"---") -> 0
A4: Type of Stay | B4: Total | C4: =IFERROR((January!$B$122),"---") -> 0 | D4: =IFERROR((February!$B$122),"---") -> 0 | E4: =IFERROR((March!$B$122),"---") -> 0 | F4: =IFERROR((April!$B$122),"---") -> 0 | G4: =IFERROR((May!$B$122),"---") -> 0 | H4: =IFERROR((June!$B$122),"---") -> 0 | I4: =IFERROR((July!$B$122),"---") -> 0 | J4: =IFERROR((August!$B$122),"---") -> 0 | K4: =IFERROR((September!$B$122),"---") -> 0 | L4: =IFERROR((October!$B$122),"---") -> 0 | M4: =IFERROR((November!$B$122),"---") -> 0 | N4: =IFERROR((December!$B$122),"---") -> 0
A5: Dose Scheduled | B5: Short Stay | C5: =IFERROR((January!$C$127),"---") -> 0 | D5: =IFERROR((February!$C$127),"---") -> 0 | E5: =IFERROR((March!$C$127),"---") -> 0 | F5: =IFERROR((April!$C$127),"---") -> 0 | G5: =IFERROR((May!$C$127),"---") -> 0 | H5: =IFERROR((June!$C$127),"---") -> 0 | I5: =IFERROR((July!$C$127),"---") -> 0 | J5: =IFERROR((August!$C$127),"---") -> 0 | K5: =IFERROR((September!$C$127),"---") -> 0 | L5: =IFERROR((October!$C$127),"---") -> 0 | M5: =IFERROR((November!$C$127),"---") -> 0 | N5: =IFERROR((December!$C$127),"---") -> 0
A6: Dose Scheduled | B6: Long Stay | C6: =IFERROR((January!$D$127),"---") -> 0 | D6: =IFERROR((February!$D$127),"---") -> 0 | E6: =IFERROR((March!$D$127),"---") -> 0 | F6: =IFERROR((April!$D$127),"---") -> 0 | G6: =IFERROR((May!$D$127),"---") -> 0 | H6: =IFERROR((June!$D$127),"---") -> 0 | I6: =IFERROR((July!$D$127),"---") -> 0 | J6: =IFERROR((August!$D$127),"---") -> 0 | K6: =IFERROR((September!$D$127),"---") -> 0 | L6: =IFERROR((October!$D$127),"---") -> 0 | M6: =IFERROR((November!$D$127),"---") -> 0 | N6: =IFERROR((December!$D$127),"---") -> 0
A7: Dose Scheduled | B7: Total | C7: =IFERROR((January!$B$127),"---") -> 0 | D7: =IFERROR((February!$B$127),"---") -> 0 | E7: =IFERROR((March!$B$127),"---") -> 0 | F7: =IFERROR((April!$B$127),"---") -> 0 | G7: =IFERROR((May!$B$127),"---") -> 0 | H7: =IFERROR((June!$B$127),"---") -> 0 | I7: =IFERROR((July!$B$127),"---") -> 0 | J7: =IFERROR((August!$B$127),"---") -> 0 | K7: =IFERROR((September!$B$127),"---") -> 0 | L7: =IFERROR((October!$B$127),"---") -> 0 | M7: =IFERROR((November!$B$127),"---") -> 0 | N7: =IFERROR((December!$B$127),"---") -> 0
A8: % Scheduled | B8: Short Stay | C8: =IFERROR((January!$C$131),"---") -> --- | D8: =IFERROR((February!$C$131),"---") -> --- | E8: =IFERROR((March!$C$131),"---") -> --- | F8: =IFERROR((April!$C$131),"---") -> --- | G8: =IFERROR((May!$C$131),"---") -> --- | H8: =IFERROR((June!$C$131),"---") -> --- | I8: =IFERROR((July!$C$131),"---") -> --- | J8: =IFERROR((August!$C$131),"---") -> --- | K8: =IFERROR((September!$C$131),"---") -> --- | L8: =IFERROR((October!$C$131),"---") -> --- | M8: =IFERROR((November!$C$131),"---") -> --- | N8: =IFERROR((December!$C$131),"---") -> ---
A9: % Scheduled | B9: Long Stay | C9: =IFERROR((January!$D$131),"---") -> --- | D9: =IFERROR((February!$D$131),"---") -> --- | E9: =IFERROR((March!$D$131),"---") -> --- | F9: =IFERROR((April!$D$131),"---") -> --- | G9: =IFERROR((May!$D$131),"---") -> --- | H9: =IFERROR((June!$D$131),"---") -> --- | I9: =IFERROR((July!$D$131),"---") -> --- | J9: =IFERROR((August!$D$131),"---") -> --- | K9: =IFERROR((September!$D$131),"---") -> --- | L9: =IFERROR((October!$D$131),"---") -> --- | M9: =IFERROR((November!$D$131),"---") -> --- | N9: =IFERROR((December!$D$131),"---") -> ---
A10: % Scheduled | B10: Total | C10: =IFERROR((January!$B$131),"---") -> --- | D10: =IFERROR((February!$B$131),"---") -> --- | E10: =IFERROR((March!$B$131),"---") -> --- | F10: =IFERROR((April!$B$131),"---") -> --- | G10: =IFERROR((May!$B$131),"---") -> --- | H10: =IFERROR((June!$B$131),"---") -> --- | I10: =IFERROR((July!$B$131),"---") -> --- | J10: =IFERROR((August!$B$131),"---") -> --- | K10: =IFERROR((September!$B$131),"---") -> --- | L10: =IFERROR((October!$B$131),"---") -> --- | M10: =IFERROR((November!$B$131),"---") -> --- | N10: =IFERROR((December!$B$131),"---") -> ---
A11: Dose PRN | B11: Short Stay | C11: =IFERROR((January!$C$128),"---") -> 0 | D11: =IFERROR((February!$C$128),"---") -> 0 | E11: =IFERROR((March!$C$128),"---") -> 0 | F11: =IFERROR((April!$C$128),"---") -> 0 | G11: =IFERROR((May!$C$128),"---") -> 0 | H11: =IFERROR((June!$C$128),"---") -> 0 | I11: =IFERROR((July!$C$128),"---") -> 0 | J11: =IFERROR((August!$C$128),"---") -> 0 | K11: =IFERROR((September!$C$128),"---") -> 0 | L11: =IFERROR((October!$C$128),"---") -> 0 | M11: =IFERROR((November!$C$128),"---") -> 0 | N11: =IFERROR((December!$C$128),"---") -> 0
A12: Dose PRN | B12: Long Stay | C12: =IFERROR((January!$D$128),"---") -> 0 | D12: =IFERROR((February!$D$128),"---") -> 0 | E12: =IFERROR((March!$D$128),"---") -> 0 | F12: =IFERROR((April!$D$128),"---") -> 0 | G12: =IFERROR((May!$D$128),"---") -> 0 | H12: =IFERROR((June!$D$128),"---") -> 0 | I12: =IFERROR((July!$D$128),"---") -> 0 | J12: =IFERROR((August!$D$128),"---") -> 0 | K12: =IFERROR((September!$D$128),"---") -> 0 | L12: =IFERROR((October!$D$128),"---") -> 0 | M12: =IFERROR((November!$D$128),"---") -> 0 | N12: =IFERROR((December!$D$128),"---") -> 0
A13: Dose PRN | B13: Total | C13: =IFERROR((January!$B$128),"---") -> 0 | D13: =IFERROR((February!$B$128),"---") -> 0 | E13: =IFERROR((March!$B$128),"---") -> 0 | F13: =IFERROR((April!$B$128),"---") -> 0 | G13: =IFERROR((May!$B$128),"---") -> 0 | H13: =IFERROR((June!$B$128),"---") -> 0 | I13: =IFERROR((July!$B$128),"---") -> 0 | J13: =IFERROR((August!$B$128),"---") -> 0 | K13: =IFERROR((September!$B$128),"---") -> 0 | L13: =IFERROR((October!$B$128),"---") -> 0 | M13: =IFERROR((November!$B$128),"---") -> 0 | N13: =IFERROR((December!$B$128),"---") -> 0
A14: % PRN | B14: Short Stay | C14: =IFERROR((January!$C$132),"---") -> --- | D14: =IFERROR((February!$C$132),"---") -> --- | E14: =IFERROR((March!$C$132),"---") -> --- | F14: =IFERROR((April!$C$132),"---") -> --- | G14: =IFERROR((May!$C$132),"---") -> --- | H14: =IFERROR((June!$C$132),"---") -> --- | I14: =IFERROR((July!$C$132),"---") -> --- | J14: =IFERROR((August!$C$132),"---") -> --- | K14: =IFERROR((September!$C$132),"---") -> --- | L14: =IFERROR((October!$C$132),"---") -> --- | M14: =IFERROR((November!$C$132),"---") -> --- | N14: =IFERROR((December!$C$132),"---") -> ---
A15: % PRN | B15: Long Stay | C15: =IFERROR((January!$D$132),"---") -> --- | D15: =IFERROR((February!$D$132),"---") -> --- | E15: =IFERROR((March!$D$132),"---") -> --- | F15: =IFERROR((April!$D$132),"---") -> --- | G15: =IFERROR((May!$D$132),"---") -> --- | H15: =IFERROR((June!$D$132),"---") -> --- | I15: =IFERROR((July!$D$132),"---") -> --- | J15: =IFERROR((August!$D$132),"---") -> --- | K15: =IFERROR((September!$D$132),"---") -> --- | L15: =IFERROR((October!$D$132),"---") -> --- | M15: =IFERROR((November!$D$132),"---") -> --- | N15: =IFERROR((December!$D$132),"---") -> ---
A16: % PRN | B16: Total | C16: =IFERROR((January!$B$132),"---") -> --- | D16: =IFERROR((February!$B$132),"---") -> --- | E16: =IFERROR((March!$B$132),"---") -> --- | F16: =IFERROR((April!$B$132),"---") -> --- | G16: =IFERROR((May!$B$132),"---") -> --- | H16: =IFERROR((June!$B$132),"---") -> --- | I16: =IFERROR((July!$B$132),"---") -> --- | J16: =IFERROR((August!$B$132),"---") -> --- | K16: =IFERROR((September!$B$132),"---") -> --- | L16: =IFERROR((October!$B$132),"---") -> --- | M16: =IFERROR((November!$B$132),"---") -> --- | N16: =IFERROR((December!$B$132),"---") -> ---
A17: Dose Both (Sched + PRN) | B17: Short Stay | C17: =IFERROR((January!$C$129),"---") -> 0 | D17: =IFERROR((February!$C$129),"---") -> 0 | E17: =IFERROR((March!$C$129),"---") -> 0 | F17: =IFERROR((April!$C$129),"---") -> 0 | G17: =IFERROR((May!$C$129),"---") -> 0 | H17: =IFERROR((June!$C$129),"---") -> 0 | I17: =IFERROR((July!$C$129),"---") -> 0 | J17: =IFERROR((August!$C$129),"---") -> 0 | K17: =IFERROR((September!$C$129),"---") -> 0 | L17: =IFERROR((October!$C$129),"---") -> 0 | M17: =IFERROR((November!$C$129),"---") -> 0 | N17: =IFERROR((December!$C$129),"---") -> 0
A18: Dose Both (Sched + PRN) | B18: Long Stay | C18: =IFERROR((January!$D$129),"---") -> 0 | D18: =IFERROR((February!$D$129),"---") -> 0 | E18: =IFERROR((March!$D$129),"---") -> 0 | F18: =IFERROR((April!$D$129),"---") -> 0 | G18: =IFERROR((May!$D$129),"---") -> 0 | H18: =IFERROR((June!$D$129),"---") -> 0 | I18: =IFERROR((July!$D$129),"---") -> 0 | J18: =IFERROR((August!$D$129),"---") -> 0 | K18: =IFERROR((September!$D$129),"---") -> 0 | L18: =IFERROR((October!$D$129),"---") -> 0 | M18: =IFERROR((November!$D$129),"---") -> 0 | N18: =IFERROR((December!$D$129),"---") -> 0
A19: Dose Both (Sched + PRN) | B19: Total | C19: =IFERROR((January!$B$129),"---") -> 0 | D19: =IFERROR((February!$B$129),"---") -> 0 | E19: =IFERROR((March!$B$129),"---") -> 0 | F19: =IFERROR((April!$B$129),"---") -> 0 | G19: =IFERROR((May!$B$129),"---") -> 0 | H19: =IFERROR((June!$B$129),"---") -> 0 | I19: =IFERROR((July!$B$129),"---") -> 0 | J19: =IFERROR((August!$B$129),"---") -> 0 | K19: =IFERROR((September!$B$129),"---") -> 0 | L19: =IFERROR((October!$B$129),"---") -> 0 | M19: =IFERROR((November!$B$129),"---") -> 0 | N19: =IFERROR((December!$B$129),"---") -> 0
A20: % sched both | B20: Short Stay | C20: =IFERROR((January!$C$133),"---") -> --- | D20: =IFERROR((February!#REF!),"---") -> --- | E20: =IFERROR((March!#REF!),"---") -> --- | F20: =IFERROR((April!#REF!),"---") -> --- | G20: =IFERROR((May!#REF!),"---") -> --- | H20: =IFERROR((June!#REF!),"---") -> --- | I20: =IFERROR((July!#REF!),"---") -> --- | J20: =IFERROR((August!#REF!),"---") -> --- | K20: =IFERROR((September!#REF!),"---") -> --- | L20: =IFERROR((October!#REF!),"---") -> --- | M20: =IFERROR((November!#REF!),"---") -> --- | N20: =IFERROR((December!#REF!),"---") -> ---
A21: % sched both | B21: Long Stay | C21: =IFERROR((January!$D$133),"---") -> --- | D21: =IFERROR((February!#REF!),"---") -> --- | E21: =IFERROR((March!#REF!),"---") -> --- | F21: =IFERROR((April!#REF!),"---") -> --- | G21: =IFERROR((May!#REF!),"---") -> --- | H21: =IFERROR((June!#REF!),"---") -> --- | I21: =IFERROR((July!#REF!),"---") -> --- | J21: =IFERROR((August!#REF!),"---") -> --- | K21: =IFERROR((September!#REF!),"---") -> --- | L21: =IFERROR((October!#REF!),"---") -> --- | M21: =IFERROR((November!#REF!),"---") -> --- | N21: =IFERROR((December!#REF!),"---") -> ---
A22: % sched both | B22: Total | C22: =IFERROR((January!$B$133),"---") -> --- | D22: =IFERROR((February!#REF!),"---") -> --- | E22: =IFERROR((March!#REF!),"---") -> --- | F22: =IFERROR((April!#REF!),"---") -> --- | G22: =IFERROR((May!#REF!),"---") -> --- | H22: =IFERROR((June!#REF!),"---") -> --- | I22: =IFERROR((July!#REF!),"---") -> --- | J22: =IFERROR((August!#REF!),"---") -> --- | K22: =IFERROR((September!#REF!),"---") -> --- | L22: =IFERROR((October!#REF!),"---") -> --- | M22: =IFERROR((November!#REF!),"---") -> --- | N22: =IFERROR((December!#REF!),"---") -> ---
A23: Started in SNF | B23: Short Stay | C23: =IFERROR((January!$C$138),"---") -> 0 | D23: =IFERROR((February!$C$138),"---") -> 0 | E23: =IFERROR((March!$C$138),"---") -> 0 | F23: =IFERROR((April!$C$138),"---") -> 0 | G23: =IFERROR((May!$C$138),"---") -> 0 | H23: =IFERROR((June!$C$138),"---") -> 0 | I23: =IFERROR((July!$C$138),"---") -> 0 | J23: =IFERROR((August!$C$138),"---") -> 0 | K23: =IFERROR((September!$C$138),"---") -> 0 | L23: =IFERROR((October!$C$138),"---") -> 0 | M23: =IFERROR((November!$C$138),"---") -> 0 | N23: =IFERROR((December!$C$138),"---") -> 0
A24: Started in SNF | B24: Long Stay | C24: =IFERROR((January!$D$138),"---") -> 0 | D24: =IFERROR((February!$D$138),"---") -> 0 | E24: =IFERROR((March!$D$138),"---") -> 0 | F24: =IFERROR((April!$D$138),"---") -> 0 | G24: =IFERROR((May!$D$138),"---") -> 0 | H24: =IFERROR((June!$D$138),"---") -> 0 | I24: =IFERROR((July!$D$138),"---") -> 0 | J24: =IFERROR((August!$D$138),"---") -> 0 | K24: =IFERROR((September!$D$138),"---") -> 0 | L24: =IFERROR((October!$D$138),"---") -> 0 | M24: =IFERROR((November!$D$138),"---") -> 0 | N24: =IFERROR((December!$D$138),"---") -> 0
A25: Started in SNF | B25: Total | C25: =IFERROR((January!$B$138),"---") -> 0 | D25: =IFERROR((February!$B$138),"---") -> 0 | E25: =IFERROR((March!$B$138),"---") -> 0 | F25: =IFERROR((April!$B$138),"---") -> 0 | G25: =IFERROR((May!$B$138),"---") -> 0 | H25: =IFERROR((June!$B$138),"---") -> 0 | I25: =IFERROR((July!$B$138),"---") -> 0 | J25: =IFERROR((August!$B$138),"---") -> 0 | K25: =IFERROR((September!$B$138),"---") -> 0 | L25: =IFERROR((October!$B$138),"---") -> 0 | M25: =IFERROR((November!$B$138),"---") -> 0 | N25: =IFERROR((December!$B$138),"---") -> 0
A26: Started in Hospital | B26: Short Stay | C26: =IFERROR((January!$C$139),"---") -> 0 | D26: =IFERROR((February!$C$139),"---") -> 0 | E26: =IFERROR((March!$C$139),"---") -> 0 | F26: =IFERROR((April!$C$139),"---") -> 0 | G26: =IFERROR((May!$C$139),"---") -> 0 | H26: =IFERROR((June!$C$139),"---") -> 0 | I26: =IFERROR((July!$C$139),"---") -> 0 | J26: =IFERROR((August!$C$139),"---") -> 0 | K26: =IFERROR((September!$C$139),"---") -> 0 | L26: =IFERROR((October!$C$139),"---") -> 0 | M26: =IFERROR((November!$C$139),"---") -> 0 | N26: =IFERROR((December!$C$139),"---") -> 0
A27: Started in Hospital | B27: Long Stay | C27: =IFERROR((January!$D$139),"---") -> 0 | D27: =IFERROR((February!$D$139),"---") -> 0 | E27: =IFERROR((March!$D$139),"---") -> 0 | F27: =IFERROR((April!$D$139),"---") -> 0 | G27: =IFERROR((May!$D$139),"---") -> 0 | H27: =IFERROR((June!$D$139),"---") -> 0 | I27: =IFERROR((July!$D$139),"---") -> 0 | J27: =IFERROR((August!$D$139),"---") -> 0 | K27: =IFERROR((September!$D$139),"---") -> 0 | L27: =IFERROR((October!$D$139),"---") -> 0 | M27: =IFERROR((November!$D$139),"---") -> 0 | N27: =IFERROR((December!$D$139),"---") -> 0
A28: Started in Hospital | B28: Total | C28: =IFERROR((January!$B$139),"---") -> 0 | D28: =IFERROR((February!$B$139),"---") -> 0 | E28: =IFERROR((March!$B$139),"---") -> 0 | F28: =IFERROR((April!$B$139),"---") -> 0 | G28: =IFERROR((May!$B$139),"---") -> 0 | H28: =IFERROR((June!$B$139),"---") -> 0 | I28: =IFERROR((July!$B$139),"---") -> 0 | J28: =IFERROR((August!$B$139),"---") -> 0 | K28: =IFERROR((September!$B$139),"---") -> 0 | L28: =IFERROR((October!$B$139),"---") -> 0 | M28: =IFERROR((November!$B$139),"---") -> 0 | N28: =IFERROR((December!$B$139),"---") -> 0
A29: Started in Outpatient | B29: Short Stay | C29: =IFERROR((January!$C$140),"---") -> 0 | D29: =IFERROR((February!$C$140),"---") -> 0 | E29: =IFERROR((March!$C$140),"---") -> 0 | F29: =IFERROR((April!$C$140),"---") -> 0 | G29: =IFERROR((May!$C$140),"---") -> 0 | H29: =IFERROR((June!$C$140),"---") -> 0 | I29: =IFERROR((July!$C$140),"---") -> 0 | J29: =IFERROR((August!$C$140),"---") -> 0 | K29: =IFERROR((September!$C$140),"---") -> 0 | L29: =IFERROR((October!$C$140),"---") -> 0 | M29: =IFERROR((November!$C$140),"---") -> 0 | N29: =IFERROR((December!$C$140),"---") -> 0
A30: Started in Outpatient | B30: Long Stay | C30: =IFERROR((January!$D$140),"---") -> 0 | D30: =IFERROR((February!$D$140),"---") -> 0 | E30: =IFERROR((March!$D$140),"---") -> 0 | F30: =IFERROR((April!$D$140),"---") -> 0 | G30: =IFERROR((May!$D$140),"---") -> 0 | H30: =IFERROR((June!$D$140),"---") -> 0 | I30: =IFERROR((July!$D$140),"---") -> 0 | J30: =IFERROR((August!$D$140),"---") -> 0 | K30: =IFERROR((September!$D$140),"---") -> 0 | L30: =IFERROR((October!$D$140),"---") -> 0 | M30: =IFERROR((November!$D$140),"---") -> 0 | N30: =IFERROR((December!$D$140),"---") -> 0
A31: Started in Outpatient | B31: Total | C31: =IFERROR((January!$B$140),"---") -> 0 | D31: =IFERROR((February!$B$140),"---") -> 0 | E31: =IFERROR((March!$B$140),"---") -> 0 | F31: =IFERROR((April!$B$140),"---") -> 0 | G31: =IFERROR((May!$B$140),"---") -> 0 | H31: =IFERROR((June!$B$140),"---") -> 0 | I31: =IFERROR((July!$B$140),"---") -> 0 | J31: =IFERROR((August!$B$140),"---") -> 0 | K31: =IFERROR((September!$B$140),"---") -> 0 | L31: =IFERROR((October!$B$140),"---") -> 0 | M31: =IFERROR((November!$B$140),"---") -> 0 | N31: =IFERROR((December!$B$140),"---") -> 0
A32: % started in SNF | B32: Short Stay | C32: =IFERROR((January!$C$142),"---") -> --- | D32: =IFERROR((February!$C$142),"---") -> --- | E32: =IFERROR((March!$C$142),"---") -> --- | F32: =IFERROR((April!$C$142),"---") -> --- | G32: =IFERROR((May!$C$142),"---") -> --- | H32: =IFERROR((June!$C$142),"---") -> --- | I32: =IFERROR((July!$C$142),"---") -> --- | J32: =IFERROR((August!$C$142),"---") -> --- | K32: =IFERROR((September!$C$142),"---") -> --- | L32: =IFERROR((October!$C$142),"---") -> --- | M32: =IFERROR((November!$C$142),"---") -> --- | N32: =IFERROR((December!$C$142),"---") -> ---
A33: % started in SNF | B33: Long Stay | C33: =IFERROR((January!$D$142),"---") -> --- | D33: =IFERROR((February!$D$142),"---") -> --- | E33: =IFERROR((March!$D$142),"---") -> --- | F33: =IFERROR((April!$D$142),"---") -> --- | G33: =IFERROR((May!$D$142),"---") -> --- | H33: =IFERROR((June!$D$142),"---") -> --- | I33: =IFERROR((July!$D$142),"---") -> --- | J33: =IFERROR((August!$D$142),"---") -> --- | K33: =IFERROR((September!$D$142),"---") -> --- | L33: =IFERROR((October!$D$142),"---") -> --- | M33: =IFERROR((November!$D$142),"---") -> --- | N33: =IFERROR((December!$D$142),"---") -> ---
A34: % started in SNF | B34: Total | C34: =IFERROR((January!$B$142),"---") -> --- | D34: =IFERROR((February!$B$142),"---") -> --- | E34: =IFERROR((March!$B$142),"---") -> --- | F34: =IFERROR((April!$B$142),"---") -> --- | G34: =IFERROR((May!$B$142),"---") -> --- | H34: =IFERROR((June!$B$142),"---") -> --- | I34: =IFERROR((July!$B$142),"---") -> --- | J34: =IFERROR((August!$B$142),"---") -> --- | K34: =IFERROR((September!$B$142),"---") -> --- | L34: =IFERROR((October!$B$142),"---") -> --- | M34: =IFERROR((November!$B$142),"---") -> --- | N34: =IFERROR((December!$B$142),"---") -> ---
A35: % started in hospital | B35: Short Stay | C35: =IFERROR((January!$C$143),"---") -> --- | D35: =IFERROR((February!$C$143),"---") -> --- | E35: =IFERROR((March!$C$143),"---") -> --- | F35: =IFERROR((April!$C$143),"---") -> --- | G35: =IFERROR((May!$C$143),"---") -> --- | H35: =IFERROR((June!$C$143),"---") -> --- | I35: =IFERROR((July!$C$143),"---") -> --- | J35: =IFERROR((August!$C$143),"---") -> --- | K35: =IFERROR((September!$C$143),"---") -> --- | L35: =IFERROR((October!$C$143),"---") -> --- | M35: =IFERROR((November!$C$143),"---") -> --- | N35: =IFERROR((December!$C$143),"---") -> ---
A36: % started in hospital | B36: Long Stay | C36: =IFERROR((January!$D$143),"---") -> --- | D36: =IFERROR((February!$D$143),"---") -> --- | E36: =IFERROR((March!$D$143),"---") -> --- | F36: =IFERROR((April!$D$143),"---") -> --- | G36: =IFERROR((May!$D$143),"---") -> --- | H36: =IFERROR((June!$D$143),"---") -> --- | I36: =IFERROR((July!$D$143),"---") -> --- | J36: =IFERROR((August!$D$143),"---") -> --- | K36: =IFERROR((September!$D$143),"---") -> --- | L36: =IFERROR((October!$D$143),"---") -> --- | M36: =IFERROR((November!$D$143),"---") -> --- | N36: =IFERROR((December!$D$143),"---") -> ---
A37: % started in hospital | B37: Total | C37: =IFERROR((January!$B$143),"---") -> --- | D37: =IFERROR((February!$B$143),"---") -> --- | E37: =IFERROR((March!$B$143),"---") -> --- | F37: =IFERROR((April!$B$143),"---") -> --- | G37: =IFERROR((May!$B$143),"---") -> --- | H37: =IFERROR((June!$B$143),"---") -> --- | I37: =IFERROR((July!$B$143),"---") -> --- | J37: =IFERROR((August!$B$143),"---") -> --- | K37: =IFERROR((September!$B$143),"---") -> --- | L37: =IFERROR((October!$B$143),"---") -> --- | M37: =IFERROR((November!$B$143),"---") -> --- | N37: =IFERROR((December!$B$143),"---") -> ---
A38: % started in outpatient | B38: Short Stay | C38: =IFERROR((January!$C$144),"---") -> --- | D38: =IFERROR((February!$C$144),"---") -> --- | E38: =IFERROR((March!$C$144),"---") -> --- | F38: =IFERROR((April!$C$144),"---") -> --- | G38: =IFERROR((May!$C$144),"---") -> --- | H38: =IFERROR((June!$C$144),"---") -> --- | I38: =IFERROR((July!$C$144),"---") -> --- | J38: =IFERROR((August!$C$144),"---") -> --- | K38: =IFERROR((September!$C$144),"---") -> --- | L38: =IFERROR((October!$C$144),"---") -> --- | M38: =IFERROR((November!$C$144),"---") -> --- | N38: =IFERROR((December!$C$144),"---") -> ---
A39: % started in outpatient | B39: Long Stay | C39: =IFERROR((January!$D$144),"---") -> --- | D39: =IFERROR((February!$D$144),"---") -> --- | E39: =IFERROR((March!$D$144),"---") -> --- | F39: =IFERROR((April!$D$144),"---") -> --- | G39: =IFERROR((May!$D$144),"---") -> --- | H39: =IFERROR((June!$D$144),"---") -> --- | I39: =IFERROR((July!$D$144),"---") -> --- | J39: =IFERROR((August!$D$144),"---") -> --- | K39: =IFERROR((September!$D$144),"---") -> --- | L39: =IFERROR((October!$D$144),"---") -> --- | M39: =IFERROR((November!$D$144),"---") -> --- | N39: =IFERROR((December!$D$144),"---") -> ---
A40: % started in outpatient | B40: Total | C40: =IFERROR((January!$B$144),"---") -> --- | D40: =IFERROR((February!$B$144),"---") -> --- | E40: =IFERROR((March!$B$144),"---") -> --- | F40: =IFERROR((April!$B$144),"---") -> --- | G40: =IFERROR((May!$B$144),"---") -> --- | H40: =IFERROR((June!$B$144),"---") -> --- | I40: =IFERROR((July!$B$144),"---") -> --- | J40: =IFERROR((August!$B$144),"---") -> --- | K40: =IFERROR((September!$B$144),"---") -> --- | L40: =IFERROR((October!$B$144),"---") -> --- | M40: =IFERROR((November!$B$144),"---") -> --- | N40: =IFERROR((December!$B$144),"---") -> ---
A41: dx approprite | B41: Short Stay | C41: =IFERROR((January!$C$150),"---") -> 0 | D41: =IFERROR((February!$C$150),"---") -> 0 | E41: =IFERROR((March!$C$150),"---") -> 0 | F41: =IFERROR((April!$C$150),"---") -> 0 | G41: =IFERROR((May!$C$150),"---") -> 0 | H41: =IFERROR((June!$C$150),"---") -> 0 | I41: =IFERROR((July!$C$150),"---") -> 0 | J41: =IFERROR((August!$C$150),"---") -> 0 | K41: =IFERROR((September!$C$150),"---") -> 0 | L41: =IFERROR((October!$C$150),"---") -> 0 | M41: =IFERROR((November!$C$150),"---") -> 0 | N41: =IFERROR((December!$C$150),"---") -> 0
A42: dx approprite | B42: Long Stay | C42: =IFERROR((January!$D$150),"---") -> 0 | D42: =IFERROR((February!$D$150),"---") -> 0 | E42: =IFERROR((March!$D$150),"---") -> 0 | F42: =IFERROR((April!$D$150),"---") -> 0 | G42: =IFERROR((May!$D$150),"---") -> 0 | H42: =IFERROR((June!$D$150),"---") -> 0 | I42: =IFERROR((July!$D$150),"---") -> 0 | J42: =IFERROR((August!$D$150),"---") -> 0 | K42: =IFERROR((September!$D$150),"---") -> 0 | L42: =IFERROR((October!$D$150),"---") -> 0 | M42: =IFERROR((November!$D$150),"---") -> 0 | N42: =IFERROR((December!$D$150),"---") -> 0
A43: dx approprite | B43: Total | C43: =IFERROR((January!$B$150),"---") -> 0 | D43: =IFERROR((February!$B$150),"---") -> 0 | E43: =IFERROR((March!$B$150),"---") -> 0 | F43: =IFERROR((April!$B$150),"---") -> 0 | G43: =IFERROR((May!$B$150),"---") -> 0 | H43: =IFERROR((June!$B$150),"---") -> 0 | I43: =IFERROR((July!$B$150),"---") -> 0 | J43: =IFERROR((August!$B$150),"---") -> 0 | K43: =IFERROR((September!$B$150),"---") -> 0 | L43: =IFERROR((October!$B$150),"---") -> 0 | M43: =IFERROR((November!$B$150),"---") -> 0 | N43: =IFERROR((December!$B$150),"---") -> 0
A44: % with appropriate dx | B44: Short Stay | C44: =IFERROR((January!$C$153),"---") -> --- | D44: =IFERROR((February!$C$153),"---") -> --- | E44: =IFERROR((March!$C$153),"---") -> --- | F44: =IFERROR((April!$C$153),"---") -> --- | G44: =IFERROR((May!$C$153),"---") -> --- | H44: =IFERROR((June!$C$153),"---") -> --- | I44: =IFERROR((July!$C$153),"---") -> --- | J44: =IFERROR((August!$C$153),"---") -> --- | K44: =IFERROR((September!$C$153),"---") -> --- | L44: =IFERROR((October!$C$153),"---") -> --- | M44: =IFERROR((November!$C$153),"---") -> --- | N44: =IFERROR((December!$C$153),"---") -> ---
A45: % with appropriate dx | B45: Long Stay | C45: =IFERROR((January!$D$153),"---") -> --- | D45: =IFERROR((February!$D$153),"---") -> --- | E45: =IFERROR((March!$D$153),"---") -> --- | F45: =IFERROR((April!$D$153),"---") -> --- | G45: =IFERROR((May!$D$153),"---") -> --- | H45: =IFERROR((June!$D$153),"---") -> --- | I45: =IFERROR((July!$D$153),"---") -> --- | J45: =IFERROR((August!$D$153),"---") -> --- | K45: =IFERROR((September!$D$153),"---") -> --- | L45: =IFERROR((October!$D$153),"---") -> --- | M45: =IFERROR((November!$D$153),"---") -> --- | N45: =IFERROR((December!$D$153),"---") -> ---
A46: % with appropriate dx | B46: Total | C46: =IFERROR((January!$B$153),"---") -> --- | D46: =IFERROR((February!$B$153),"---") -> --- | E46: =IFERROR((March!$B$153),"---") -> --- | F46: =IFERROR((April!$B$153),"---") -> --- | G46: =IFERROR((May!$B$153),"---") -> --- | H46: =IFERROR((June!$B$153),"---") -> --- | I46: =IFERROR((July!$B$153),"---") -> --- | J46: =IFERROR((August!$B$153),"---") -> --- | K46: =IFERROR((September!$B$153),"---") -> --- | L46: =IFERROR((October!$B$153),"---") -> --- | M46: =IFERROR((November!$B$153),"---") -> --- | N46: =IFERROR((December!$B$153),"---") -> ---
A47: BPSD documented | B47: Short Stay | C47: =IFERROR((January!$C$159),"---") -> 0 | D47: =IFERROR((February!$C$159),"---") -> 0 | E47: =IFERROR((March!$C$159),"---") -> 0 | F47: =IFERROR((April!$C$159),"---") -> 0 | G47: =IFERROR((May!$C$159),"---") -> 0 | H47: =IFERROR((June!$C$159),"---") -> 0 | I47: =IFERROR((July!$C$159),"---") -> 0 | J47: =IFERROR((August!$C$159),"---") -> 0 | K47: =IFERROR((September!$C$159),"---") -> 0 | L47: =IFERROR((October!$C$159),"---") -> 0 | M47: =IFERROR((November!$C$159),"---") -> 0 | N47: =IFERROR((December!$C$159),"---") -> 0
A48: BPSD documented | B48: Long Stay | C48: =IFERROR((January!$D$159),"---") -> 0 | D48: =IFERROR((February!$D$159),"---") -> 0 | E48: =IFERROR((March!$D$159),"---") -> 0 | F48: =IFERROR((April!$D$159),"---") -> 0 | G48: =IFERROR((May!$D$159),"---") -> 0 | H48: =IFERROR((June!$D$159),"---") -> 0 | I48: =IFERROR((July!$D$159),"---") -> 0 | J48: =IFERROR((August!$D$159),"---") -> 0 | K48: =IFERROR((September!$D$159),"---") -> 0 | L48: =IFERROR((October!$D$159),"---") -> 0 | M48: =IFERROR((November!$D$159),"---") -> 0 | N48: =IFERROR((December!$D$159),"---") -> 0
A49: BPSD documented | B49: Total | C49: =IFERROR((January!$B$159),"---") -> 0 | D49: =IFERROR((February!$B$159),"---") -> 0 | E49: =IFERROR((March!$B$159),"---") -> 0 | F49: =IFERROR((April!$B$159),"---") -> 0 | G49: =IFERROR((May!$B$159),"---") -> 0 | H49: =IFERROR((June!$B$159),"---") -> 0 | I49: =IFERROR((July!$B$159),"---") -> 0 | J49: =IFERROR((August!$B$159),"---") -> 0 | K49: =IFERROR((September!$B$159),"---") -> 0 | L49: =IFERROR((October!$B$159),"---") -> 0 | M49: =IFERROR((November!$B$159),"---") -> 0 | N49: =IFERROR((December!$B$159),"---") -> 0
A50: % needing BPSD documented | B50: Short Stay | C50: =IFERROR((January!$C$163),"---") -> --- | D50: =IFERROR((February!$C$163),"---") -> --- | E50: =IFERROR((March!$C$163),"---") -> --- | F50: =IFERROR((April!$C$163),"---") -> --- | G50: =IFERROR((May!$C$163),"---") -> --- | H50: =IFERROR((June!$C$163),"---") -> --- | I50: =IFERROR((July!$C$163),"---") -> --- | J50: =IFERROR((August!$C$163),"---") -> --- | K50: =IFERROR((September!$C$163),"---") -> --- | L50: =IFERROR((October!$C$163),"---") -> --- | M50: =IFERROR((November!$C$163),"---") -> --- | N50: =IFERROR((December!$C$163),"---") -> ---
A51: % needing BPSD documented | B51: Long Stay | C51: =IFERROR((January!$D$163),"---") -> --- | D51: =IFERROR((February!$D$163),"---") -> --- | E51: =IFERROR((March!$D$163),"---") -> --- | F51: =IFERROR((April!$D$163),"---") -> --- | G51: =IFERROR((May!$D$163),"---") -> --- | H51: =IFERROR((June!$D$163),"---") -> --- | I51: =IFERROR((July!$D$163),"---") -> --- | J51: =IFERROR((August!$D$163),"---") -> --- | K51: =IFERROR((September!$D$163),"---") -> --- | L51: =IFERROR((October!$D$163),"---") -> --- | M51: =IFERROR((November!$D$163),"---") -> --- | N51: =IFERROR((December!$D$163),"---") -> ---
A52: % needing BPSD documented | B52: Total | C52: =IFERROR((January!$B$163),"---") -> --- | D52: =IFERROR((February!$B$163),"---") -> --- | E52: =IFERROR((March!$B$163),"---") -> --- | F52: =IFERROR((April!$B$163),"---") -> --- | G52: =IFERROR((May!$B$163),"---") -> --- | H52: =IFERROR((June!$B$163),"---") -> --- | I52: =IFERROR((July!$B$163),"---") -> --- | J52: =IFERROR((August!$B$163),"---") -> --- | K52: =IFERROR((September!$B$163),"---") -> --- | L52: =IFERROR((October!$B$163),"---") -> --- | M52: =IFERROR((November!$B$163),"---") -> --- | N52: =IFERROR((December!$B$163),"---") -> ---
A53: # without non drug interventions documented | B53: Short Stay | C53: =IFERROR((January!$C$170),"---") -> 0 | D53: =IFERROR((February!$C$170),"---") -> 0 | E53: =IFERROR((March!$C$170),"---") -> 0 | F53: =IFERROR((April!$C$170),"---") -> 0 | G53: =IFERROR((May!$C$170),"---") -> 0 | H53: =IFERROR((June!$C$170),"---") -> 0 | I53: =IFERROR((July!$C$170),"---") -> 0 | J53: =IFERROR((August!$C$170),"---") -> 0 | K53: =IFERROR((September!$C$170),"---") -> 0 | L53: =IFERROR((October!$C$170),"---") -> 0 | M53: =IFERROR((November!$C$170),"---") -> 0 | N53: =IFERROR((December!$C$170),"---") -> 0
A54: # without non drug interventions documented | B54: Long Stay | C54: =IFERROR((January!$D$170),"---") -> 0 | D54: =IFERROR((February!$D$170),"---") -> 0 | E54: =IFERROR((March!$D$170),"---") -> 0 | F54: =IFERROR((April!$D$170),"---") -> 0 | G54: =IFERROR((May!$D$170),"---") -> 0 | H54: =IFERROR((June!$D$170),"---") -> 0 | I54: =IFERROR((July!$D$170),"---") -> 0 | J54: =IFERROR((August!$D$170),"---") -> 0 | K54: =IFERROR((September!$D$170),"---") -> 0 | L54: =IFERROR((October!$D$170),"---") -> 0 | M54: =IFERROR((November!$D$170),"---") -> 0 | N54: =IFERROR((December!$D$170),"---") -> 0
A55: # without non drug interventions documented | B55: Total | C55: =IFERROR((January!$B$170), "---") -> 0 | D55: =IFERROR((February!$B$170), "---") -> 0 | E55: =IFERROR((March!$B$170), "---") -> 0 | F55: =IFERROR((April!$B$170), "---") -> 0 | G55: =IFERROR((May!$B$170), "---") -> 0 | H55: =IFERROR((June!$B$170), "---") -> 0 | I55: =IFERROR((July!$B$170), "---") -> 0 | J55: =IFERROR((August!$B$170), "---") -> 0 | K55: =IFERROR((September!$B$170), "---") -> 0 | L55: =IFERROR((October!$B$170), "---") -> 0 | M55: =IFERROR((November!$B$170), "---") -> 0 | N55: =IFERROR((July!$B$170), "---") -> 0
A56: % without non drug interventions documented | B56: Short Stay | C56: =IFERROR((January!$C$173),"---") -> --- | D56: =IFERROR((February!$C$173),"---") -> --- | E56: =IFERROR((March!$C$173),"---") -> --- | F56: =IFERROR((April!$C$173),"---") -> --- | G56: =IFERROR((May!$C$173),"---") -> --- | H56: =IFERROR((June!$C$173),"---") -> --- | I56: =IFERROR((July!$C$173),"---") -> --- | J56: =IFERROR((August!$C$173),"---") -> --- | K56: =IFERROR((September!$C$173),"---") -> --- | L56: =IFERROR((October!$C$173),"---") -> --- | M56: =IFERROR((November!$C$173),"---") -> --- | N56: =IFERROR((December!$C$173),"---") -> ---
A57: % without non drug interventions documented | B57: Long Stay | C57: =IFERROR((January!$D$173),"---") -> --- | D57: =IFERROR((February!$D$173),"---") -> --- | E57: =IFERROR((March!$D$173),"---") -> --- | F57: =IFERROR((April!$D$173),"---") -> --- | G57: =IFERROR((May!$D$173),"---") -> --- | H57: =IFERROR((June!$D$173),"---") -> --- | I57: =IFERROR((July!$D$173),"---") -> --- | J57: =IFERROR((August!$D$173),"---") -> --- | K57: =IFERROR((September!$D$173),"---") -> --- | L57: =IFERROR((October!$D$173),"---") -> --- | M57: =IFERROR((November!$D$173),"---") -> --- | N57: =IFERROR((December!$D$173),"---") -> ---
A58: % without non drug interventions documented | B58: Total | C58: =IFERROR((January!$B$173),"---") -> --- | D58: =IFERROR((February!$B$173),"---") -> --- | E58: =IFERROR((March!$B$173),"---") -> --- | F58: =IFERROR((April!$B$173),"---") -> --- | G58: =IFERROR((May!$B$173),"---") -> --- | H58: =IFERROR((June!$B$173),"---") -> --- | I58: =IFERROR((July!$B$173),"---") -> --- | J58: =IFERROR((August!$B$173),"---") -> --- | K58: =IFERROR((September!$B$173),"---") -> --- | L58: =IFERROR((October!$B$173),"---") -> --- | M58: =IFERROR((November!$B$173),"---") -> --- | N58: =IFERROR((December!$B$173),"---") -> ---
A59: GDR Outcome - Dose reduced | B59: Short Stay | C59: =IFERROR((January!$C$179),"---") -> 0 | D59: =IFERROR((February!$C$179),"---") -> 0 | E59: =IFERROR((March!$C$179),"---") -> 0 | F59: =IFERROR((April!$C$179),"---") -> 0 | G59: =IFERROR((May!$C$179),"---") -> 0 | H59: =IFERROR((June!$C$179),"---") -> 0 | I59: =IFERROR((July!$C$179),"---") -> 0 | J59: =IFERROR((August!$C$179),"---") -> 0 | K59: =IFERROR((September!$C$179),"---") -> 0 | L59: =IFERROR((October!$C$179),"---") -> 0 | M59: =IFERROR((November!$C$179),"---") -> 0 | N59: =IFERROR((December!$C$179),"---") -> 0
A60: GDR Outcome - Dose reduced | B60: Long Stay | C60: =IFERROR((January!$D$179),"---") -> 0 | D60: =IFERROR((February!$D$179),"---") -> 0 | E60: =IFERROR((March!$D$179),"---") -> 0 | F60: =IFERROR((April!$D$179),"---") -> 0 | G60: =IFERROR((May!$D$179),"---") -> 0 | H60: =IFERROR((June!$D$179),"---") -> 0 | I60: =IFERROR((July!$D$179),"---") -> 0 | J60: =IFERROR((August!$D$179),"---") -> 0 | K60: =IFERROR((September!$D$179),"---") -> 0 | L60: =IFERROR((October!$D$179),"---") -> 0 | M60: =IFERROR((November!$D$179),"---") -> 0 | N60: =IFERROR((December!$D$179),"---") -> 0
A61: GDR Outcome - Dose reduced | B61: Total | C61: =IFERROR((January!$B$179),"---") -> 0 | D61: =IFERROR((February!$B$179),"---") -> 0 | E61: =IFERROR((March!$B$179),"---") -> 0 | F61: =IFERROR((April!$B$179),"---") -> 0 | G61: =IFERROR((May!$B$179),"---") -> 0 | H61: =IFERROR((June!$B$179),"---") -> 0 | I61: =IFERROR((July!$B$179),"---") -> 0 | J61: =IFERROR((August!$B$179),"---") -> 0 | K61: =IFERROR((September!$B$179),"---") -> 0 | L61: =IFERROR((October!$B$179),"---") -> 0 | M61: =IFERROR((November!$B$179),"---") -> 0 | N61: =IFERROR((December!$B$179),"---") -> 0
A62: GDR Outcome - Dose dc'd | B62: Short Stay | C62: =IFERROR((January!$C$180),"---") -> 0 | D62: =IFERROR((February!$C$180),"---") -> 0 | E62: =IFERROR((March!$C$180),"---") -> 0 | F62: =IFERROR((April!$C$180),"---") -> 0 | G62: =IFERROR((May!$C$180),"---") -> 0 | H62: =IFERROR((June!$C$180),"---") -> 0 | I62: =IFERROR((July!$C$180),"---") -> 0 | J62: =IFERROR((August!$C$180),"---") -> 0 | K62: =IFERROR((September!$C$180),"---") -> 0 | L62: =IFERROR((October!$C$180),"---") -> 0 | M62: =IFERROR((November!$C$180),"---") -> 0 | N62: =IFERROR((December!$C$180),"---") -> 0
A63: GDR Outcome - Dose dc'd | B63: Long Stay | C63: =IFERROR((January!$D$180),"---") -> 0 | D63: =IFERROR((February!$D$180),"---") -> 0 | E63: =IFERROR((March!$D$180),"---") -> 0 | F63: =IFERROR((April!$D$180),"---") -> 0 | G63: =IFERROR((May!$D$180),"---") -> 0 | H63: =IFERROR((June!$D$180),"---") -> 0 | I63: =IFERROR((July!$D$180),"---") -> 0 | J63: =IFERROR((August!$D$180),"---") -> 0 | K63: =IFERROR((September!$D$180),"---") -> 0 | L63: =IFERROR((October!$D$180),"---") -> 0 | M63: =IFERROR((November!$D$180),"---") -> 0 | N63: =IFERROR((December!$D$180),"---") -> 0
A64: GDR Outcome - Dose dc'd | B64: Total | C64: =IFERROR((January!$B$180),"---") -> 0 | D64: =IFERROR((February!$B$180),"---") -> 0 | E64: =IFERROR((March!$B$180),"---") -> 0 | F64: =IFERROR((April!$B$180),"---") -> 0 | G64: =IFERROR((May!$B$180),"---") -> 0 | H64: =IFERROR((June!$B$180),"---") -> 0 | I64: =IFERROR((July!$B$180),"---") -> 0 | J64: =IFERROR((August!$B$180),"---") -> 0 | K64: =IFERROR((September!$B$180),"---") -> 0 | L64: =IFERROR((October!$B$180),"---") -> 0 | M64: =IFERROR((November!$B$180),"---") -> 0 | N64: =IFERROR((December!$B$180),"---") -> 0
A65: GDR Outcome - Return to previous dose | B65: Short Stay | C65: =IFERROR((January!$C$181),"---") -> 0 | D65: =IFERROR((February!$C$181),"---") -> 0 | E65: =IFERROR((March!$C$181),"---") -> 0 | F65: =IFERROR((April!$C$181),"---") -> 0 | G65: =IFERROR((May!$C$181),"---") -> 0 | H65: =IFERROR((June!$C$181),"---") -> 0 | I65: =IFERROR((July!$C$181),"---") -> 0 | J65: =IFERROR((August!$C$181),"---") -> 0 | K65: =IFERROR((September!$C$181),"---") -> 0 | L65: =IFERROR((October!$C$181),"---") -> 0 | M65: =IFERROR((November!$C$181),"---") -> 0 | N65: =IFERROR((December!$C$181),"---") -> 0
A66: GDR Outcome - Return to previous dose | B66: Long Stay | C66: =IFERROR((January!$D$181),"---") -> 0 | D66: =IFERROR((February!$D$181),"---") -> 0 | E66: =IFERROR((March!$D$181),"---") -> 0 | F66: =IFERROR((April!$D$181),"---") -> 0 | G66: =IFERROR((May!$D$181),"---") -> 0 | H66: =IFERROR((June!$D$181),"---") -> 0 | I66: =IFERROR((July!$D$181),"---") -> 0 | J66: =IFERROR((August!$D$181),"---") -> 0 | K66: =IFERROR((September!$D$181),"---") -> 0 | L66: =IFERROR((October!$D$181),"---") -> 0 | M66: =IFERROR((November!$D$181),"---") -> 0 | N66: =IFERROR((December!$D$181),"---") -> 0
A67: GDR Outcome - Return to previous dose | B67: Total | C67: =IFERROR((January!$B$181),"---") -> 0 | D67: =IFERROR((February!$B$181),"---") -> 0 | E67: =IFERROR((March!$B$181),"---") -> 0 | F67: =IFERROR((April!$B$181),"---") -> 0 | G67: =IFERROR((May!$B$181),"---") -> 0 | H67: =IFERROR((June!$B$181),"---") -> 0 | I67: =IFERROR((July!$B$181),"---") -> 0 | J67: =IFERROR((August!$B$181),"---") -> 0 | K67: =IFERROR((September!$B$181),"---") -> 0 | L67: =IFERROR((October!$B$181),"---") -> 0 | M67: =IFERROR((November!$B$181),"---") -> 0 | N67: =IFERROR((December!$B$181),"---") -> 0
A68: GDR Outcome - % with dose reduction | B68: Short Stay | C68: =IFERROR((January!$C$184),"---") -> --- | D68: =IFERROR((February!$C$184),"---") -> --- | E68: =IFERROR((March!$C$184),"---") -> --- | F68: =IFERROR((April!$C$184),"---") -> --- | G68: =IFERROR((May!$C$184),"---") -> --- | H68: =IFERROR((June!$C$184),"---") -> --- | I68: =IFERROR((July!$C$184),"---") -> --- | J68: =IFERROR((August!$C$184),"---") -> --- | K68: =IFERROR((September!$C$184),"---") -> --- | L68: =IFERROR((October!$C$184),"---") -> --- | M68: =IFERROR((November!$C$184),"---") -> --- | N68: =IFERROR((December!$C$184),"---") -> ---
A69: GDR Outcome - % with dose reduction | B69: Long Stay | C69: =IFERROR((January!$D$184),"---") -> --- | D69: =IFERROR((February!$D$184),"---") -> --- | E69: =IFERROR((March!$D$184),"---") -> --- | F69: =IFERROR((April!$D$184),"---") -> --- | G69: =IFERROR((May!$D$184),"---") -> --- | H69: =IFERROR((June!$D$184),"---") -> --- | I69: =IFERROR((July!$D$184),"---") -> --- | J69: =IFERROR((August!$D$184),"---") -> --- | K69: =IFERROR((September!$D$184),"---") -> --- | L69: =IFERROR((October!$D$184),"---") -> --- | M69: =IFERROR((November!$D$184),"---") -> --- | N69: =IFERROR((December!$D$184),"---") -> ---
A70: GDR Outcome - % with dose reduction | B70: Total | C70: =IFERROR((January!$B$184),"---") -> --- | D70: =IFERROR((February!$B$184),"---") -> --- | E70: =IFERROR((March!$B$184),"---") -> --- | F70: =IFERROR((April!$B$184),"---") -> --- | G70: =IFERROR((May!$B$184),"---") -> --- | H70: =IFERROR((June!$B$184),"---") -> --- | I70: =IFERROR((July!$B$184),"---") -> --- | J70: =IFERROR((August!$B$184),"---") -> --- | K70: =IFERROR((September!$B$184),"---") -> --- | L70: =IFERROR((October!$B$184),"---") -> --- | M70: =IFERROR((November!$B$184),"---") -> --- | N70: =IFERROR((December!$B$184),"---") -> ---
A71: GDR Outcome - % with dose dc'd | B71: Short Stay | C71: =IFERROR((January!$C$185),"---") -> --- | D71: =IFERROR((February!$C$185),"---") -> --- | E71: =IFERROR((March!$C$185),"---") -> --- | F71: =IFERROR((April!$C$185),"---") -> --- | G71: =IFERROR((May!$C$185),"---") -> --- | H71: =IFERROR((June!$C$185),"---") -> --- | I71: =IFERROR((July!$C$185),"---") -> --- | J71: =IFERROR((August!$C$185),"---") -> --- | K71: =IFERROR((September!$C$185),"---") -> --- | L71: =IFERROR((October!$C$185),"---") -> --- | M71: =IFERROR((November!$C$185),"---") -> --- | N71: =IFERROR((December!$C$185),"---") -> ---
A72: GDR Outcome - % with dose dc'd | B72: Long Stay | C72: =IFERROR((January!$D$185),"---") -> --- | D72: =IFERROR((February!$D$185),"---") -> --- | E72: =IFERROR((March!$D$185),"---") -> --- | F72: =IFERROR((April!$D$185),"---") -> --- | G72: =IFERROR((May!$D$185),"---") -> --- | H72: =IFERROR((June!$D$185),"---") -> --- | I72: =IFERROR((July!$D$185),"---") -> --- | J72: =IFERROR((August!$D$185),"---") -> --- | K72: =IFERROR((September!$D$185),"---") -> --- | L72: =IFERROR((October!$D$185),"---") -> --- | M72: =IFERROR((November!$D$185),"---") -> --- | N72: =IFERROR((December!$D$185),"---") -> ---
A73: GDR Outcome - % with dose dc'd | B73: Total | C73: =IFERROR((January!$B$185),"---") -> --- | D73: =IFERROR((February!$B$185),"---") -> --- | E73: =IFERROR((March!$B$185),"---") -> --- | F73: =IFERROR((April!$B$185),"---") -> --- | G73: =IFERROR((May!$B$185),"---") -> --- | H73: =IFERROR((June!$B$185),"---") -> --- | I73: =IFERROR((July!$B$185),"---") -> --- | J73: =IFERROR((August!$B$185),"---") -> --- | K73: =IFERROR((September!$B$185),"---") -> --- | L73: =IFERROR((October!$B$185),"---") -> --- | M73: =IFERROR((November!$B$185),"---") -> --- | N73: =IFERROR((December!$B$185),"---") -> ---
A74: GDR Outcome - % with dose reduced or dc'd | B74: Short Stay | C74: =IFERROR((January!$C$186),"---") -> --- | D74: =IFERROR((February!$C$186),"---") -> --- | E74: =IFERROR((March!$C$186),"---") -> --- | F74: =IFERROR((April!$C$186),"---") -> --- | G74: =IFERROR((May!$C$186),"---") -> --- | H74: =IFERROR((June!$C$186),"---") -> --- | I74: =IFERROR((July!$C$186),"---") -> --- | J74: =IFERROR((August!$C$186),"---") -> --- | K74: =IFERROR((September!$C$186),"---") -> --- | L74: =IFERROR((October!$C$186),"---") -> --- | M74: =IFERROR((November!$C$186),"---") -> --- | N74: =IFERROR((December!$C$186),"---") -> ---
A75: GDR Outcome - % with dose reduced or dc'd | B75: Long Stay | C75: =IFERROR((January!$D$186),"---") -> --- | D75: =IFERROR((February!$D$186),"---") -> --- | E75: =IFERROR((March!$D$186),"---") -> --- | F75: =IFERROR((April!$D$186),"---") -> --- | G75: =IFERROR((May!$D$186),"---") -> --- | H75: =IFERROR((June!$D$186),"---") -> --- | I75: =IFERROR((July!$D$186),"---") -> --- | J75: =IFERROR((August!$D$186),"---") -> --- | K75: =IFERROR((September!$D$186),"---") -> --- | L75: =IFERROR((October!$D$186),"---") -> --- | M75: =IFERROR((November!$D$186),"---") -> --- | N75: =IFERROR((December!$D$186),"---") -> ---
A76: GDR Outcome - % with dose reduced or dc'd | B76: Total | C76: =IFERROR((January!$B$186),"---") -> --- | D76: =IFERROR((February!$B$186),"---") -> --- | E76: =IFERROR((March!$B$186),"---") -> --- | F76: =IFERROR((April!$B$186),"---") -> --- | G76: =IFERROR((May!$B$186),"---") -> --- | H76: =IFERROR((June!$B$186),"---") -> --- | I76: =IFERROR((July!$B$186),"---") -> --- | J76: =IFERROR((August!$B$186),"---") -> --- | K76: =IFERROR((September!$B$186),"---") -> --- | L76: =IFERROR((October!$B$186),"---") -> --- | M76: =IFERROR((November!$B$186),"---") -> --- | N76: =IFERROR((December!$B$186),"---") -> ---
A77: # needing GDR | B77: Short Stay | C77: =IFERROR((January!$C$192),"---") -> 0 | D77: =IFERROR((February!$C$192),"---") -> 0 | E77: =IFERROR((March!$C$192),"---") -> 0 | F77: =IFERROR((April!$C$192),"---") -> 0 | G77: =IFERROR((May!$C$192),"---") -> 0 | H77: =IFERROR((June!$C$192),"---") -> 0 | I77: =IFERROR((July!$C$192),"---") -> 0 | J77: =IFERROR((August!$C$192),"---") -> 0 | K77: =IFERROR((September!$C$192),"---") -> 0 | L77: =IFERROR((October!$C$192),"---") -> 0 | M77: =IFERROR((November!$C$192),"---") -> 0 | N77: =IFERROR((December!$C$192),"---") -> 0
A78: # needing GDR | B78: Long Stay | C78: =IFERROR((January!$D$192),"---") -> 0 | D78: =IFERROR((February!$D$192),"---") -> 0 | E78: =IFERROR((March!$D$192),"---") -> 0 | F78: =IFERROR((April!$D$192),"---") -> 0 | G78: =IFERROR((May!$D$192),"---") -> 0 | H78: =IFERROR((June!$D$192),"---") -> 0 | I78: =IFERROR((July!$D$192),"---") -> 0 | J78: =IFERROR((August!$D$192),"---") -> 0 | K78: =IFERROR((September!$D$192),"---") -> 0 | L78: =IFERROR((October!$D$192),"---") -> 0 | M78: =IFERROR((November!$D$192),"---") -> 0 | N78: =IFERROR((December!$D$192),"---") -> 0
A79: # needing GDR | B79: Total | C79: =IFERROR((January!$B$192),"---") -> 0 | D79: =IFERROR((February!$B$192),"---") -> 0 | E79: =IFERROR((March!$B$192),"---") -> 0 | F79: =IFERROR((April!$B$192),"---") -> 0 | G79: =IFERROR((May!$B$192),"---") -> 0 | H79: =IFERROR((June!$B$192),"---") -> 0 | I79: =IFERROR((July!$B$192),"---") -> 0 | J79: =IFERROR((August!$B$192),"---") -> 0 | K79: =IFERROR((September!$B$192),"---") -> 0 | L79: =IFERROR((October!$B$192),"---") -> 0 | M79: =IFERROR((November!$B$192),"---") -> 0 | N79: =IFERROR((December!$B$192),"---") -> 0
A80: % needing GDR | B80: Short Stay | C80: =IFERROR((January!$C$195),"---") -> --- | D80: =IFERROR((February!$C$195),"---") -> --- | E80: =IFERROR((March!$C$195),"---") -> --- | F80: =IFERROR((April!$C$195),"---") -> --- | G80: =IFERROR((May!$C$195),"---") -> --- | H80: =IFERROR((June!$C$195),"---") -> --- | I80: =IFERROR((July!$C$195),"---") -> --- | J80: =IFERROR((August!$C$195),"---") -> --- | K80: =IFERROR((September!$C$195),"---") -> --- | L80: =IFERROR((October!$C$195),"---") -> --- | M80: =IFERROR((November!$C$195),"---") -> --- | N80: =IFERROR((December!$C$195),"---") -> ---
A81: % needing GDR | B81: Long Stay | C81: =IFERROR((January!$D$195),"---") -> --- | D81: =IFERROR((February!$D$195),"---") -> --- | E81: =IFERROR((March!$D$195),"---") -> --- | F81: =IFERROR((April!$D$195),"---") -> --- | G81: =IFERROR((May!$D$195),"---") -> --- | H81: =IFERROR((June!$D$195),"---") -> --- | I81: =IFERROR((July!$D$195),"---") -> --- | J81: =IFERROR((August!$D$195),"---") -> --- | K81: =IFERROR((September!$D$195),"---") -> --- | L81: =IFERROR((October!$D$195),"---") -> --- | M81: =IFERROR((November!$D$195),"---") -> --- | N81: =IFERROR((December!$D$195),"---") -> ---
A82: % needing GDR | B82: Total | C82: =IFERROR((January!$B$195),"---") -> --- | D82: =IFERROR((February!$B$195),"---") -> --- | E82: =IFERROR((March!$B$195),"---") -> --- | F82: =IFERROR((April!$B$195),"---") -> --- | G82: =IFERROR((May!$B$195),"---") -> --- | H82: =IFERROR((June!$B$195),"---") -> --- | I82: =IFERROR((July!$B$195),"---") -> --- | J82: =IFERROR((August!$B$195),"---") -> --- | K82: =IFERROR((September!$B$195),"---") -> --- | L82: =IFERROR((October!$B$195),"---") -> --- | M82: =IFERROR((November!$B$195),"---") -> --- | N82: =IFERROR((December!$B$195),"---") -> ---
A83: Reason No GDR - Resident on lowest possible dose | B83: Short Stay | C83: =IFERROR((January!$C$202),"---") -> 0 | D83: =IFERROR((February!$C$202),"---") -> 0 | E83: =IFERROR((March!$C$202),"---") -> 0 | F83: =IFERROR((April!$C$202),"---") -> 0 | G83: =IFERROR((May!$C$202),"---") -> 0 | H83: =IFERROR((June!$C$202),"---") -> 0 | I83: =IFERROR((July!$C$202),"---") -> 0 | J83: =IFERROR((August!$C$202),"---") -> 0 | K83: =IFERROR((September!$C$202),"---") -> 0 | L83: =IFERROR((October!$C$202),"---") -> 0 | M83: =IFERROR((November!$C$202),"---") -> 0 | N83: =IFERROR((December!$C$202),"---") -> 0
A84: Reason No GDR - Resident on lowest possible dose | B84: Long Stay | C84: =IFERROR((January!$D$202),"---") -> 0 | D84: =IFERROR((February!$D$202),"---") -> 0 | E84: =IFERROR((March!$D$202),"---") -> 0 | F84: =IFERROR((April!$D$202),"---") -> 0 | G84: =IFERROR((May!$D$202),"---") -> 0 | H84: =IFERROR((June!$D$202),"---") -> 0 | I84: =IFERROR((July!$D$202),"---") -> 0 | J84: =IFERROR((August!$D$202),"---") -> 0 | K84: =IFERROR((September!$D$202),"---") -> 0 | L84: =IFERROR((October!$D$202),"---") -> 0 | M84: =IFERROR((November!$D$202),"---") -> 0 | N84: =IFERROR((December!$D$202),"---") -> 0
A85: Reason No GDR - Resident on lowest possible dose | B85: Total | C85: =IFERROR((January!$B$202),"---") -> 0 | D85: =IFERROR((February!$B$202),"---") -> 0 | E85: =IFERROR((March!$B$202),"---") -> 0 | F85: =IFERROR((April!$B$202),"---") -> 0 | G85: =IFERROR((May!$B$202),"---") -> 0 | H85: =IFERROR((June!$B$202),"---") -> 0 | I85: =IFERROR((July!$B$202),"---") -> 0 | J85: =IFERROR((August!$B$202),"---") -> 0 | K85: =IFERROR((September!$B$202),"---") -> 0 | L85: =IFERROR((October!$B$202),"---") -> 0 | M85: =IFERROR((November!$B$202),"---") -> 0 | N85: =IFERROR((December!$B$202),"---") -> 0
A86: Reason No GDR - Contraindicated per prescriber | B86: Short Stay | C86: =IFERROR((January!$C$203),"---") -> 0 | D86: =IFERROR((February!$C$203),"---") -> 0 | E86: =IFERROR((March!$C$203),"---") -> 0 | F86: =IFERROR((April!$C$203),"---") -> 0 | G86: =IFERROR((May!$C$203),"---") -> 0 | H86: =IFERROR((June!$C$203),"---") -> 0 | I86: =IFERROR((July!$C$203),"---") -> 0 | J86: =IFERROR((August!$C$203),"---") -> 0 | K86: =IFERROR((September!$C$203),"---") -> 0 | L86: =IFERROR((October!$C$203),"---") -> 0 | M86: =IFERROR((November!$C$203),"---") -> 0 | N86: =IFERROR((December!$C$203),"---") -> 0
A87: Reason No GDR - Contraindicated per prescriber | B87: Long Stay | C87: =IFERROR((January!$D$203),"---") -> 0 | D87: =IFERROR((February!$D$203),"---") -> 0 | E87: =IFERROR((March!$D$203),"---") -> 0 | F87: =IFERROR((April!$D$203),"---") -> 0 | G87: =IFERROR((May!$D$203),"---") -> 0 | H87: =IFERROR((June!$D$203),"---") -> 0 | I87: =IFERROR((July!$D$203),"---") -> 0 | J87: =IFERROR((August!$D$203),"---") -> 0 | K87: =IFERROR((September!$D$203),"---") -> 0 | L87: =IFERROR((October!$D$203),"---") -> 0 | M87: =IFERROR((November!$D$203),"---") -> 0 | N87: =IFERROR((December!$D$203),"---") -> 0
A88: Reason No GDR - Contraindicated per prescriber | B88: Total | C88: =IFERROR((January!$B$203),"---") -> 0 | D88: =IFERROR((February!$B$203),"---") -> 0 | E88: =IFERROR((March!$B$203),"---") -> 0 | F88: =IFERROR((April!$B$203),"---") -> 0 | G88: =IFERROR((May!$B$203),"---") -> 0 | H88: =IFERROR((June!$B$203),"---") -> 0 | I88: =IFERROR((July!$B$203),"---") -> 0 | J88: =IFERROR((August!$B$203),"---") -> 0 | K88: =IFERROR((September!$B$203),"---") -> 0 | L88: =IFERROR((October!$B$203),"---") -> 0 | M88: =IFERROR((November!$B$203),"---") -> 0 | N88: =IFERROR((December!$B$203),"---") -> 0
A89: Reason No GDR - other | B89: Short Stay | C89: =IFERROR((January!$C$204),"---") -> 0 | D89: =IFERROR((February!$C$204),"---") -> 0 | E89: =IFERROR((March!$C$204),"---") -> 0 | F89: =IFERROR((April!$C$204),"---") -> 0 | G89: =IFERROR((May!$C$204),"---") -> 0 | H89: =IFERROR((June!$C$204),"---") -> 0 | I89: =IFERROR((July!$C$204),"---") -> 0 | J89: =IFERROR((August!$C$204),"---") -> 0 | K89: =IFERROR((September!$C$204),"---") -> 0 | L89: =IFERROR((October!$C$204),"---") -> 0 | M89: =IFERROR((November!$C$204),"---") -> 0 | N89: =IFERROR((December!$C$204),"---") -> 0
A90: Reason No GDR - other | B90: Long Stay | C90: =IFERROR((January!$D$204),"---") -> 0 | D90: =IFERROR((February!$D$204),"---") -> 0 | E90: =IFERROR((March!$D$204),"---") -> 0 | F90: =IFERROR((April!$D$204),"---") -> 0 | G90: =IFERROR((May!$D$204),"---") -> 0 | H90: =IFERROR((June!$D$204),"---") -> 0 | I90: =IFERROR((July!$D$204),"---") -> 0 | J90: =IFERROR((August!$D$204),"---") -> 0 | K90: =IFERROR((September!$D$204),"---") -> 0 | L90: =IFERROR((October!$D$204),"---") -> 0 | M90: =IFERROR((November!$D$204),"---") -> 0 | N90: =IFERROR((December!$D$204),"---") -> 0
A91: Reason No GDR - other | B91: Total | C91: =IFERROR((January!$B$204),"---") -> 0 | D91: =IFERROR((February!$B$204),"---") -> 0 | E91: =IFERROR((March!$B$204),"---") -> 0 | F91: =IFERROR((April!$B$204),"---") -> 0 | G91: =IFERROR((May!$B$204),"---") -> 0 | H91: =IFERROR((June!$B$204),"---") -> 0 | I91: =IFERROR((July!$B$204),"---") -> 0 | J91: =IFERROR((August!$B$204),"---") -> 0 | K91: =IFERROR((September!$B$204),"---") -> 0 | L91: =IFERROR((October!$B$204),"---") -> 0 | M91: =IFERROR((November!$B$204),"---") -> 0 | N91: =IFERROR((December!$B$204),"---") -> 0
A92: Reason No GDR - % resident on lowest possible dose | B92: Short Stay | C92: =IFERROR((January!$C$206),"---") -> --- | D92: =IFERROR((February!$C$206),"---") -> --- | E92: =IFERROR((March!$C$206),"---") -> --- | F92: =IFERROR((April!$C$206),"---") -> --- | G92: =IFERROR((May!$C$206),"---") -> --- | H92: =IFERROR((June!$C$206),"---") -> --- | I92: =IFERROR((July!$C$206),"---") -> --- | J92: =IFERROR((August!$C$206),"---") -> --- | K92: =IFERROR((September!$C$206),"---") -> --- | L92: =IFERROR((October!$C$206),"---") -> --- | M92: =IFERROR((November!$C$206),"---") -> --- | N92: =IFERROR((December!$C$206),"---") -> ---
A93: Reason No GDR - % resident on lowest possible dose | B93: Long Stay | C93: =IFERROR((January!$D$206),"---") -> --- | D93: =IFERROR((February!$D$206),"---") -> --- | E93: =IFERROR((March!$D$206),"---") -> --- | F93: =IFERROR((April!$D$206),"---") -> --- | G93: =IFERROR((May!$D$206),"---") -> --- | H93: =IFERROR((June!$D$206),"---") -> --- | I93: =IFERROR((July!$D$206),"---") -> --- | J93: =IFERROR((August!$D$206),"---") -> --- | K93: =IFERROR((September!$D$206),"---") -> --- | L93: =IFERROR((October!$D$206),"---") -> --- | M93: =IFERROR((November!$D$206),"---") -> --- | N93: =IFERROR((December!$D$206),"---") -> ---
A94: Reason No GDR - % resident on lowest possible dose | B94: Total | C94: =IFERROR((January!$B$206),"---") -> --- | D94: =IFERROR((February!$B$206),"---") -> --- | E94: =IFERROR((March!$B$206),"---") -> --- | F94: =IFERROR((April!$B$206),"---") -> --- | G94: =IFERROR((May!$B$206),"---") -> --- | H94: =IFERROR((June!$B$206),"---") -> --- | I94: =IFERROR((July!$B$206),"---") -> --- | J94: =IFERROR((August!$B$206),"---") -> --- | K94: =IFERROR((September!$B$206),"---") -> --- | L94: =IFERROR((October!$B$206),"---") -> --- | M94: =IFERROR((November!$B$206),"---") -> --- | N94: =IFERROR((December!$B$206),"---") -> ---
A95: Reason No GDR - % contrainicated per prescriber | B95: Short Stay | C95: =IFERROR((January!$C$207),"---") -> --- | D95: =IFERROR((February!$C$207),"---") -> --- | E95: =IFERROR((March!$C$207),"---") -> --- | F95: =IFERROR((April!$C$207),"---") -> --- | G95: =IFERROR((May!$C$207),"---") -> --- | H95: =IFERROR((June!$C$207),"---") -> --- | I95: =IFERROR((July!$C$207),"---") -> --- | J95: =IFERROR((August!$C$207),"---") -> --- | K95: =IFERROR((September!$C$207),"---") -> --- | L95: =IFERROR((October!$C$207),"---") -> --- | M95: =IFERROR((November!$C$207),"---") -> --- | N95: =IFERROR((December!$C$207),"---") -> ---
A96: Reason No GDR - % contrainicated per prescriber | B96: Long Stay | C96: =IFERROR((January!$D$207),"---") -> --- | D96: =IFERROR((February!$D$207),"---") -> --- | E96: =IFERROR((March!$D$207),"---") -> --- | F96: =IFERROR((April!$D$207),"---") -> --- | G96: =IFERROR((May!$D$207),"---") -> --- | H96: =IFERROR((June!$D$207),"---") -> --- | I96: =IFERROR((July!$D$207),"---") -> --- | J96: =IFERROR((August!$D$207),"---") -> --- | K96: =IFERROR((September!$D$207),"---") -> --- | L96: =IFERROR((October!$D$207),"---") -> --- | M96: =IFERROR((November!$D$207),"---") -> --- | N96: =IFERROR((December!$D$207),"---") -> ---
A97: Reason No GDR - % contrainicated per prescriber | B97: Total | C97: =IFERROR((January!$B$207),"---") -> --- | D97: =IFERROR((February!$B$207),"---") -> --- | E97: =IFERROR((March!$B$207),"---") -> --- | F97: =IFERROR((April!$B$207),"---") -> --- | G97: =IFERROR((May!$B$207),"---") -> --- | H97: =IFERROR((June!$B$207),"---") -> --- | I97: =IFERROR((July!$B$207),"---") -> --- | J97: =IFERROR((August!$B$207),"---") -> --- | K97: =IFERROR((September!$B$207),"---") -> --- | L97: =IFERROR((October!$B$207),"---") -> --- | M97: =IFERROR((November!$B$207),"---") -> --- | N97: =IFERROR((December!$B$207),"---") -> ---
A98: Reason No GDR - % other | B98: Short Stay | C98: =IFERROR((January!$C$202),"---") -> 0 | D98: =IFERROR((February!$C$202),"---") -> 0 | E98: =IFERROR((March!$C$202),"---") -> 0 | F98: =IFERROR((April!$C$202),"---") -> 0 | G98: =IFERROR((May!$C$202),"---") -> 0 | H98: =IFERROR((June!$C$202),"---") -> 0 | I98: =IFERROR((July!$C$202),"---") -> 0 | J98: =IFERROR((August!$C$202),"---") -> 0 | K98: =IFERROR((September!$C$202),"---") -> 0 | L98: =IFERROR((October!$C$202),"---") -> 0 | M98: =IFERROR((November!$C$202),"---") -> 0 | N98: =IFERROR((December!$C$202),"---") -> 0
A99: Reason No GDR - % other | B99: Long Stay | C99: =IFERROR((January!$D$208),"---") -> --- | D99: =IFERROR((February!$D$208),"---") -> --- | E99: =IFERROR((March!$D$208),"---") -> --- | F99: =IFERROR((April!$D$208),"---") -> --- | G99: =IFERROR((May!$D$208),"---") -> --- | H99: =IFERROR((June!$D$208),"---") -> --- | I99: =IFERROR((July!$D$208),"---") -> --- | J99: =IFERROR((August!$D$208),"---") -> --- | K99: =IFERROR((September!$D$208),"---") -> --- | L99: =IFERROR((October!$D$208),"---") -> --- | M99: =IFERROR((November!$D$208),"---") -> --- | N99: =IFERROR((December!$D$208),"---") -> ---
A100: Reason No GDR - % other | B100: Total | C100: =IFERROR((January!$B$208),"---") -> --- | D100: =IFERROR((February!$B$208),"---") -> --- | E100: =IFERROR((March!$B$208),"---") -> --- | F100: =IFERROR((April!$B$208),"---") -> --- | G100: =IFERROR((May!$B$208),"---") -> --- | H100: =IFERROR((June!$B$208),"---") -> --- | I100: =IFERROR((July!$B$208),"---") -> --- | J100: =IFERROR((August!$B$208),"---") -> --- | K100: =IFERROR((September!$B$208),"---") -> --- | L100: =IFERROR((October!$B$208),"---") -> --- | M100: =IFERROR((November!$B$208),"---") -> --- | N100: =IFERROR((December!$B$208),"---") -> ---
A101: # with Adverse Effects | B101: Short Stay | C101: =IFERROR((January!$C$214),"---") -> 0 | D101: =IFERROR((February!$C$214),"---") -> 0 | E101: =IFERROR((March!$C$214),"---") -> 0 | F101: =IFERROR((April!$C$214),"---") -> 0 | G101: =IFERROR((May!$C$214),"---") -> 0 | H101: =IFERROR((June!$C$214),"---") -> 0 | I101: =IFERROR((July!$C$214),"---") -> 0 | J101: =IFERROR((August!$C$214),"---") -> 0 | K101: =IFERROR((September!$C$214),"---") -> 0 | L101: =IFERROR((October!$C$214),"---") -> 0 | M101: =IFERROR((November!$C$214),"---") -> 0 | N101: =IFERROR((December!$C$214),"---") -> 0
A102: # with Adverse Effects | B102: Long Stay | C102: =IFERROR((January!$D$214),"---") -> 0 | D102: =IFERROR((February!$D$214),"---") -> 0 | E102: =IFERROR((March!$D$214),"---") -> 0 | F102: =IFERROR((April!$D$214),"---") -> 0 | G102: =IFERROR((May!$D$214),"---") -> 0 | H102: =IFERROR((June!$D$214),"---") -> 0 | I102: =IFERROR((July!$D$214),"---") -> 0 | J102: =IFERROR((August!$D$214),"---") -> 0 | K102: =IFERROR((September!$D$214),"---") -> 0 | L102: =IFERROR((October!$D$214),"---") -> 0 | M102: =IFERROR((November!$D$214),"---") -> 0 | N102: =IFERROR((December!$D$214),"---") -> 0
A103: # with Adverse Effects | B103: Total | C103: =IFERROR((January!$B$214),"---") -> 0 | D103: =IFERROR((February!$B$214),"---") -> 0 | E103: =IFERROR((March!$B$214),"---") -> 0 | F103: =IFERROR((April!$B$214),"---") -> 0 | G103: =IFERROR((May!$B$214),"---") -> 0 | H103: =IFERROR((June!$B$214),"---") -> 0 | I103: =IFERROR((July!$B$214),"---") -> 0 | J103: =IFERROR((August!$B$214),"---") -> 0 | K103: =IFERROR((September!$B$214),"---") -> 0 | L103: =IFERROR((October!$B$214),"---") -> 0 | M103: =IFERROR((November!$B$214),"---") -> 0 | N103: =IFERROR((December!$B$214),"---") -> 0
A104: % with Adverse Effects | B104: Short Stay | C104: =IFERROR((January!$C$217),"---") -> --- | D104: =IFERROR((February!$C$217),"---") -> --- | E104: =IFERROR((March!$C$217),"---") -> --- | F104: =IFERROR((April!$C$217),"---") -> --- | G104: =IFERROR((May!$C$217),"---") -> --- | H104: =IFERROR((June!$C$217),"---") -> --- | I104: =IFERROR((July!$C$217),"---") -> --- | J104: =IFERROR((August!$C$217),"---") -> --- | K104: =IFERROR((September!$C$217),"---") -> --- | L104: =IFERROR((October!$C$217),"---") -> --- | M104: =IFERROR((November!$C$217),"---") -> --- | N104: =IFERROR((December!$C$217),"---") -> ---
A105: % with Adverse Effects | B105: Long Stay | C105: =IFERROR((January!$D$217),"---") -> --- | D105: =IFERROR((February!$D$217),"---") -> --- | E105: =IFERROR((March!$D$217),"---") -> --- | F105: =IFERROR((April!$D$217),"---") -> --- | G105: =IFERROR((May!$D$217),"---") -> --- | H105: =IFERROR((June!$D$217),"---") -> --- | I105: =IFERROR((July!$D$217),"---") -> --- | J105: =IFERROR((August!$D$217),"---") -> --- | K105: =IFERROR((September!$D$217),"---") -> --- | L105: =IFERROR((October!$D$217),"---") -> --- | M105: =IFERROR((November!$D$217),"---") -> --- | N105: =IFERROR((December!$D$217),"---") -> ---
A106: % with Adverse Effects | B106: Total | C106: =IFERROR((January!$B$217),"---") -> --- | D106: =IFERROR((February!$B$217),"---") -> --- | E106: =IFERROR((March!$B$217),"---") -> --- | F106: =IFERROR((April!$B$217),"---") -> --- | G106: =IFERROR((May!$B$217),"---") -> --- | H106: =IFERROR((June!$B$217),"---") -> --- | I106: =IFERROR((July!$B$217),"---") -> --- | J106: =IFERROR((August!$B$217),"---") -> --- | K106: =IFERROR((September!$B$217),"---") -> --- | L106: =IFERROR((October!$B$217),"---") -> --- | M106: =IFERROR((November!$B$217),"---") -> --- | N106: =IFERROR((December!$B$217),"---") -> ---
A107: Antipsychotic rate | B107: Total | C107: =IFERROR((January!$I$1), "---") -> 0 | D107: =IFERROR((February!$I$1), "---") -> --- | E107: =IFERROR((March!$I$1), "---") -> --- | F107: =IFERROR((April!$I$1), "---") -> --- | G107: =IFERROR((May!$I$1), "---") -> --- | H107: =IFERROR((June!$I$1), "---") -> --- | I107: =IFERROR((July!$I$1), "---") -> --- | J107: =IFERROR((August!$I$1), "---") -> --- | K107: =IFERROR((September!$I$1), "---") -> --- | L107: =IFERROR((October!$I$1), "---") -> --- | M107: =IFERROR((November!$I$1), "---") -> --- | N107: =IFERROR((December!$I$1), "---") -> ---

Sheet Drop Downs (hidden)
A1: YN | B1: X | C1: YNNA | D1: Sched | E1: Stay Type | F1: Where Started | G1: GDROutcome | H1: NoGDR
A2: Yes | B2: X | C2: Yes | D2: Scheduled | E2: Long Term | F2: SNF | G2: Dose reduced | H2: N/A
A3: No | B3: X | C3: No | D3: PRN | E3: Short Term | F3: Hospital | G3: Drug discontinued | H3: Resident on lowest possible dose
C4: N/A | D4: Both | F4: Outpatient | G4: Return to previous dose | H4: Contraindicated per prescriber
H5: Other

Sheet Sheet1
